Workbook

Sheet Main
B10: 2023-08-30
B12: Sheet No. | C12: Template Name | D12: Summary
B13: 1 | C13: Future Intra | D13: For Intraday trading in F&O segment
B14: 2 | C14: Cash Intra | D14: For Intraday trading in cash market segment
B15: 3 | C15: Mid-cap Intra | D15: For Intraday trading in Mid-cap stocks
B16: 4 | C16: Bulk Deals | D16: Reveals Bulk Deals carried on NSE & BSE
B17: 5 | C17: Call Tracker
K27: `

Sheet Future Intra
M5: Back to Main Page
A6: FOR INTRA DAY TRADING | L6: =Main!B10 -> 2023-08-30
A9: Sr.no | B9: Sector | C9: Scrip | D9: Expiry Date | E9: CLOSE RATE | F9: Pivot Point | G9: Supports | J9: Resistances
E10: Point | F10: Point | G10: S1 | H10: S2 | I10: S3 | J10: R1 | K10: R2 | L10: R3 | M10: HIGH | N10: LOW | O10: OI | P10: % Change in OI
A11: 1 | B11: Index | C11: NIFTY | D11: 2023-08-31 | E11: 19337.10 | F11: 19336.68 | G11: 19306.42 | H11: 19275.73 | I11: 19245.47 | J11: 19367.37 | K11: 19397.63 | L11: 19428.32 | M11: 19366.95 | N11: 19306 | O11: 13681800 | P11: 0%
A12: 2 | B12: Index | C12: BANKNIFTY | D12: 2023-08-31 | E12: 44500.50 | F12: 44543.88 | G12: 44399.77 | H12: 44299.03 | I12: 44154.92 | J12: 44644.62 | K12: 44788.73 | L12: 44889.47 | M12: 44688 | N12: 44443.15 | O12: 2258910 | P12: -1%
A13: 3 | B13: Index | C13: FINNIFTY | D13: 2023-09-26 | E13: 19896.65 | F13: 19893.10 | G13: 19871.35 | H13: 19846.05 | I13: 19824.30 | J13: 19918.40 | K13: 19940.15 | L13: 19965.45 | M13: 19914.85 | N13: 19867.8 | O13: 109320 | P13: 24%
A14: 4 | B14: Index | C14: MIDCPNIFTY | D14: 2023-09-25 | E14: 8828.40 | F14: 8818.63 | G14: 8797.47 | H14: 8766.53 | I14: 8745.37 | J14: 8849.57 | K14: 8870.73 | L14: 8901.67 | M14: 8839.8 | N14: 8787.7 | O14: 73425 | P14: -39%
A15: 5 | B15: Chemical | C15: AARTIIND | D15: 2023-08-31 | E15: 481.70 | F15: 476.07 | G15: 467.43 | H15: 453.17 | I15: 444.53 | J15: 490.33 | K15: 498.97 | L15: 513.23 | M15: 484.7 | N15: 461.8 | O15: 12552000 | P15: 3%
A16: 6 | B16: Capital_Goods | C16: ABB | D16: 2023-08-31 | E16: 4322.45 | F16: 4304.42 | G16: 4272.18 | H16: 4221.92 | I16: 4189.68 | J16: 4354.68 | K16: 4386.92 | L16: 4437.18 | M16: 4336.65 | N16: 4254.15 | O16: 1578500 | P16: -2%
A17: 7 | B17: Pharma | C17: ABBOTINDIA | D17: 2023-08-31 | E17: 23375.20 | F17: 23332.88 | G17: 23215.82 | H17: 23056.43 | I17: 22939.37 | J17: 23492.27 | K17: 23609.33 | L17: 23768.72 | M17: 23449.95 | N17: 23173.5 | O17: 73440 | P17: -3%
A18: 8 | B18: Others | C18: ABCAPITAL | D18: 2023-08-31 | E18: 180.85 | F18: 180.63 | G18: 179.42 | H18: 177.98 | I18: 176.77 | J18: 182.07 | K18: 183.28 | L18: 184.72 | M18: 181.85 | N18: 179.2 | O18: 34770600 | P18: 8%
A19: 9 | B19: Textile | C19: ABFRL | D19: 2023-08-31 | E19: 215.10 | F19: 215.88 | G19: 213.72 | H19: 212.33 | I19: 210.17 | J19: 217.27 | K19: 219.43 | L19: 220.82 | M19: 218.05 | N19: 214.5 | O19: 25776400 | P19: 1%
A20: 10 | B20: Cement | C20: ACC | D20: 2023-08-31 | E20: 1986.95 | F20: 1989.12 | G20: 1975.53 | H20: 1964.12 | I20: 1950.53 | J20: 2000.53 | K20: 2014.12 | L20: 2025.53 | M20: 2002.7 | N20: 1977.7 | O20: 6620700 | P20: -1%
A21: 11 | B21: Others | C21: ADANIENT | D21: 2023-08-31 | E21: 2507.45 | F21: 2498.43 | G21: 2454.27 | H21: 2401.08 | I21: 2356.92 | J21: 2551.62 | K21: 2595.78 | L21: 2648.97 | M21: 2542.6 | N21: 2445.25 | O21: 11586300 | P21: -1%
A22: 12 | B22: Others | C22: ADANIPORTS | D22: 2023-08-31 | E22: 821.95 | F22: 817.12 | G22: 805.48 | H22: 789.02 | I22: 777.38 | J22: 833.58 | K22: 845.22 | L22: 861.68 | M22: 828.75 | N22: 800.65 | O22: 42457600 | P22: -0%
A23: 13 | B23: Pharma | C23: ALKEM | D23: 2023-08-31 | E23: 3711.65 | F23: 3709.22 | G23: 3672.43 | H23: 3633.22 | I23: 3596.43 | J23: 3748.43 | K23: 3785.22 | L23: 3824.43 | M23: 3746 | N23: 3670 | O23: 715600 | P23: -4%
A24: 14 | B24: Cement | C24: AMBUJACEM | D24: 2023-08-31 | E24: 440.90 | F24: 441.50 | G24: 435.60 | H24: 430.30 | I24: 424.40 | J24: 446.80 | K24: 452.70 | L24: 458.00 | M24: 447.4 | N24: 436.2 | O24: 68457600 | P24: -1%
A25: 15 | B25: Others | C25: APOLLOHOSP | D25: 2023-08-31 | E25: 4882.70 | F25: 4889.47 | G25: 4850.58 | H25: 4818.47 | I25: 4779.58 | J25: 4921.58 | K25: 4960.47 | L25: 4992.58 | M25: 4928.35 | N25: 4857.35 | O25: 2374875 | P25: -0%
A26: 16 | B26: Automobile | C26: APOLLOTYRE | D26: 2023-08-31 | E26: 390.40 | F26: 392.52 | G26: 387.53 | H26: 384.67 | I26: 379.68 | J26: 395.38 | K26: 400.37 | L26: 403.23 | M26: 397.5 | N26: 389.65 | O26: 12411700 | P26: -1%
A27: 17 | B27: Automobile | C27: ASHOKLEY | D27: 2023-08-31 | E27: 186.90 | F27: 187.27 | G27: 185.98 | H27: 185.07 | I27: 183.78 | J27: 188.18 | K27: 189.47 | L27: 190.38 | M27: 188.55 | N27: 186.35 | O27: 92565000 | P27: 11%
A28: 18 | B28: FMCG | C28: ASIANPAINT | D28: 2023-08-31 | E28: 3279.90 | F28: 3271.75 | G28: 3261.50 | H28: 3243.10 | I28: 3232.85 | J28: 3290.15 | K28: 3300.40 | L28: 3318.80 | M28: 3282 | N28: 3253.35 | O28: 4616000 | P28: -5%
A29: 19 | B29: Others | C29: ASTRAL | D29: 2023-08-31 | E29: 1954.10 | F29: 1963.22 | G29: 1936.13 | H29: 1918.17 | I29: 1891.08 | J29: 1981.18 | K29: 2008.27 | L29: 2026.23 | M29: 1990.3 | N29: 1945.25 | O29: 3404292 | P29: -0%
A30: 20 | B30: Others | C30: ATUL | D30: 2023-08-31 | E30: 7193.15 | F30: 7085.87 | G30: 6955.73 | H30: 6718.32 | I30: 6588.18 | J30: 7323.28 | K30: 7453.42 | L30: 7690.83 | M30: 7216 | N30: 6848.45 | O30: 399375 | P30: -4%
A31: 21 | B31: Banking | C31: AUBANK | D31: 2023-08-31 | E31: 732.00 | F31: 733.75 | G31: 729.40 | H31: 726.80 | I31: 722.45 | J31: 736.35 | K31: 740.70 | L31: 743.30 | M31: 738.1 | N31: 731.15 | O31: 15583000 | P31: 5%
A32: 22 | B32: Pharma | C32: AUROPHARMA | D32: 2023-08-31 | E32: 830.25 | F32: 832.47 | G32: 825.03 | H32: 819.82 | I32: 812.38 | J32: 837.68 | K32: 845.12 | L32: 850.33 | M32: 839.9 | N32: 827.25 | O32: 15103000 | P32: -1%
A33: 23 | B33: Banking | C33: AXISBANK | D33: 2023-08-31 | E33: 981.55 | F33: 983.32 | G33: 976.93 | H33: 972.32 | I33: 965.93 | J33: 987.93 | K33: 994.32 | L33: 998.93 | M33: 989.7 | N33: 978.7 | O33: 41594375 | P33: -2%
A34: 24 | B34: Automobile | C34: BAJAJ-AUTO | D34: 2023-08-31 | E34: 4660.45 | F34: 4643.65 | G34: 4621.60 | H34: 4582.75 | I34: 4560.70 | J34: 4682.50 | K34: 4704.55 | L34: 4743.40 | M34: 4665.7 | N34: 4604.8 | O34: 2576000 | P34: -1%
A35: 25 | B35: Finance | C35: BAJAJFINSV | D35: 2023-08-31 | E35: 1504.90 | F35: 1504.17 | G35: 1496.78 | H35: 1488.67 | I35: 1481.28 | J35: 1512.28 | K35: 1519.67 | L35: 1527.78 | M35: 1511.55 | N35: 1496.05 | O35: 10782000 | P35: -3%
A36: 26 | B36: Finance | C36: BAJFINANCE | D36: 2023-08-31 | E36: 7273.85 | F36: 7259.00 | G36: 7228.00 | H36: 7182.15 | I36: 7151.15 | J36: 7304.85 | K36: 7335.85 | L36: 7381.70 | M36: 7290 | N36: 7213.15 | O36: 4775125 | P36: -2%
A37: 27 | B37: Automobile | C37: BALKRISIND | D37: 2023-08-31 | E37: 2366.30 | F37: 2370.48 | G37: 2358.47 | H37: 2350.63 | I37: 2338.62 | J37: 2378.32 | K37: 2390.33 | L37: 2398.17 | M37: 2382.5 | N37: 2362.65 | O37: 1874100 | P37: 2%
A38: 28 | B38: Others | C38: BALRAMCHIN | D38: 2023-08-31 | E38: 388.95 | F38: 391.25 | G38: 385.20 | H38: 381.45 | I38: 375.40 | J38: 395.00 | K38: 401.05 | L38: 404.80 | M38: 397.3 | N38: 387.5 | O38: 11720000 | P38: 6%
A39: 29 | B39: Banking | C39: BANDHANBNK | D39: 2023-08-31 | E39: 235.35 | F39: 235.38 | G39: 233.87 | H39: 232.38 | I39: 230.87 | J39: 236.87 | K39: 238.38 | L39: 239.87 | M39: 236.9 | N39: 233.9 | O39: 81087500 | P39: -4%
A40: 30 | B40: Banking | C40: BANKBARODA | D40: 2023-08-31 | E40: 190.95 | F40: 190.43 | G40: 189.37 | H40: 187.78 | I40: 186.72 | J40: 192.02 | K40: 193.08 | L40: 194.67 | M40: 191.5 | N40: 188.85 | O40: 111892950 | P40: -3%
A41: 31 | B41: FMCG | C41: BATAINDIA | D41: 2023-08-31 | E41: 1689.45 | F41: 1695.15 | G41: 1680.30 | H41: 1671.15 | I41: 1656.30 | J41: 1704.30 | K41: 1719.15 | L41: 1728.30 | M41: 1710 | N41: 1686 | O41: 1899000 | P41: -9%
A42: 32 | B42: Capital_Goods | C42: BEL | D42: 2023-08-31 | E42: 134.65 | F42: 134.73 | G42: 133.87 | H42: 133.08 | I42: 132.22 | J42: 135.52 | K42: 136.38 | L42: 137.17 | M42: 135.6 | N42: 133.95 | O42: 79349700 | P42: -1%
A43: 33 | B43: FMCG | C43: BERGEPAINT | D43: 2023-08-31 | E43: 719.85 | F43: 716.97 | G43: 709.48 | H43: 699.12 | I43: 691.63 | J43: 727.33 | K43: 734.82 | L43: 745.18 | M43: 724.45 | N43: 706.6 | O43: 8144400 | P43: 2%
A44: 34 | B44: Automobile | C44: BHARATFORG | D44: 2023-08-31 | E44: 1070.85 | F44: 1063.18 | G44: 1051.42 | H44: 1031.98 | I44: 1020.22 | J44: 1082.62 | K44: 1094.38 | L44: 1113.82 | M44: 1074.95 | N44: 1043.75 | O44: 10269000 | P44: 0%
A45: 35 | B45: Telecom | C45: BHARTIARTL | D45: 2023-08-31 | E45: 857.25 | F45: 859.13 | G45: 848.72 | H45: 840.18 | I45: 829.77 | J45: 867.67 | K45: 878.08 | L45: 886.62 | M45: 869.55 | N45: 850.6 | O45: 44086650 | P45: 3%
A46: 36 | B46: Capital_Goods | C46: BHEL | D46: 2023-08-31 | E46: 114.40 | F46: 112.68 | G46: 110.57 | H46: 106.73 | I46: 104.62 | J46: 116.52 | K46: 118.63 | L46: 122.47 | M46: 114.8 | N46: 108.85 | O46: 83002500 | P46: -7%
A47: 37 | B47: Pharma | C47: BIOCON | D47: 2023-08-31 | E47: 259.20 | F47: 258.97 | G47: 256.93 | H47: 254.67 | I47: 252.63 | J47: 261.23 | K47: 263.27 | L47: 265.53 | M47: 261 | N47: 256.7 | O47: 29810000 | P47: 0%
A48: 38 | B48: Automobile | C48: BOSCHLTD | D48: 2023-08-31 | E48: 18596.60 | F48: 18558.45 | G48: 18504.85 | H48: 18413.10 | I48: 18359.50 | J48: 18650.20 | K48: 18703.80 | L48: 18795.55 | M48: 18612.05 | N48: 18466.7 | O48: 146100 | P48: -11%
A49: 39 | B49: Oil_Gas | C49: BPCL | D49: 2023-08-31 | E49: 356.55 | F49: 356.38 | G49: 354.57 | H49: 352.58 | I49: 350.77 | J49: 358.37 | K49: 360.18 | L49: 362.17 | M49: 358.2 | N49: 354.4 | O49: 28720800 | P49: -5%
A50: 40 | B50: FMCG | C50: BRITANNIA | D50: 2023-08-31 | E50: 4524.10 | F50: 4512.48 | G50: 4496.67 | H50: 4469.23 | I50: 4453.42 | J50: 4539.92 | K50: 4555.73 | L50: 4583.17 | M50: 4528.3 | N50: 4485.05 | O50: 2337200 | P50: -5%
A51: 41 | B51: Technology | C51: BSOFT | D51: 2023-08-31 | E51: 492.85 | F51: 492.67 | G51: 486.98 | H51: 481.12 | I51: 475.43 | J51: 498.53 | K51: 504.22 | L51: 510.08 | M51: 498.35 | N51: 486.8 | O51: 6584000 | P51: -7%
A52: 42 | B52: Banking | C52: CANBK | D52: 2023-08-31 | E52: 327.00 | F52: 327.12 | G52: 325.38 | H52: 323.77 | I52: 322.03 | J52: 328.73 | K52: 330.47 | L52: 332.08 | M52: 328.85 | N52: 325.5 | O52: 59597100 | P52: 1%
A53: 43 | B53: Finance | C53: CANFINHOME | D53: 2023-08-31 | E53: 750.25 | F53: 748.68 | G53: 745.62 | H53: 740.98 | I53: 737.92 | J53: 753.32 | K53: 756.38 | L53: 761.02 | M53: 751.75 | N53: 744.05 | O53: 4293900 | P53: -3%
A54: 44 | B54: Others | C54: CHAMBLFERT | D54: 2023-08-31 | E54: 279.40 | F54: 278.73 | G54: 276.67 | H54: 273.93 | I54: 271.87 | J54: 281.47 | K54: 283.53 | L54: 286.27 | M54: 280.8 | N54: 276 | O54: 12534300 | P54: 4%
A55: 45 | B55: Finance | C55: CHOLAFIN | D55: 2023-08-31 | E55: 1097.90 | F55: 1092.88 | G55: 1084.17 | H55: 1070.43 | I55: 1061.72 | J55: 1106.62 | K55: 1115.33 | L55: 1129.07 | M55: 1101.6 | N55: 1079.15 | O55: 15015000 | P55: -3%
A56: 46 | B56: Pharma | C56: CIPLA | D56: 2023-08-31 | E56: 1231.35 | F56: 1234.35 | G56: 1225.70 | H56: 1220.05 | I56: 1211.40 | J56: 1240.00 | K56: 1248.65 | L56: 1254.30 | M56: 1243 | N56: 1228.7 | O56: 10507900 | P56: -1%
A57: 47 | B57: Others | C57: COALINDIA | D57: 2023-08-31 | E57: 229.60 | F57: 229.47 | G57: 228.43 | H57: 227.27 | I57: 226.23 | J57: 230.63 | K57: 231.67 | L57: 232.83 | M57: 230.5 | N57: 228.3 | O57: 77032200 | P57: -2%
A58: 48 | B58: Technology | C58: COFORGE | D58: 2023-08-31 | E58: 5219.00 | F58: 5187.20 | G58: 5119.65 | H58: 5020.30 | I58: 4952.75 | J58: 5286.55 | K58: 5354.10 | L58: 5453.45 | M58: 5254.75 | N58: 5087.85 | O58: 1597500 | P58: -11%
A59: 49 | B59: FMCG | C59: COLPAL | D59: 2023-08-31 | E59: 1953.65 | F59: 1952.50 | G59: 1940.15 | H59: 1926.65 | I59: 1914.30 | J59: 1966.00 | K59: 1978.35 | L59: 1991.85 | M59: 1964.85 | N59: 1939 | O59: 2471350 | P59: -2%
A60: 50 | B60: Others | C60: CONCOR | D60: 2023-08-31 | E60: 671.20 | F60: 669.13 | G60: 666.07 | H60: 660.93 | I60: 657.87 | J60: 674.27 | K60: 677.33 | L60: 682.47 | M60: 672.2 | N60: 664 | O60: 5186000 | P60: -2%
A61: 51 | B61: Others | C61: COROMANDEL | D61: 2023-08-31 | E61: 1084.20 | F61: 1087.92 | G61: 1076.33 | H61: 1068.47 | I61: 1056.88 | J61: 1095.78 | K61: 1107.37 | L61: 1115.23 | M61: 1099.5 | N61: 1080.05 | O61: 1734600 | P61: -1%
A62: 52 | B62: Capital_Goods | C62: CROMPTON | D62: 2023-08-31 | E62: 302.60 | F62: 302.27 | G62: 300.03 | H62: 297.47 | I62: 295.23 | J62: 304.83 | K62: 307.07 | L62: 309.63 | M62: 304.5 | N62: 299.7 | O62: 12321000 | P62: -1%
A63: 53 | B63: Banking | C63: CUB | D63: 2023-08-31 | E63: 124.90 | F63: 125.05 | G63: 124.45 | H63: 124.00 | I63: 123.40 | J63: 125.50 | K63: 126.10 | L63: 126.55 | M63: 125.65 | N63: 124.6 | O63: 41785000 | P63: -1%
A64: 54 | B64: Capital_Goods | C64: CUMMINSIND | D64: 2023-08-31 | E64: 1719.00 | F64: 1716.48 | G64: 1706.97 | H64: 1694.93 | I64: 1685.42 | J64: 1728.52 | K64: 1738.03 | L64: 1750.07 | M64: 1726 | N64: 1704.45 | O64: 6251400 | P64: -1%
A65: 55 | B65: FMCG | C65: DABUR | D65: 2023-08-31 | E65: 550.95 | F65: 550.57 | G65: 547.08 | H65: 543.22 | I65: 539.73 | J65: 554.43 | K65: 557.92 | L65: 561.78 | M65: 554.05 | N65: 546.7 | O65: 16745000 | P65: 3%
A66: 56 | B66: Cement | C66: DALBHARAT | D66: 2023-08-31 | E66: 2058.15 | F66: 2050.22 | G66: 2037.93 | H66: 2017.72 | I66: 2005.43 | J66: 2070.43 | K66: 2082.72 | L66: 2102.93 | M66: 2062.5 | N66: 2030 | O66: 1500500 | P66: 2%
A67: 57 | B67: Chemical | C67: DEEPAKNTR | D67: 2023-08-31 | E67: 2175.30 | F67: 2136.43 | G67: 2086.12 | H67: 1996.93 | I67: 1946.62 | J67: 2225.62 | K67: 2275.93 | L67: 2365.12 | M67: 2186.75 | N67: 2047.25 | O67: 3186000 | P67: 23%
A68: 58 | B68: Others | C68: DELTACORP | D68: 2023-08-31 | E68: 180.60 | F68: 180.92 | G68: 177.53 | H68: 174.47 | I68: 171.08 | J68: 183.98 | K68: 187.37 | L68: 190.43 | M68: 184.3 | N68: 177.85 | O68: 13493200 | P68: -8%
A69: 59 | B69: Pharma | C69: DIVISLAB | D69: 2023-08-31 | E69: 3661.00 | F69: 3657.32 | G69: 3638.48 | H69: 3615.97 | I69: 3597.13 | J69: 3679.83 | K69: 3698.67 | L69: 3721.18 | M69: 3676.15 | N69: 3634.8 | O69: 2641000 | P69: 3%
A70: 60 | B70: Others | C70: DIXON | D70: 2023-08-31 | E70: 4926.20 | F70: 4929.42 | G70: 4893.28 | H70: 4860.37 | I70: 4824.23 | J70: 4962.33 | K70: 4998.47 | L70: 5031.38 | M70: 4965.55 | N70: 4896.5 | O70: 1481400 | P70: 0%
A71: 61 | B71: Realty | C71: DLF | D71: 2023-08-31 | E71: 493.95 | F71: 491.95 | G71: 485.55 | H71: 477.15 | I71: 470.75 | J71: 500.35 | K71: 506.75 | L71: 515.15 | M71: 498.35 | N71: 483.55 | O71: 42873600 | P71: -4%
A72: 62 | B72: Pharma | C72: DRREDDY | D72: 2023-08-31 | E72: 5733.00 | F72: 5747.22 | G72: 5698.43 | H72: 5663.87 | I72: 5615.08 | J72: 5781.78 | K72: 5830.57 | L72: 5865.13 | M72: 5796 | N72: 5712.65 | O72: 3050500 | P72: -5%
A73: 63 | B73: Automobile | C73: EICHERMOT | D73: 2023-08-31 | E73: 3359.15 | F73: 3359.55 | G73: 3347.10 | H73: 3335.05 | I73: 3322.60 | J73: 3371.60 | K73: 3384.05 | L73: 3396.10 | M73: 3372 | N73: 3347.5 | O73: 4267725 | P73: 4%
A74: 64 | B74: Automobile | C74: ESCORTS | D74: 2023-08-31 | E74: 3030.15 | F74: 3019.25 | G74: 2996.50 | H74: 2962.85 | I74: 2940.10 | J74: 3052.90 | K74: 3075.65 | L74: 3109.30 | M74: 3042 | N74: 2985.6 | O74: 1738275 | P74: -8%
A75: 65 | B75: Automobile | C75: EXIDEIND | D75: 2023-08-31 | E75: 260.30 | F75: 260.80 | G75: 259.15 | H75: 258.00 | I75: 256.35 | J75: 261.95 | K75: 263.60 | L75: 264.75 | M75: 262.45 | N75: 259.65 | O75: 16556400 | P75: -3%
A76: 66 | B76: Banking | C76: FEDERALBNK | D76: 2023-08-31 | E76: 144.60 | F76: 144.95 | G76: 143.60 | H76: 142.60 | I76: 141.25 | J76: 145.95 | K76: 147.30 | L76: 148.30 | M76: 146.3 | N76: 143.95 | O76: 137730000 | P76: -4%
A77: 67 | B77: Oil_Gas | C77: GAIL | D77: 2023-08-31 | E77: 116.95 | F77: 117.12 | G77: 116.48 | H77: 116.02 | I77: 115.38 | J77: 117.58 | K77: 118.22 | L77: 118.68 | M77: 117.75 | N77: 116.65 | O77: 121685850 | P77: -1%
A78: 68 | B78: Pharma | C78: GLENMARK | D78: 2023-08-31 | E78: 757.65 | F78: 761.43 | G78: 746.17 | H78: 734.68 | I78: 719.42 | J78: 772.92 | K78: 788.18 | L78: 799.67 | M78: 776.7 | N78: 749.95 | O78: 6590250 | P78: -0%
A79: 69 | B79: Infrastructure | C79: GMRINFRA | D79: 2023-08-31 | E79: 60.90 | F79: 61.38 | G79: 60.02 | H79: 59.13 | I79: 57.77 | J79: 62.27 | K79: 63.63 | L79: 64.52 | M79: 62.75 | N79: 60.5 | O79: 136687500 | P79: -5%
A80: 70 | B80: Others | C80: GNFC | D80: 2023-08-31 | E80: 603.60 | F80: 600.88 | G80: 591.87 | H80: 580.13 | I80: 571.12 | J80: 612.62 | K80: 621.63 | L80: 633.37 | M80: 609.9 | N80: 589.15 | O80: 7033000 | P80: -6%
A81: 71 | B81: FMCG | C81: GODREJCP | D81: 2023-08-31 | E81: 1014.05 | F81: 1015.95 | G81: 1003.20 | H81: 992.35 | I81: 979.60 | J81: 1026.80 | K81: 1039.55 | L81: 1050.40 | M81: 1028.7 | N81: 1005.1 | O81: 8388000 | P81: -0%
A82: 72 | B82: Realty | C82: GODREJPROP | D82: 2023-08-31 | E82: 1642.90 | F82: 1640.00 | G82: 1633.20 | H82: 1623.50 | I82: 1616.70 | J82: 1649.70 | K82: 1656.50 | L82: 1666.20 | M82: 1646.8 | N82: 1630.3 | O82: 3490300 | P82: -3%
A83: 73 | B83: Pharma | C83: GRANULES | D83: 2023-08-31 | E83: 301.05 | F83: 300.98 | G83: 299.17 | H83: 297.28 | I83: 295.47 | J83: 302.87 | K83: 304.68 | L83: 306.57 | M83: 302.8 | N83: 299.1 | O83: 9114000 | P83: -5%
A84: 74 | B84: Cement | C84: GRASIM | D84: 2023-08-31 | E84: 1802.05 | F84: 1796.78 | G84: 1786.82 | H84: 1771.58 | I84: 1761.62 | J84: 1812.02 | K84: 1821.98 | L84: 1837.22 | M84: 1806.75 | N84: 1781.55 | O84: 13789250 | P84: 1%
A85: 75 | B85: Oil_Gas | C85: GUJGASLTD | D85: 2023-08-31 | E85: 459.50 | F85: 458.68 | G85: 456.62 | H85: 453.73 | I85: 451.67 | J85: 461.57 | K85: 463.63 | L85: 466.52 | M85: 460.75 | N85: 455.8 | O85: 7958750 | P85: -3%
A86: 76 | B86: Others | C86: HAL | D86: 2023-08-31 | E86: 3903.30 | F86: 3901.97 | G86: 3876.08 | H86: 3848.87 | I86: 3822.98 | J86: 3929.18 | K86: 3955.07 | L86: 3982.28 | M86: 3927.85 | N86: 3874.75 | O86: 5157900 | P86: -1%
A87: 77 | B87: Capital_Goods | C87: HAVELLS | D87: 2023-08-31 | E87: 1338.10 | F87: 1330.20 | G87: 1319.85 | H87: 1301.60 | I87: 1291.25 | J87: 1348.45 | K87: 1358.80 | L87: 1377.05 | M87: 1340.55 | N87: 1311.95 | O87: 5995000 | P87: -1%
A88: 78 | B88: Technology | C88: HCLTECH | D88: 2023-08-31 | E88: 1155.90 | F88: 1156.20 | G88: 1149.35 | H88: 1142.80 | I88: 1135.95 | J88: 1162.75 | K88: 1169.60 | L88: 1176.15 | M88: 1163.05 | N88: 1149.65 | O88: 10030300 | P88: -2%
A89: 79 | B89: Finance | C89: HDFCAMC | D89: 2023-08-31 | E89: 2471.05 | F89: 2481.65 | G89: 2450.95 | H89: 2430.85 | I89: 2400.15 | J89: 2501.75 | K89: 2532.45 | L89: 2552.55 | M89: 2512.35 | N89: 2461.55 | O89: 4170000 | P89: 5%
A90: 80 | B90: Banking | C90: HDFCBANK | D90: 2023-08-31 | E90: 1588.75 | F90: 1586.53 | G90: 1582.32 | H90: 1575.88 | I90: 1571.67 | J90: 1592.97 | K90: 1597.18 | L90: 1603.62 | M90: 1590.75 | N90: 1580.1 | O90: 132542300 | P90: -3%
A91: 81 | B91: Finance | C91: HDFCLIFE | D91: 2023-08-31 | E91: 634.90 | F91: 632.07 | G91: 627.63 | H91: 620.37 | I91: 615.93 | J91: 639.33 | K91: 643.77 | L91: 651.03 | M91: 636.5 | N91: 624.8 | O91: 18693400 | P91: -1%
A92: 82 | B92: Automobile | C92: HEROMOTOCO | D92: 2023-08-31 | E92: 2976.30 | F92: 2959.90 | G92: 2936.30 | H92: 2896.30 | I92: 2872.70 | J92: 2999.90 | K92: 3023.50 | L92: 3063.50 | M92: 2983.5 | N92: 2919.9 | O92: 4012200 | P92: -2%
A93: 83 | B93: Metals | C93: HINDALCO | D93: 2023-08-31 | E93: 456.55 | F93: 454.40 | G93: 449.65 | H93: 442.75 | I93: 438.00 | J93: 461.30 | K93: 466.05 | L93: 472.95 | M93: 459.15 | N93: 447.5 | O93: 27021400 | P93: 4%
A94: 84 | B94: Metals | C94: HINDCOPPER | D94: 2023-08-31 | E94: 151.55 | F94: 151.00 | G94: 149.20 | H94: 146.85 | I94: 145.05 | J94: 153.35 | K94: 155.15 | L94: 157.50 | M94: 152.8 | N94: 148.65 | O94: 26144900 | P94: -5%
A95: 85 | B95: Oil_Gas | C95: HINDPETRO | D95: 2023-08-31 | E95: 263.55 | F95: 264.50 | G95: 262.05 | H95: 260.55 | I95: 258.10 | J95: 266.00 | K95: 268.45 | L95: 269.95 | M95: 266.95 | N95: 263 | O95: 47879100 | P95: -0%
A96: 86 | B96: FMCG | C96: HINDUNILVR | D96: 2023-08-31 | E96: 2519.55 | F96: 2529.90 | G96: 2506.05 | H96: 2492.55 | I96: 2468.70 | J96: 2543.40 | K96: 2567.25 | L96: 2580.75 | M96: 2553.75 | N96: 2516.4 | O96: 8417700 | P96: -1%
A97: 87 | B97: Finance | C97: IBULHSGFIN | D97: 2023-08-31 | E97: 188.70 | F97: 189.85 | G97: 186.05 | H97: 183.40 | I97: 179.60 | J97: 192.50 | K97: 196.30 | L97: 198.95 | M97: 193.65 | N97: 187.2 | O97: 74470200 | P97: -4%
A98: 88 | B98: Banking | C98: ICICIBANK | D98: 2023-08-31 | E98: 968.45 | F98: 970.50 | G98: 964.95 | H98: 961.45 | I98: 955.90 | J98: 974.00 | K98: 979.55 | L98: 983.05 | M98: 976.05 | N98: 967 | O98: 85670200 | P98: 1%
A99: 89 | B99: Finance | C99: ICICIGI | D99: 2023-08-31 | E99: 1319.85 | F99: 1322.15 | G99: 1307.80 | H99: 1295.75 | I99: 1281.40 | J99: 1334.20 | K99: 1348.55 | L99: 1360.60 | M99: 1336.5 | N99: 1310.1 | O99: 3514000 | P99: -8%
A100: 90 | B100: Finance | C100: ICICIPRULI | D100: 2023-08-31 | E100: 558.60 | F100: 555.75 | G100: 550.60 | H100: 542.60 | I100: 537.45 | J100: 563.75 | K100: 568.90 | L100: 576.90 | M100: 560.9 | N100: 547.75 | O100: 8812500 | P100: 3%
A101: 91 | B101: Telecom | C101: IDEA | D101: 2023-08-31 | E101: 8.95 | F101: 9.05 | G101: 8.75 | H101: 8.55 | I101: 8.25 | J101: 9.25 | K101: 9.55 | L101: 9.75 | M101: 9.35 | N101: 8.85 | O101: 1027600000 | P101: -3%
A102: 92 | B102: Finance | C102: IDFC | D102: 2023-08-31 | E102: 119.95 | F102: 120.37 | G102: 119.23 | H102: 118.52 | I102: 117.38 | J102: 121.08 | K102: 122.22 | L102: 122.93 | M102: 121.5 | N102: 119.65 | O102: 123960000 | P102: 2%
A103: 93 | B103: Banking | C103: IDFCFIRSTB | D103: 2023-08-31 | E103: 90.10 | F103: 90.32 | G103: 89.63 | H103: 89.17 | I103: 88.48 | J103: 90.78 | K103: 91.47 | L103: 91.93 | M103: 91 | N103: 89.85 | O103: 245145000 | P103: -0%
A104: 94 | B104: Others | C104: IEX | D104: 2023-08-31 | E104: 125.85 | F104: 125.62 | G104: 124.83 | H104: 123.82 | I104: 123.03 | J104: 126.63 | K104: 127.42 | L104: 128.43 | M104: 126.4 | N104: 124.6 | O104: 51225000 | P104: -1%
A105: 95 | B105: Oil_Gas | C105: IGL | D105: 2023-08-31 | E105: 462.90 | F105: 458.03 | G105: 450.47 | H105: 438.03 | I105: 430.47 | J105: 470.47 | K105: 478.03 | L105: 490.47 | M105: 465.6 | N105: 445.6 | O105: 11078375 | P105: 3%
A106: 96 | B106: Infrastructure | C106: INDHOTEL | D106: 2023-08-31 | E106: 393.65 | F106: 394.12 | G106: 391.98 | H106: 390.32 | I106: 388.18 | J106: 395.78 | K106: 397.92 | L106: 399.58 | M106: 396.25 | N106: 392.45 | O106: 19126000 | P106: -2%
A107: 97 | B107: Cement | C107: INDIACEM | D107: 2023-08-31 | E107: 244.90 | F107: 242.98 | G107: 240.17 | H107: 235.43 | I107: 232.62 | J107: 247.72 | K107: 250.53 | L107: 255.27 | M107: 245.8 | N107: 238.25 | O107: 18203300 | P107: -9%
A108: 98 | B108: Others | C108: INDIAMART | D108: 2023-08-31 | E108: 3019.45 | F108: 3021.82 | G108: 3007.23 | H108: 2995.02 | I108: 2980.43 | J108: 3034.03 | K108: 3048.62 | L108: 3060.83 | M108: 3036.4 | N108: 3009.6 | O108: 679800 | P108: -6%
A109: 99 | B109: Others | C109: INDIGO | D109: 2023-08-31 | E109: 2480.85 | F109: 2487.95 | G109: 2466.90 | H109: 2452.95 | I109: 2431.90 | J109: 2501.90 | K109: 2522.95 | L109: 2536.90 | M109: 2509 | N109: 2474 | O109: 7106400 | P109: -1%
A110: 100 | B110: Banking | C110: INDUSINDBK | D110: 2023-08-31 | E110: 1398.05 | F110: 1399.83 | G110: 1389.32 | H110: 1380.58 | I110: 1370.07 | J110: 1408.57 | K110: 1419.08 | L110: 1427.82 | M110: 1410.35 | N110: 1391.1 | O110: 21307500 | P110: -3%
A111: 101 | B111: Telecom | C111: INDUSTOWER | D111: 2023-08-31 | E111: 174.80 | F111: 175.13 | G111: 172.67 | H111: 170.53 | I111: 168.07 | J111: 177.27 | K111: 179.73 | L111: 181.87 | M111: 177.6 | N111: 173 | O111: 87730200 | P111: -5%
A112: 102 | B112: Technology | C112: INFY | D112: 2023-08-31 | E112: 1417.85 | F112: 1419.57 | G112: 1414.08 | H112: 1410.32 | I112: 1404.83 | J112: 1423.33 | K112: 1428.82 | L112: 1432.58 | M112: 1425.05 | N112: 1415.8 | O112: 29748000 | P112: 2%
A113: 103 | B113: Oil_Gas | C113: IOC | D113: 2023-08-31 | E113: 91.90 | F113: 92.02 | G113: 91.63 | H113: 91.37 | I113: 90.98 | J113: 92.28 | K113: 92.67 | L113: 92.93 | M113: 92.4 | N113: 91.75 | O113: 110058000 | P113: -1%
A114: 104 | B114: Pharma | C114: IPCALAB | D114: 2023-08-31 | E114: 886.95 | F114: 891.60 | G114: 879.70 | H114: 872.45 | I114: 860.55 | J114: 898.85 | K114: 910.75 | L114: 918.00 | M114: 903.5 | N114: 884.35 | O114: 2052700 | P114: -12%
A115: 105 | B115: Others | C115: IRCTC | D115: 2023-08-31 | E115: 672.15 | F115: 675.97 | G115: 667.03 | H115: 661.92 | I115: 652.98 | J115: 681.08 | K115: 690.02 | L115: 695.13 | M115: 684.9 | N115: 670.85 | O115: 14366625 | P115: -2%
A116: 106 | B116: FMCG | C116: ITC | D116: 2023-08-31 | E116: 440.40 | F116: 441.68 | G116: 438.67 | H116: 436.93 | I116: 433.92 | J116: 443.42 | K116: 446.43 | L116: 448.17 | M116: 444.7 | N116: 439.95 | O116: 73080000 | P116: -1%
A117: 107 | B117: Metals | C117: JINDALSTEL | D117: 2023-08-31 | E117: 675.35 | F117: 670.48 | G117: 661.07 | H117: 646.78 | I117: 637.37 | J117: 684.77 | K117: 694.18 | L117: 708.47 | M117: 679.9 | N117: 656.2 | O117: 27172500 | P117: 2%
A118: 108 | B118: Cement | C118: JKCEMENT | D118: 2023-08-31 | E118: 3200.50 | F118: 3215.50 | G118: 3173.00 | H118: 3145.50 | I118: 3103.00 | J118: 3243.00 | K118: 3285.50 | L118: 3313.00 | M118: 3258 | N118: 3188 | O118: 619750 | P118: 1%
A119: 109 | B119: Metals | C119: JSWSTEEL | D119: 2023-08-31 | E119: 783.30 | F119: 781.78 | G119: 777.37 | H119: 771.43 | I119: 767.02 | J119: 787.72 | K119: 792.13 | L119: 798.07 | M119: 786.2 | N119: 775.85 | O119: 18551700 | P119: -1%
A120: 110 | B120: Others | C120: JUBLFOOD | D120: 2023-08-31 | E120: 486.70 | F120: 487.72 | G120: 484.68 | H120: 482.67 | I120: 479.63 | J120: 489.73 | K120: 492.77 | L120: 494.78 | M120: 490.75 | N120: 485.7 | O120: 21298750 | P120: 8%
A121: 111 | B121: Banking | C121: KOTAKBANK | D121: 2023-08-31 | E121: 1780.55 | F121: 1784.22 | G121: 1774.43 | H121: 1768.32 | I121: 1758.53 | J121: 1790.33 | K121: 1800.12 | L121: 1806.23 | M121: 1794 | N121: 1778.1 | O121: 30174800 | P121: -2%
A122: 112 | B122: Finance | C122: L&TFH | D122: 2023-08-31 | E122: 123.60 | F122: 124.33 | G122: 122.52 | H122: 121.43 | I122: 119.62 | J122: 125.42 | K122: 127.23 | L122: 128.32 | M122: 126.15 | N122: 123.25 | O122: 71534784 | P122: 3%
A123: 113 | B123: Others | C123: LALPATHLAB | D123: 2023-08-31 | E123: 2174.95 | F123: 2178.83 | G123: 2167.72 | H123: 2160.48 | I123: 2149.37 | J123: 2186.07 | K123: 2197.18 | L123: 2204.42 | M123: 2189.95 | N123: 2171.6 | O123: 753900 | P123: -9%
A124: 114 | B124: Pharma | C124: LAURUSLABS | D124: 2023-08-31 | E124: 392.15 | F124: 391.08 | G124: 388.72 | H124: 385.28 | I124: 382.92 | J124: 394.52 | K124: 396.88 | L124: 400.32 | M124: 393.45 | N124: 387.65 | O124: 12503500 | P124: 0%
A125: 115 | B125: Finance | C125: LICHSGFIN | D125: 2023-08-31 | E125: 423.60 | F125: 422.88 | G125: 419.47 | H125: 415.33 | I125: 411.92 | J125: 427.02 | K125: 430.43 | L125: 434.57 | M125: 426.3 | N125: 418.75 | O125: 20554000 | P125: -2%
A126: 116 | B126: Capital_Goods | C126: LT | D126: 2023-08-31 | E126: 2712.45 | F126: 2706.73 | G126: 2697.72 | H126: 2682.98 | I126: 2673.97 | J126: 2721.47 | K126: 2730.48 | L126: 2745.22 | M126: 2715.75 | N126: 2692 | O126: 7959300 | P126: -5%
A127: 117 | B127: Technology | C127: LTIM | D127: 2023-08-31 | E127: 5141.90 | F127: 5149.85 | G127: 5118.50 | H127: 5095.10 | I127: 5063.75 | J127: 5173.25 | K127: 5204.60 | L127: 5228.00 | M127: 5181.2 | N127: 5126.45 | O127: 1717050 | P127: -2%
A128: 118 | B128: Technology | C128: LTTS | D128: 2023-08-31 | E128: 4357.10 | F128: 4374.30 | G128: 4333.50 | H128: 4309.90 | I128: 4269.10 | J128: 4397.90 | K128: 4438.70 | L128: 4462.30 | M128: 4415.1 | N128: 4350.7 | O128: 787000 | P128: -3%
A129: 119 | B129: Pharma | C129: LUPIN | D129: 2023-08-31 | E129: 1093.60 | F129: 1098.10 | G129: 1083.00 | H129: 1072.40 | I129: 1057.30 | J129: 1108.70 | K129: 1123.80 | L129: 1134.40 | M129: 1113.2 | N129: 1087.5 | O129: 6465100 | P129: -1%
A130: 120 | B130: Automobile | C130: M&M | D130: 2023-08-31 | E130: 1556.50 | F130: 1551.47 | G130: 1543.98 | H130: 1531.47 | I130: 1523.98 | J130: 1563.98 | K130: 1571.47 | L130: 1583.98 | M130: 1558.95 | N130: 1538.95 | O130: 14953400 | P130: -0%
A131: 121 | B131: Finance | C131: M&MFIN | D131: 2023-08-31 | E131: 291.85 | F131: 292.55 | G131: 289.80 | H131: 287.75 | I131: 285.00 | J131: 294.60 | K131: 297.35 | L131: 299.40 | M131: 295.3 | N131: 290.5 | O131: 41612000 | P131: 4%
A132: 122 | B132: Finance | C132: MANAPPURAM | D132: 2023-08-31 | E132: 145.00 | F132: 145.03 | G132: 142.17 | H132: 139.33 | I132: 136.47 | J132: 147.87 | K132: 150.73 | L132: 153.57 | M132: 147.9 | N132: 142.2 | O132: 63630000 | P132: -5%
A133: 123 | B133: FMCG | C133: MARICO | D133: 2023-08-31 | E133: 560.75 | F133: 558.90 | G133: 554.60 | H133: 548.45 | I133: 544.15 | J133: 565.05 | K133: 569.35 | L133: 575.50 | M133: 563.2 | N133: 552.75 | O133: 9804000 | P133: 1%
A134: 124 | B134: Automobile | C134: MARUTI | D134: 2023-08-31 | E134: 9630.25 | F134: 9608.40 | G134: 9519.80 | H134: 9409.35 | I134: 9320.75 | J134: 9718.85 | K134: 9807.45 | L134: 9917.90 | M134: 9697 | N134: 9497.95 | O134: 2817700 | P134: -0%
A135: 125 | B135: FMCG | C135: MCDOWELL-N | D135: 2023-08-31 | E135: 1004.60 | F135: 1005.55 | G135: 997.10 | H135: 989.60 | I135: 981.15 | J135: 1013.05 | K135: 1021.50 | L135: 1029.00 | M135: 1014 | N135: 998.05 | O135: 9843400 | P135: -2%
A136: 126 | B136: Others | C136: MCX | D136: 2023-08-31 | E136: 1609.20 | F136: 1612.88 | G136: 1590.97 | H136: 1572.73 | I136: 1550.82 | J136: 1631.12 | K136: 1653.03 | L136: 1671.27 | M136: 1634.8 | N136: 1594.65 | O136: 2988800 | P136: 3%
A137: 127 | B137: Pharma | C137: METROPOLIS | D137: 2023-08-31 | E137: 1337.85 | F137: 1344.30 | G137: 1328.60 | H137: 1319.35 | I137: 1303.65 | J137: 1353.55 | K137: 1369.25 | L137: 1378.50 | M137: 1360 | N137: 1335.05 | O137: 1864000 | P137: -6%
A138: 128 | B138: Finance | C138: MFSL | D138: 2023-08-31 | E138: 930.20 | F138: 931.55 | G138: 924.65 | H138: 919.10 | I138: 912.20 | J138: 937.10 | K138: 944.00 | L138: 949.55 | M138: 938.45 | N138: 926 | O138: 8345600 | P138: -5%
A139: 129 | B139: Oil_Gas | C139: MGL | D139: 2023-08-31 | E139: 1024.60 | F139: 1022.37 | G139: 1012.43 | H139: 1000.27 | I139: 990.33 | J139: 1034.53 | K139: 1044.47 | L139: 1056.63 | M139: 1032.3 | N139: 1010.2 | O139: 3124800 | P139: -3%
A140: 130 | B140: Automobile | C140: MOTHERSON | D140: 2023-08-31 | E140: 96.10 | F140: 95.97 | G140: 95.28 | H140: 94.47 | I140: 93.78 | J140: 96.78 | K140: 97.47 | L140: 98.28 | M140: 96.65 | N140: 95.15 | O140: 72022400 | P140: 4%
A141: 131 | B141: Technology | C141: MPHASIS | D141: 2023-08-31 | E141: 2315.60 | F141: 2322.85 | G141: 2298.55 | H141: 2281.50 | I141: 2257.20 | J141: 2339.90 | K141: 2364.20 | L141: 2381.25 | M141: 2347.15 | N141: 2305.8 | O141: 2622675 | P141: -3%
A142: 132 | B142: Automobile | C142: MRF | D142: 2023-08-31 | E142: 108650.75 | F142: 108520.13 | G142: 108180.62 | H142: 107710.48 | I142: 107370.97 | J142: 108990.27 | K142: 109329.78 | L142: 109799.92 | M142: 108859.65 | N142: 108050 | O142: 38820 | P142: 2%
A143: 133 | B143: Finance | C143: MUTHOOTFIN | D143: 2023-08-31 | E143: 1301.75 | F143: 1299.80 | G143: 1289.85 | H143: 1277.95 | I143: 1268.00 | J143: 1311.70 | K143: 1321.65 | L143: 1333.55 | M143: 1309.75 | N143: 1287.9 | O143: 7018000 | P143: 1%
A144: 134 | B144: Metals | C144: NATIONALUM | D144: 2023-08-31 | E144: 92.80 | F144: 92.20 | G144: 91.20 | H144: 89.60 | I144: 88.60 | J144: 93.80 | K144: 94.80 | L144: 96.40 | M144: 93.2 | N144: 90.6 | O144: 57480000 | P144: -2%
A145: 135 | B145: Others | C145: NAUKRI | D145: 2023-08-31 | E145: 4258.00 | F145: 4241.77 | G145: 4200.33 | H145: 4142.67 | I145: 4101.23 | J145: 4299.43 | K145: 4340.87 | L145: 4398.53 | M145: 4283.2 | N145: 4184.1 | O145: 1554750 | P145: -2%
A146: 136 | B146: Chemical | C146: NAVINFLUOR | D146: 2023-08-31 | E146: 4629.10 | F146: 4599.97 | G146: 4545.58 | H146: 4462.07 | I146: 4407.68 | J146: 4683.48 | K146: 4737.87 | L146: 4821.38 | M146: 4654.35 | N146: 4516.45 | O146: 853200 | P146: -4%
A147: 137 | B147: FMCG | C147: NESTLEIND | D147: 2023-08-31 | E147: 22039.00 | F147: 22010.10 | G147: 21920.40 | H147: 21801.80 | I147: 21712.10 | J147: 22128.70 | K147: 22218.40 | L147: 22337.00 | M147: 22099.8 | N147: 21891.5 | O147: 317160 | P147: 4%
A148: 138 | B148: Metals | C148: NMDC | D148: 2023-08-31 | E148: 122.85 | F148: 123.13 | G148: 122.12 | H148: 121.38 | I148: 120.37 | J148: 123.87 | K148: 124.88 | L148: 125.62 | M148: 124.15 | N148: 122.4 | O148: 95188500 | P148: 2%
A149: 139 | B149: Power | C149: NTPC | D149: 2023-08-31 | E149: 220.30 | F149: 219.87 | G149: 218.93 | H149: 217.57 | I149: 216.63 | J149: 221.23 | K149: 222.17 | L149: 223.53 | M149: 220.8 | N149: 218.5 | O149: 77322000 | P149: 7%
A150: 140 | B150: Realty | C150: OBEROIRLTY | D150: 2023-08-31 | E150: 1102.40 | F150: 1097.25 | G150: 1089.30 | H150: 1076.20 | I150: 1068.25 | J150: 1110.35 | K150: 1118.30 | L150: 1131.40 | M150: 1105.2 | N150: 1084.15 | O150: 6673800 | P150: 5%
A151: 141 | B151: Technology | C151: OFSS | D151: 2023-08-31 | E151: 4011.55 | F151: 4012.58 | G151: 3992.17 | H151: 3972.78 | I151: 3952.37 | J151: 4031.97 | K151: 4052.38 | L151: 4071.77 | M151: 4033 | N151: 3993.2 | O151: 228400 | P151: 1%
A152: 142 | B152: Oil_Gas | C152: ONGC | D152: 2023-08-31 | E152: 175.15 | F152: 175.13 | G152: 174.62 | H152: 174.08 | I152: 173.57 | J152: 175.67 | K152: 176.18 | L152: 176.72 | M152: 175.65 | N152: 174.6 | O152: 49922950 | P152: -1%
A153: 143 | B153: Textile | C153: PAGEIND | D153: 2023-08-31 | E153: 39584.30 | F153: 39689.57 | G153: 39389.23 | H153: 39194.17 | I153: 38893.83 | J153: 39884.63 | K153: 40184.97 | L153: 40380.03 | M153: 39989.9 | N153: 39494.5 | O153: 154050 | P153: -1%
A154: 144 | B154: Pharma | C154: PEL | D154: 2023-08-31 | E154: 1060.20 | F154: 1069.95 | G154: 1043.30 | H154: 1026.40 | I154: 999.75 | J154: 1086.85 | K154: 1113.50 | L154: 1130.40 | M154: 1096.6 | N154: 1053.05 | O154: 10678500 | P154: -5%
A155: 145 | B155: Technology | C155: PERSISTENT | D155: 2023-08-31 | E155: 5117.75 | F155: 5094.70 | G155: 5064.85 | H155: 5011.95 | I155: 4982.10 | J155: 5147.60 | K155: 5177.45 | L155: 5230.35 | M155: 5124.55 | N155: 5041.8 | O155: 1103725 | P155: -15%
A156: 146 | B156: Oil_Gas | C156: PETRONET | D156: 2023-08-31 | E156: 219.85 | F156: 219.65 | G156: 218.80 | H156: 217.75 | I156: 216.90 | J156: 220.70 | K156: 221.55 | L156: 222.60 | M156: 220.5 | N156: 218.6 | O156: 21069000 | P156: 0%
A157: 147 | B157: Finance | C157: PFC | D157: 2023-08-31 | E157: 270.10 | F157: 270.65 | G157: 267.90 | H157: 265.70 | I157: 262.95 | J157: 272.85 | K157: 275.60 | L157: 277.80 | M157: 273.4 | N157: 268.45 | O157: 55564400 | P157: -4%
A158: 148 | B158: FMCG | C158: PIDILITIND | D158: 2023-08-31 | E158: 2578.70 | F158: 2558.22 | G158: 2531.53 | H158: 2484.37 | I158: 2457.68 | J158: 2605.38 | K158: 2632.07 | L158: 2679.23 | M158: 2584.9 | N158: 2511.05 | O158: 2547750 | P158: -7%
A159: 149 | B159: Chemical | C159: PIIND | D159: 2023-08-31 | E159: 3705.40 | F159: 3694.95 | G159: 3625.85 | H159: 3546.30 | I159: 3477.20 | J159: 3774.50 | K159: 3843.60 | L159: 3923.15 | M159: 3764.05 | N159: 3615.4 | O159: 2276000 | P159: -0%
A160: 150 | B160: Banking | C160: PNB | D160: 2023-08-31 | E160: 63.00 | F160: 62.85 | G160: 62.55 | H160: 62.10 | I160: 61.80 | J160: 63.30 | K160: 63.60 | L160: 64.05 | M160: 63.15 | N160: 62.4 | O160: 275632000 | P160: -4%
A161: 151 | B161: Others | C161: POLYCAB | D161: 2023-08-31 | E161: 5028.75 | F161: 5055.70 | G161: 4988.45 | H161: 4948.15 | I161: 4880.90 | J161: 5096.00 | K161: 5163.25 | L161: 5203.55 | M161: 5122.95 | N161: 5015.4 | O161: 2087400 | P161: -3%
A162: 152 | B162: Power | C162: POWERGRID | D162: 2023-08-31 | E162: 250.60 | F162: 250.30 | G162: 247.90 | H162: 245.20 | I162: 242.80 | J162: 253.00 | K162: 255.40 | L162: 258.10 | M162: 252.7 | N162: 247.6 | O162: 40864500 | P162: -5%
A163: 153 | B163: Media | C163: PVRINOX | D163: 2023-08-31 | E163: 1751.15 | F163: 1751.15 | G163: 1739.45 | H163: 1727.75 | I163: 1716.05 | J163: 1762.85 | K163: 1774.55 | L163: 1786.25 | M163: 1762.85 | N163: 1739.45 | O163: 4192507 | P163: 2%
A164: 154 | B164: Cement | C164: RAMCOCEM | D164: 2023-08-31 | E164: 869.40 | F164: 872.37 | G164: 862.53 | H164: 855.67 | I164: 845.83 | J164: 879.23 | K164: 889.07 | L164: 895.93 | M164: 882.2 | N164: 865.5 | O164: 3554700 | P164: -0%
A165: 155 | B165: Banking | C165: RBLBANK | D165: 2023-08-31 | E165: 232.85 | F165: 232.85 | G165: 231.85 | H165: 230.85 | I165: 229.85 | J165: 233.85 | K165: 234.85 | L165: 235.85 | M165: 233.85 | N165: 231.85 | O165: 53065000 | P165: -2%
A166: 156 | B166: Power | C166: RECLTD | D166: 2023-08-31 | E166: 242.85 | F166: 242.95 | G166: 240.70 | H166: 238.55 | I166: 236.30 | J166: 245.10 | K166: 247.35 | L166: 249.50 | M166: 245.2 | N166: 240.8 | O166: 65744000 | P166: 3%
A167: 157 | B167: Oil_Gas | C167: RELIANCE | D167: 2023-08-31 | E167: 2422.45 | F167: 2428.28 | G167: 2404.67 | H167: 2386.88 | I167: 2363.27 | J167: 2446.07 | K167: 2469.68 | L167: 2487.47 | M167: 2451.9 | N167: 2410.5 | O167: 42606750 | P167: 4%
A168: 158 | B168: Metals | C168: SAIL | D168: 2023-08-31 | E168: 88.40 | F168: 88.05 | G168: 87.50 | H168: 86.60 | I168: 86.05 | J168: 88.95 | K168: 89.50 | L168: 90.40 | M168: 88.6 | N168: 87.15 | O168: 125744000 | P168: -3%
A169: 159 | B169: Banking | C169: SBICARD | D169: 2023-08-31 | E169: 826.75 | F169: 827.82 | G169: 823.03 | H169: 819.32 | I169: 814.53 | J169: 831.53 | K169: 836.32 | L169: 840.03 | M169: 832.6 | N169: 824.1 | O169: 9924000 | P169: 4%
A170: 160 | B170: Finance | C170: SBILIFE | D170: 2023-08-31 | E170: 1298.95 | F170: 1298.13 | G170: 1293.17 | H170: 1287.38 | I170: 1282.42 | J170: 1303.92 | K170: 1308.88 | L170: 1314.67 | M170: 1303.1 | N170: 1292.35 | O170: 8945250 | P170: 1%
A171: 161 | B171: Banking | C171: SBIN | D171: 2023-08-31 | E171: 574.80 | F171: 574.20 | G171: 572.60 | H171: 570.40 | I171: 568.80 | J171: 576.40 | K171: 578.00 | L171: 580.20 | M171: 575.8 | N171: 572 | O171: 98881500 | P171: -0%
A172: 162 | B172: Cement | C172: SHREECEM | D172: 2023-08-31 | E172: 24086.20 | F172: 24090.78 | G172: 23981.57 | H172: 23876.93 | I172: 23767.72 | J172: 24195.42 | K172: 24304.63 | L172: 24409.27 | M172: 24200 | N172: 23986.15 | O172: 199975 | P172: -6%
A173: 163 | B173: Capital_Goods | C173: SIEMENS | D173: 2023-08-31 | E173: 3858.25 | F173: 3857.53 | G173: 3840.57 | H173: 3822.88 | I173: 3805.92 | J173: 3875.22 | K173: 3892.18 | L173: 3909.87 | M173: 3874.5 | N173: 3839.85 | O173: 1929125 | P173: -4%
A174: 164 | B174: Textile | C174: SRF | D174: 2023-08-31 | E174: 2373.50 | F174: 2354.98 | G174: 2325.42 | H174: 2277.33 | I174: 2247.77 | J174: 2403.07 | K174: 2432.63 | L174: 2480.72 | M174: 2384.55 | N174: 2306.9 | O174: 3894375 | P174: -2%
A175: 165 | B175: Finance | C175: SHRIRAMFIN | D175: 2023-08-31 | E175: 1873.80 | F175: 1867.18 | G175: 1854.62 | H175: 1835.43 | I175: 1822.87 | J175: 1886.37 | K175: 1898.93 | L175: 1918.12 | M175: 1879.75 | N175: 1848 | O175: 6987000 | P175: -4%
A176: 166 | B176: Pharma | C176: SUNPHARMA | D176: 2023-08-31 | E176: 1112.15 | F176: 1114.78 | G176: 1104.97 | H176: 1097.78 | I176: 1087.97 | J176: 1121.97 | K176: 1131.78 | L176: 1138.97 | M176: 1124.6 | N176: 1107.6 | O176: 23648100 | P176: 0%
A177: 167 | B177: Media | C177: SUNTV | D177: 2023-08-31 | E177: 603.05 | F177: 601.25 | G177: 597.80 | H177: 592.55 | I177: 589.10 | J177: 606.50 | K177: 609.95 | L177: 615.20 | M177: 604.7 | N177: 596 | O177: 8982000 | P177: -3%
A178: 168 | B178: Pharma | C178: SYNGENE | D178: 2023-08-31 | E178: 768.35 | F178: 773.18 | G178: 762.37 | H178: 756.38 | I178: 745.57 | J178: 779.17 | K178: 789.98 | L178: 795.97 | M178: 784 | N178: 767.2 | O178: 4364000 | P178: -1%
A179: 169 | B179: Chemical | C179: TATACHEM | D179: 2023-08-31 | E179: 1069.60 | F179: 1063.20 | G179: 1047.40 | H179: 1025.20 | I179: 1009.40 | J179: 1085.40 | K179: 1101.20 | L179: 1123.40 | M179: 1079 | N179: 1041 | O179: 9381900 | P179: -9%
A180: 170 | B180: Telecom | C180: TATACOMM | D180: 2023-08-31 | E180: 1786.80 | F180: 1791.57 | G180: 1776.03 | H180: 1765.27 | I180: 1749.73 | J180: 1802.33 | K180: 1817.87 | L180: 1828.63 | M180: 1807.1 | N180: 1780.8 | O180: 5187000 | P180: 1%
A181: 171 | B181: FMCG | C181: TATACONSUM | D181: 2023-08-31 | E181: 836.60 | F181: 837.65 | G181: 833.70 | H181: 830.80 | I181: 826.85 | J181: 840.55 | K181: 844.50 | L181: 847.40 | M181: 841.6 | N181: 834.75 | O181: 10170000 | P181: -2%
A182: 172 | B182: Automobile | C182: TATAMOTORS | D182: 2023-08-31 | E182: 607.65 | F182: 607.32 | G182: 603.38 | H182: 599.12 | I182: 595.18 | J182: 611.58 | K182: 615.52 | L182: 619.78 | M182: 611.25 | N182: 603.05 | O182: 68169150 | P182: -0%
A183: 173 | B183: Power | C183: TATAPOWER | D183: 2023-08-31 | E183: 247.05 | F183: 246.97 | G183: 245.53 | H183: 244.02 | I183: 242.58 | J183: 248.48 | K183: 249.92 | L183: 251.43 | M183: 248.4 | N183: 245.45 | O183: 95168250 | P183: 0%
A184: 174 | B184: Metals | C184: TATASTEEL | D184: 2023-08-31 | E184: 119.70 | F184: 119.28 | G184: 118.22 | H184: 116.73 | I184: 115.67 | J184: 120.77 | K184: 121.83 | L184: 123.32 | M184: 120.35 | N184: 117.8 | O184: 232650000 | P184: 3%
A185: 175 | B185: Technology | C185: TCS | D185: 2023-08-31 | E185: 3370.55 | F185: 3372.50 | G185: 3360.30 | H185: 3350.05 | I185: 3337.85 | J185: 3382.75 | K185: 3394.95 | L185: 3405.20 | M185: 3384.7 | N185: 3362.25 | O185: 9791075 | P185: -1%
A186: 176 | B186: Technology | C186: TECHM | D186: 2023-08-31 | E186: 1197.15 | F186: 1196.70 | G186: 1186.55 | H186: 1175.95 | I186: 1165.80 | J186: 1207.30 | K186: 1217.45 | L186: 1228.05 | M186: 1206.85 | N186: 1186.1 | O186: 13669800 | P186: -1%
A187: 177 | B187: FMCG | C187: TITAN | D187: 2023-08-31 | E187: 3074.70 | F187: 3069.07 | G187: 3051.68 | H187: 3028.67 | I187: 3011.28 | J187: 3092.08 | K187: 3109.47 | L187: 3132.48 | M187: 3086.45 | N187: 3046.05 | O187: 5089875 | P187: -3%
A188: 178 | B188: Pharma | C188: TORNTPHARM | D188: 2023-08-31 | E188: 1960.55 | F188: 1957.33 | G188: 1946.12 | H188: 1931.68 | I188: 1920.47 | J188: 1971.77 | K188: 1982.98 | L188: 1997.42 | M188: 1968.55 | N188: 1942.9 | O188: 1551000 | P188: -6%
A189: 179 | B189: Others | C189: TRENT | D189: 2023-08-31 | E189: 2044.35 | F189: 2030.87 | G189: 2012.08 | H189: 1979.82 | I189: 1961.03 | J189: 2063.13 | K189: 2081.92 | L189: 2114.18 | M189: 2049.65 | N189: 1998.6 | O189: 4232400 | P189: 1%
A190: 180 | B190: Automobile | C190: TVSMOTOR | D190: 2023-08-31 | E190: 1382.55 | F190: 1371.78 | G190: 1353.82 | H190: 1325.08 | I190: 1307.12 | J190: 1400.52 | K190: 1418.48 | L190: 1447.22 | M190: 1389.75 | N190: 1343.05 | O190: 7884100 | P190: 7%
A191: 181 | B191: FMCG | C191: UBL | D191: 2023-08-31 | E191: 1526.05 | F191: 1526.50 | G191: 1518.55 | H191: 1511.05 | I191: 1503.10 | J191: 1534.00 | K191: 1541.95 | L191: 1549.45 | M191: 1534.45 | N191: 1519 | O191: 2419600 | P191: -0%
A192: 182 | B192: Cement | C192: ULTRACEMCO | D192: 2023-08-31 | E192: 8206.10 | F192: 8187.32 | G192: 8157.83 | H192: 8109.57 | I192: 8080.08 | J192: 8235.58 | K192: 8265.07 | L192: 8313.33 | M192: 8216.8 | N192: 8139.05 | O192: 1391000 | P192: -9%
A193: 183 | B193: Chemical | C193: UPL | D193: 2023-08-31 | E193: 598.70 | F193: 596.18 | G193: 590.67 | H193: 582.63 | I193: 577.12 | J193: 604.22 | K193: 609.73 | L193: 617.77 | M193: 601.7 | N193: 588.15 | O193: 36969400 | P193: -4%
A194: 184 | B194: Metals | C194: VEDL | D194: 2023-08-31 | E194: 236.90 | F194: 237.13 | G194: 235.37 | H194: 233.83 | I194: 232.07 | J194: 238.67 | K194: 240.43 | L194: 241.97 | M194: 238.9 | N194: 235.6 | O194: 88094000 | P194: 1%
A195: 185 | B195: Capital_Goods | C195: VOLTAS | D195: 2023-08-31 | E195: 849.40 | F195: 843.00 | G195: 832.90 | H195: 816.40 | I195: 806.30 | J195: 859.50 | K195: 869.60 | L195: 886.10 | M195: 853.1 | N195: 826.5 | O195: 7517400 | P195: -3%
A196: 186 | B196: Technology | C196: WIPRO | D196: 2023-08-31 | E196: 408.20 | F196: 409.32 | G196: 406.08 | H196: 403.97 | I196: 400.73 | J196: 411.43 | K196: 414.67 | L196: 416.78 | M196: 412.55 | N196: 407.2 | O196: 38133000 | P196: 2%
A197: 187 | B197: Media | C197: ZEEL | D197: 2023-08-31 | E197: 265.20 | F197: 265.58 | G197: 262.02 | H197: 258.83 | I197: 255.27 | J197: 268.77 | K197: 272.33 | L197: 275.52 | M197: 269.15 | N197: 262.4 | O197: 92451000 | P197: -0%
A198: 188 | B198: Pharma | C198: ZYDUSLIFE | D198: 2023-08-31 | E198: 632.65 | F198: 634.15 | G198: 628.85 | H198: 625.05 | I198: 619.75 | J198: 637.95 | K198: 643.25 | L198: 647.05 | M198: 639.45 | N198: 630.35 | O198: 7853400 | P198: -2%
A199: 189
A200: 190
A201: 191
A202: 192
A203: 193
A204: 194
A221: Pivot Point: This is trigger point for intra day buy/sell based on the price range of the previous day
A222: As per the tool,the trader should take BUY position just above Pivot and keep the stop loss of pivot point and the first target would be Resistance 1(R1)
... 13 more rows

Sheet Cash Intra
M5: Back to Main Page
A6: FOR INTRA DAY TRADING | K6: =Main!B10 -> 2023-08-30
A8: Sr.no | C8: CLOSE RATE | D8: Pivot Point | E8: Supports | H8: Resistances
E9: S1 | F9: S2 | G9: S3 | H9: R1 | I9: R2 | J9: R3 | K9: HIGH | L9: LOW | M9: Total Trade Quanity in Lakhs
A10: 1 | B10: Nifty 50 | C10: 19342.65 | D10: 19343.22 | E10: 19308.53 | F10: 19274.42 | G10: 19239.73 | H10: 19377.33 | I10: 19412.02 | J10: 19446.13 | K10: 19377.90 | L10: 19309.10
A11: 2 | B11: Nifty Bank | C11: 44495.25 | D11: 44532.68 | E11: 44392.37 | F11: 44289.48 | G11: 44149.17 | H11: 44635.57 | I11: 44775.88 | J11: 44878.77 | K11: 44673.00 | L11: 44429.80
A12: 3 | B12: Nifty CPSE | C12: 3523.45 | D12: 3521.50 | E12: 3512.65 | F12: 3501.85 | G12: 3493.00 | H12: 3532.30 | I12: 3541.15 | J12: 3551.95 | K12: 3530.35 | L12: 3510.70
A13: 4 | B13: Nifty Infra | C13: 5981.15 | D13: 5976.22 | E13: 5961.98 | F13: 5942.82 | G13: 5928.58 | H13: 5995.38 | I13: 6009.62 | J13: 6028.78 | K13: 5990.45 | L13: 5957.05
A14: 5 | B14: Nifty IT | C14: 30866.05 | D14: 30876.38 | E14: 30774.52 | F14: 30682.98 | G14: 30581.12 | H14: 30967.92 | I14: 31069.78 | J14: 31161.32 | K14: 30978.25 | L14: 30784.85
A15: 6 | B15: Nifty PSE | C15: 5525.60 | D15: 5523.12 | E15: 5511.93 | F15: 5498.27 | G15: 5487.08 | H15: 5536.78 | I15: 5547.97 | J15: 5561.63 | K15: 5534.30 | L15: 5509.45
A16: 7 | B16: Nifty Midcap 50 | C16: 11109.35 | D16: 11108.13 | E16: 11087.17 | F16: 11064.98 | G16: 11044.02 | H16: 11130.32 | I16: 11151.28 | J16: 11173.47 | K16: 11129.10 | L16: 11085.95
A17: 8 | B17: ABB | C17: 4318.85 | D17: 4297.63 | E17: 4265.32 | F17: 4211.78 | G17: 4179.47 | H17: 4351.17 | I17: 4383.48 | J17: 4437.02 | K17: 4329.95 | L17: 4244.1 | M17: 1.87724
A18: 9 | B18: ABBOTINDIA | C18: 23414.95 | D18: 23368.57 | E18: 23262.23 | F18: 23109.52 | G18: 23003.18 | H18: 23521.28 | I18: 23627.62 | J18: 23780.33 | K18: 23474.9 | L18: 23215.85 | M18: 0.11307
A19: 10 | B19: ABCAPITAL | C19: 180.4 | D19: 180.25 | E19: 179.05 | F19: 177.70 | G19: 176.50 | H19: 181.60 | I19: 182.80 | J19: 184.15 | K19: 181.45 | L19: 178.9 | M19: 15.04934
A20: 11 | B20: ABFRL | C20: 215.2 | D20: 215.93 | E20: 213.77 | F20: 212.33 | G20: 210.17 | H20: 217.37 | I20: 219.53 | J20: 220.97 | K20: 218.1 | L20: 214.5 | M20: 11.02667
A21: 12 | B21: ACC | C21: 1981.8 | D21: 1985.07 | E21: 1972.78 | F21: 1963.77 | G21: 1951.48 | H21: 1994.08 | I21: 2006.37 | J21: 2015.38 | K21: 1997.35 | L21: 1976.05 | M21: 3.52542
A22: 13 | B22: ADANIENT | C22: 2506.45 | D22: 2496.03 | E22: 2455.42 | F22: 2404.38 | G22: 2363.77 | H22: 2547.07 | I22: 2587.68 | J22: 2638.72 | K22: 2536.65 | L22: 2445 | M22: 48.0215
A23: 14 | B23: ADANIGREEN | C23: 974.5 | D23: 974.18 | E23: 963.37 | F23: 952.23 | G23: 941.42 | H23: 985.32 | I23: 996.13 | J23: 1007.27 | K23: 985 | L23: 963.05 | M23: 14.69569
A24: 15 | B24: ADANIPORTS | C24: 823.55 | D24: 818.13 | E24: 805.47 | F24: 787.38 | G24: 774.72 | H24: 836.22 | I24: 848.88 | J24: 866.97 | K24: 830.8 | L24: 800.05 | M24: 59.35085
A25: 16 | B25: ADANIPOWER | C25: 332.7 | D25: 329.15 | E25: 319.45 | F25: 306.20 | G25: 296.50 | H25: 342.40 | I25: 352.10 | J25: 365.35 | K25: 338.85 | L25: 315.9 | M25: 252.17118
A26: 17 | B26: ALKEM | C26: 3702.2 | D26: 3710.92 | E26: 3682.83 | F26: 3663.47 | G26: 3635.38 | H26: 3730.28 | I26: 3758.37 | J26: 3777.73 | K26: 3739 | L26: 3691.55 | M26: 2.3505
A27: 18 | B27: AMBUJACEM | C27: 441.2 | D27: 441.72 | E27: 435.93 | F27: 430.67 | G27: 424.88 | H27: 446.98 | I27: 452.77 | J27: 458.03 | K27: 447.5 | L27: 436.45 | M27: 40.51913
A28: 19 | B28: APOLLOHOSP | C28: 4878.4 | D28: 4894.10 | E28: 4843.20 | F28: 4808.00 | G28: 4757.10 | H28: 4929.30 | I28: 4980.20 | J28: 5015.40 | K28: 4945 | L28: 4858.9 | M28: 5.91619
A29: 20 | B29: APOLLOTYRE | C29: 389.65 | D29: 391.97 | E29: 386.18 | F29: 382.72 | G29: 376.93 | H29: 395.43 | I29: 401.22 | J29: 404.68 | K29: 397.75 | L29: 388.5 | M29: 23.58611
A30: 21 | B30: ASHOKLEY | C30: 188.1 | D30: 188.53 | E30: 187.17 | F30: 186.23 | G30: 184.87 | H30: 189.47 | I30: 190.83 | J30: 191.77 | K30: 189.9 | L30: 187.6 | M30: 167.70194
A31: 22 | B31: ASIANPAINT | C31: 3285.7 | D31: 3276.58 | E31: 3264.17 | F31: 3242.63 | G31: 3230.22 | H31: 3298.12 | I31: 3310.53 | J31: 3332.07 | K31: 3289 | L31: 3255.05 | M31: 5.33163
A32: 23 | B32: ASTRAL | C32: 1962.4 | D32: 1976.13 | E32: 1942.27 | F32: 1922.13 | G32: 1888.27 | H32: 1996.27 | I32: 2030.13 | J32: 2050.27 | K32: 2010 | L32: 1956 | M32: 12.60238
A33: 24 | B33: ATGL | C33: 656.8 | D33: 657.20 | E33: 650.95 | F33: 645.10 | G33: 638.85 | H33: 663.05 | I33: 669.30 | J33: 675.15 | K33: 663.45 | L33: 651.35 | M33: 5.33823
A34: 25 | B34: AUBANK | C34: 731.45 | D34: 733.82 | E34: 727.63 | F34: 723.82 | G34: 717.63 | H34: 737.63 | I34: 743.82 | J34: 747.63 | K34: 740 | L34: 730 | M34: 4.53151
A35: 26 | B35: AUROPHARMA | C35: 828.8 | D35: 832.48 | E35: 822.47 | F35: 816.13 | G35: 806.12 | H35: 838.82 | I35: 848.83 | J35: 855.17 | K35: 842.5 | L35: 826.15 | M35: 14.90604
A36: 27 | B36: AWL | C36: 370.4 | D36: 371.18 | E36: 367.52 | F36: 364.63 | G36: 360.97 | H36: 374.07 | I36: 377.73 | J36: 380.62 | K36: 374.85 | L36: 368.3 | M36: 13.94066
A37: 28 | B37: AXISBANK | C37: 980.7 | D37: 983.07 | E37: 975.13 | F37: 969.57 | G37: 961.63 | H37: 988.63 | I37: 996.57 | J37: 1002.13 | K37: 991 | L37: 977.5 | M37: 81.14141
A38: 29 | B38: BAJAJ-AUTO | C38: 4664.55 | D38: 4646.87 | E38: 4622.73 | F38: 4580.92 | G38: 4556.78 | H38: 4688.68 | I38: 4712.82 | J38: 4754.63 | K38: 4671 | L38: 4605.05 | M38: 3.20941
A39: 30 | B39: BAJAJFINSV | C39: 1503.45 | D39: 1504.90 | E39: 1495.80 | F39: 1488.15 | G39: 1479.05 | H39: 1512.55 | I39: 1521.65 | J39: 1529.30 | K39: 1514 | L39: 1497.25 | M39: 13.77001
A40: 31 | B40: BAJAJHLDNG | C40: 7369.95 | D40: 7355.33 | E40: 7310.67 | F40: 7251.38 | G40: 7206.72 | H40: 7414.62 | I40: 7459.28 | J40: 7518.57 | K40: 7400 | L40: 7296.05 | M40: 0.12812
A41: 32 | B41: BAJFINANCE | C41: 7293.35 | D41: 7280.10 | E41: 7249.25 | F41: 7205.15 | G41: 7174.30 | H41: 7324.20 | I41: 7355.05 | J41: 7399.15 | K41: 7310.95 | L41: 7236 | M41: 14.18305
A42: 33 | B42: BALKRISIND | C42: 2363.3 | D42: 2367.50 | E42: 2351.40 | F42: 2339.50 | G42: 2323.40 | H42: 2379.40 | I42: 2395.50 | J42: 2407.40 | K42: 2383.6 | L42: 2355.6 | M42: 0.52529
A43: 34 | B43: BANDHANBNK | C43: 235.8 | D43: 235.57 | E43: 234.43 | F43: 233.07 | G43: 231.93 | H43: 236.93 | I43: 238.07 | J43: 239.43 | K43: 236.7 | L43: 234.2 | M43: 40.01719
A44: 35 | B44: BANKBARODA | C44: 191.15 | D44: 190.65 | E44: 189.70 | F44: 188.25 | G44: 187.30 | H44: 192.10 | I44: 193.05 | J44: 194.50 | K44: 191.6 | L44: 189.2 | M44: 75.38838
A45: 36 | B45: BANKINDIA | C45: 86.35 | D45: 86.67 | E45: 85.73 | F45: 85.12 | G45: 84.18 | H45: 87.28 | I45: 88.22 | J45: 88.83 | K45: 87.6 | L45: 86.05 | M45: 72.58228
A46: 37 | B46: BATAINDIA | C46: 1690.45 | D46: 1695.87 | E46: 1679.73 | F46: 1669.02 | G46: 1652.88 | H46: 1706.58 | I46: 1722.72 | J46: 1733.43 | K46: 1712 | L46: 1685.15 | M46: 2.49717
A47: 38 | B47: BEL | C47: 134.55 | D47: 134.83 | E47: 133.82 | F47: 133.08 | G47: 132.07 | H47: 135.57 | I47: 136.58 | J47: 137.32 | K47: 135.85 | L47: 134.1 | M47: 111.184
A48: 39 | B48: BERGEPAINT | C48: 720.45 | D48: 717.78 | E48: 710.67 | F48: 700.88 | G48: 693.77 | H48: 727.57 | I48: 734.68 | J48: 744.47 | K48: 724.9 | L48: 708 | M48: 9.671
A49: 40 | B49: BHARATFORG | C49: 1070.1 | D49: 1066.03 | E49: 1056.07 | F49: 1042.03 | G49: 1032.07 | H49: 1080.07 | I49: 1090.03 | J49: 1104.07 | K49: 1076 | L49: 1052 | M49: 17.515
A50: 41 | B50: BHARTIARTL | C50: 855.2 | D50: 857.90 | E50: 845.80 | F50: 836.40 | G50: 824.30 | H50: 867.30 | I50: 879.40 | J50: 888.80 | K50: 870 | L50: 848.5 | M50: 140.64286
A51: 42 | B51: BHEL | C51: 114.65 | D51: 113.10 | E51: 110.60 | F51: 106.55 | G51: 104.05 | H51: 117.15 | I51: 119.65 | J51: 123.70 | K51: 115.6 | L51: 109.05 | M51: 659.79986
A52: 43 | B52: BIOCON | C52: 259.15 | D52: 259.28 | E52: 257.42 | F52: 255.68 | G52: 253.82 | H52: 261.02 | I52: 262.88 | J52: 264.62 | K52: 261.15 | L52: 257.55 | M52: 15.35249
A53: 44 | B53: BOSCHLTD | C53: 18628.75 | D53: 18590.42 | E53: 18510.38 | F53: 18392.02 | G53: 18311.98 | H53: 18708.78 | I53: 18788.82 | J53: 18907.18 | K53: 18670.45 | L53: 18472.05 | M53: 0.26259
A54: 45 | B54: BPCL | C54: 356.8 | D54: 356.73 | E54: 354.87 | F54: 352.93 | G54: 351.07 | H54: 358.67 | I54: 360.53 | J54: 362.47 | K54: 358.6 | L54: 354.8 | M54: 31.26869
A55: 46 | B55: BRITANNIA | C55: 4530.75 | D55: 4518.95 | E55: 4497.90 | F55: 4465.05 | G55: 4444.00 | H55: 4551.80 | I55: 4572.85 | J55: 4605.70 | K55: 4540 | L55: 4486.1 | M55: 3.40257
A56: 47 | B56: CANBK | C56: 326.6 | D56: 327.15 | E56: 324.95 | F56: 323.30 | G56: 321.10 | H56: 328.80 | I56: 331.00 | J56: 332.65 | K56: 329.35 | L56: 325.5 | M56: 31.52872
A57: 48 | B57: CGPOWER | C57: 406.8 | D57: 408.18 | E57: 403.72 | F57: 400.63 | G57: 396.17 | H57: 411.27 | I57: 415.73 | J57: 418.82 | K57: 412.65 | L57: 405.1 | M57: 10.68508
A58: 49 | B58: CHOLAFIN | C58: 1099.05 | D58: 1093.22 | E58: 1083.43 | F58: 1067.82 | G58: 1058.03 | H58: 1108.83 | I58: 1118.62 | J58: 1134.23 | K58: 1103 | L58: 1077.6 | M58: 20.51824
A59: 50 | B59: CIPLA | C59: 1229.75 | D59: 1234.23 | E59: 1222.82 | F59: 1215.88 | G59: 1204.47 | H59: 1241.17 | I59: 1252.58 | J59: 1259.52 | K59: 1245.65 | L59: 1227.3 | M59: 12.09087
A60: 51 | B60: COALINDIA | C60: 229.95 | D60: 229.70 | E60: 229.00 | F60: 228.05 | G60: 227.35 | H60: 230.65 | I60: 231.35 | J60: 232.30 | K60: 230.4 | L60: 228.75 | M60: 31.1256
A61: 52 | B61: COFORGE | C61: 5225.6 | D61: 5195.70 | E61: 5118.05 | F61: 5010.50 | G61: 4932.85 | H61: 5303.25 | I61: 5380.90 | J61: 5488.45 | K61: 5273.35 | L61: 5088.15 | M61: 10.18566
A62: 53 | B62: COLPAL | C62: 1958.75 | D62: 1956.92 | E62: 1943.83 | F62: 1928.92 | G62: 1915.83 | H62: 1971.83 | I62: 1984.92 | J62: 1999.83 | K62: 1970 | L62: 1942 | M62: 6.44187
A63: 54 | B63: CONCOR | C63: 669.95 | D63: 666.65 | E63: 661.85 | F63: 653.75 | G63: 648.95 | H63: 674.75 | I63: 679.55 | J63: 687.65 | K63: 671.45 | L63: 658.55 | M63: 4.33534
A64: 55 | B64: COROMANDEL | C64: 1083.7 | D64: 1086.52 | E64: 1075.98 | F64: 1068.27 | G64: 1057.73 | H64: 1094.23 | I64: 1104.77 | J64: 1112.48 | K64: 1097.05 | L64: 1078.8 | M64: 2.46925
A65: 56 | B65: CROMPTON | C65: 302.35 | D65: 302.33 | E65: 299.57 | F65: 296.78 | G65: 294.02 | H65: 305.12 | I65: 307.88 | J65: 310.67 | K65: 305.1 | L65: 299.55 | M65: 21.26
A66: 57 | B66: CUMMINSIND | C66: 1730.05 | D66: 1727.75 | E66: 1717.50 | F66: 1704.95 | G66: 1694.70 | H66: 1740.30 | I66: 1750.55 | J66: 1763.10 | K66: 1738 | L66: 1715.2 | M66: 11.44087
A67: 58 | B67: DABUR | C67: 550.15 | D67: 550.05 | E67: 546.20 | F67: 542.25 | G67: 538.40 | H67: 554.00 | I67: 557.85 | J67: 561.80 | K67: 553.9 | L67: 546.1 | M67: 26.42866
A68: 59 | B68: DALBHARAT | C68: 2055.15 | D68: 2048.38 | E68: 2037.22 | F68: 2019.28 | G68: 2008.12 | H68: 2066.32 | I68: 2077.48 | J68: 2095.42 | K68: 2059.55 | L68: 2030.45 | M68: 1.92646
A69: 60 | B69: DEEPAKNTR | C69: 2170.2 | D69: 2132.07 | E69: 2079.73 | F69: 1989.27 | G69: 1936.93 | H69: 2222.53 | I69: 2274.87 | J69: 2365.33 | K69: 2184.4 | L69: 2041.6 | M69: 29.95207
A70: 61 | B70: DELHIVERY | C70: 419.85 | D70: 420.02 | E70: 414.08 | F70: 408.32 | G70: 402.38 | H70: 425.78 | I70: 431.72 | J70: 437.48 | K70: 425.95 | L70: 414.25 | M70: 5.87519
A71: 62 | B71: DEVYANI | C71: 191.2 | D71: 192.05 | E71: 189.30 | F71: 187.40 | G71: 184.65 | H71: 193.95 | I71: 196.70 | J71: 198.60 | K71: 194.8 | L71: 190.15 | M71: 4.49145
A72: 63 | B72: DIVISLAB | C72: 3657.1 | D72: 3651.98 | E72: 3630.17 | F72: 3603.23 | G72: 3581.42 | H72: 3678.92 | I72: 3700.73 | J72: 3727.67 | K72: 3673.8 | L72: 3625.05 | M72: 2.39552
A73: 64 | B73: DIXON | C73: 4917.05 | D73: 4926.57 | E73: 4881.53 | F73: 4846.02 | G73: 4800.98 | H73: 4962.08 | I73: 5007.12 | J73: 5042.63 | K73: 4971.6 | L73: 4891.05 | M73: 2.76227
A74: 65 | B74: DLF | C74: 494 | D74: 491.60 | E74: 485.40 | F74: 476.80 | G74: 470.60 | H74: 500.20 | I74: 506.40 | J74: 515.00 | K74: 497.8 | L74: 483 | M74: 59.17819
A75: 66 | B75: DMART | C75: 3664.35 | D75: 3651.45 | E75: 3627.90 | F75: 3591.45 | G75: 3567.90 | H75: 3687.90 | I75: 3711.45 | J75: 3747.90 | K75: 3675 | L75: 3615 | M75: 6.15528
A76: 67 | B76: DRREDDY | C76: 5723.8 | D76: 5741.77 | E76: 5697.03 | F76: 5670.27 | G76: 5625.53 | H76: 5768.53 | I76: 5813.27 | J76: 5840.03 | K76: 5786.5 | L76: 5715 | M76: 6.51617
A77: 68 | B77: EICHERMOT | C77: 3355.35 | D77: 3357.93 | E77: 3345.87 | F77: 3336.38 | G77: 3324.32 | H77: 3367.42 | I77: 3379.48 | J77: 3388.97 | K77: 3370 | L77: 3348.45 | M77: 2.71577
A78: 69 | B78: ESCORTS | C78: 3045.4 | D78: 3036.30 | E78: 3016.60 | F78: 2987.80 | G78: 2968.10 | H78: 3065.10 | I78: 3084.80 | J78: 3113.60 | K78: 3056 | L78: 3007.5 | M78: 2.48348
A79: 70 | B79: FEDERALBNK | C79: 144.45 | D79: 144.97 | E79: 143.48 | F79: 142.52 | G79: 141.03 | H79: 145.93 | I79: 147.42 | J79: 148.38 | K79: 146.45 | L79: 144 | M79: 172.76351
A80: 71 | B80: FLUOROCHEM | C80: 3021.55 | D80: 2999.50 | E80: 2934.20 | F80: 2846.85 | G80: 2781.55 | H80: 3086.85 | I80: 3152.15 | J80: 3239.50 | K80: 3064.8 | L80: 2912.15 | M80: 2.97869
A81: 72 | B81: FORTIS | C81: 334.5 | D81: 333.57 | E81: 331.43 | F81: 328.37 | G81: 326.23 | H81: 336.63 | I81: 338.77 | J81: 341.83 | K81: 335.7 | L81: 330.5 | M81: 21.16853
A82: 73 | B82: GAIL | C82: 117.2 | D82: 117.25 | E82: 116.60 | F82: 116.00 | G82: 115.35 | H82: 117.85 | I82: 118.50 | J82: 119.10 | K82: 117.9 | L82: 116.65 | M82: 82.5723
A83: 74 | B83: GLAND | C83: 1574.15 | D83: 1586.42 | E83: 1554.83 | F83: 1535.52 | G83: 1503.93 | H83: 1605.73 | I83: 1637.32 | J83: 1656.63 | K83: 1618 | L83: 1567.1 | M83: 3.79168
A84: 75 | B84: GODREJCP | C84: 1013.35 | D84: 1017.67 | E84: 1002.33 | F84: 991.32 | G84: 975.98 | H84: 1028.68 | I84: 1044.02 | J84: 1055.03 | K84: 1033 | L84: 1006.65 | M84: 6.35507
A85: 76 | B85: GODREJPROP | C85: 1644.5 | D85: 1641.43 | E85: 1635.22 | F85: 1625.93 | G85: 1619.72 | H85: 1650.72 | I85: 1656.93 | J85: 1666.22 | K85: 1647.65 | L85: 1632.15 | M85: 6.17075
A86: 77 | B86: GRASIM | C86: 1801.8 | D86: 1795.95 | E86: 1784.95 | F86: 1768.10 | G86: 1757.10 | H86: 1812.80 | I86: 1823.80 | J86: 1840.65 | K86: 1806.95 | L86: 1779.1 | M86: 6.40851
A87: 78 | B87: GUJGASLTD | C87: 458.85 | D87: 457.88 | E87: 455.57 | F87: 452.28 | G87: 449.97 | H87: 461.17 | I87: 463.48 | J87: 466.77 | K87: 460.2 | L87: 454.6 | M87: 13.4827
A88: 79 | B88: HAL | C88: 3897.35 | D88: 3900.50 | E88: 3872.00 | F88: 3846.65 | G88: 3818.15 | H88: 3925.85 | I88: 3954.35 | J88: 3979.70 | K88: 3929 | L88: 3875.15 | M88: 9.60661
A89: 80 | B89: HAVELLS | C89: 1338.9 | D89: 1331.00 | E89: 1319.20 | F89: 1299.50 | G89: 1287.70 | H89: 1350.70 | I89: 1362.50 | J89: 1382.20 | K89: 1342.8 | L89: 1311.3 | M89: 7.18024
A90: 81 | B90: HCLTECH | C90: 1157.55 | D90: 1156.38 | E90: 1149.47 | F90: 1141.38 | G90: 1134.47 | H90: 1164.47 | I90: 1171.38 | J90: 1179.47 | K90: 1163.3 | L90: 1148.3 | M90: 17.94652
A91: 82 | B91: HDFCAMC | C91: 2476.55 | D91: 2499.42 | E91: 2447.33 | F91: 2418.12 | G91: 2366.03 | H91: 2528.63 | I91: 2580.72 | J91: 2609.93 | K91: 2551.5 | L91: 2470.2 | M91: 7.01712
A92: 83 | B92: HDFCBANK | C92: 1590.3 | D92: 1588.13 | E92: 1583.62 | F92: 1576.93 | G92: 1572.42 | H92: 1594.82 | I92: 1599.33 | J92: 1606.02 | K92: 1592.65 | L92: 1581.45 | M92: 177.69466
A93: 84 | B93: HDFCLIFE | C93: 634.9 | D93: 632.32 | E93: 628.63 | F93: 622.37 | G93: 618.68 | H93: 638.58 | I93: 642.27 | J93: 648.53 | K93: 636 | L93: 626.05 | M93: 36.56025
A94: 85 | B94: HEROMOTOCO | C94: 2988.15 | D94: 2973.07 | E94: 2953.13 | F94: 2918.12 | G94: 2898.18 | H94: 3008.08 | I94: 3028.02 | J94: 3063.03 | K94: 2993 | L94: 2938.05 | M94: 5.90653
A95: 86 | B95: HINDALCO | C95: 456.05 | D95: 453.97 | E95: 449.43 | F95: 442.82 | G95: 438.28 | H95: 460.58 | I95: 465.12 | J95: 471.73 | K95: 458.5 | L95: 447.35 | M95: 60.62408
A96: 87 | B96: HINDPETRO | C96: 263.9 | D96: 264.60 | E96: 262.50 | F96: 261.10 | G96: 259.00 | H96: 266.00 | I96: 268.10 | J96: 269.50 | K96: 266.7 | L96: 263.2 | M96: 27.17899
A97: 88 | B97: HINDUNILVR | C97: 2526.15 | D97: 2535.72 | E97: 2512.53 | F97: 2498.92 | G97: 2475.73 | H97: 2549.33 | I97: 2572.52 | J97: 2586.13 | K97: 2558.9 | L97: 2522.1 | M97: 9.58564
A98: 89 | B98: HINDZINC | C98: 315.4 | D98: 316.02 | E98: 314.18 | F98: 312.97 | G98: 311.13 | H98: 317.23 | I98: 319.07 | J98: 320.28 | K98: 317.85 | L98: 314.8 | M98: 2.19232
A99: 90 | B99: HONAUT | C99: 40428.35 | D99: 40415.98 | E99: 40220.07 | F99: 40011.78 | G99: 39815.87 | H99: 40624.27 | I99: 40820.18 | J99: 41028.47 | K99: 40611.9 | L99: 40207.7 | M99: 0.00821
A100: 91 | B100: ICICIBANK | C100: 967.75 | D100: 970.22 | E100: 963.18 | F100: 958.62 | G100: 951.58 | H100: 974.78 | I100: 981.82 | J100: 986.38 | K100: 977.25 | L100: 965.65 | M100: 132.09913
A101: 92 | B101: ICICIGI | C101: 1321.2 | D101: 1324.03 | E101: 1308.17 | F101: 1295.13 | G101: 1279.27 | H101: 1337.07 | I101: 1352.93 | J101: 1365.97 | K101: 1339.9 | L101: 1311 | M101: 3.96612
A102: 93 | B102: ICICIPRULI | C102: 558.05 | D102: 554.92 | E102: 549.63 | F102: 541.22 | G102: 535.93 | H102: 563.33 | I102: 568.62 | J102: 577.03 | K102: 560.2 | L102: 546.5 | M102: 21.04744
A103: 94 | B103: IDEA | C103: 8.9 | D103: 9.05 | E103: 8.70 | F103: 8.50 | G103: 8.15 | H103: 9.25 | I103: 9.60 | J103: 9.80 | K103: 9.4 | L103: 8.85 | M103: 3590.55328
A104: 95 | B104: IDFCFIRSTB | C104: 90.3 | D104: 90.78 | E104: 89.62 | F104: 88.93 | G104: 87.77 | H104: 91.47 | I104: 92.63 | J104: 93.32 | K104: 91.95 | L104: 90.1 | M104: 314.88791
A105: 96 | B105: IGL | C105: 462.65 | D105: 457.67 | E105: 450.48 | F105: 438.32 | G105: 431.13 | H105: 469.83 | I105: 477.02 | J105: 489.18 | K105: 464.85 | L105: 445.5 | M105: 45.38976
A106: 97 | B106: INDHOTEL | C106: 393.25 | D106: 393.93 | E106: 391.62 | F106: 389.98 | G106: 387.67 | H106: 395.57 | I106: 397.88 | J106: 399.52 | K106: 396.25 | L106: 392.3 | M106: 11.7567
A107: 98 | B107: INDIANB | C107: 391.75 | D107: 394.25 | E107: 385.45 | F107: 379.15 | G107: 370.35 | H107: 400.55 | I107: 409.35 | J107: 415.65 | K107: 403.05 | L107: 387.95 | M107: 15.44185
A108: 99 | B108: INDIGO | C108: 2485.4 | D108: 2490.48 | E108: 2470.47 | F108: 2455.53 | G108: 2435.52 | H108: 2505.42 | I108: 2525.43 | J108: 2540.37 | K108: 2510.5 | L108: 2475.55 | M108: 6.15712
A109: 100 | B109: INDUSINDBK | C109: 1400.15 | D109: 1402.10 | E109: 1390.50 | F109: 1380.85 | G109: 1369.25 | H109: 1411.75 | I109: 1423.35 | J109: 1433.00 | K109: 1413.7 | L109: 1392.45 | M109: 18.31565
A110: 101 | B110: INDUSTOWER | C110: 174.95 | D110: 175.33 | E110: 172.87 | F110: 170.78 | G110: 168.32 | H110: 177.42 | I110: 179.88 | J110: 181.97 | K110: 177.8 | L110: 173.25 | M110: 115.56508
A111: 102 | B111: INFY | C111: 1417.65 | D111: 1419.12 | E111: 1413.83 | F111: 1410.02 | G111: 1404.73 | H111: 1422.93 | I111: 1428.22 | J111: 1432.03 | K111: 1424.4 | L111: 1415.3 | M111: 30.74444
A112: 103 | B112: IOC | C112: 91.9 | D112: 91.97 | E112: 91.53 | F112: 91.17 | G112: 90.73 | H112: 92.33 | I112: 92.77 | J112: 93.13 | K112: 92.4 | L112: 91.6 | M112: 65.10089
A113: 104 | B113: IPCALAB | C113: 888.4 | D113: 892.02 | E113: 882.38 | F113: 876.37 | G113: 866.73 | H113: 898.03 | I113: 907.67 | J113: 913.68 | K113: 901.65 | L113: 886 | M113: 7.217
A114: 105 | B114: IRCTC | C114: 672.5 | D114: 676.58 | E114: 667.17 | F114: 661.83 | G114: 652.42 | H114: 681.92 | I114: 691.33 | J114: 696.67 | K114: 686 | L114: 671.25 | M114: 29.00392
A115: 106 | B115: IRFC | C115: 49.5 | D115: 49.77 | E115: 48.68 | F115: 47.87 | G115: 46.78 | H115: 50.58 | I115: 51.67 | J115: 52.48 | K115: 50.85 | L115: 48.95 | M115: 1073.31968
A116: 107 | B116: ITC | C116: 440.1 | D116: 441.10 | E116: 438.20 | F116: 436.30 | G116: 433.40 | H116: 443.00 | I116: 445.90 | J116: 447.80 | K116: 444 | L116: 439.2 | M116: 94.80003
A117: 108 | B117: JINDALSTEL | C117: 676.3 | D117: 671.33 | E117: 662.97 | F117: 649.63 | G117: 641.27 | H117: 684.67 | I117: 693.03 | J117: 706.37 | K117: 679.7 | L117: 658 | M117: 32.00989
A118: 109 | B118: JSWENERGY | C118: 366.2 | D118: 359.07 | E118: 349.23 | F118: 332.27 | G118: 322.43 | H118: 376.03 | I118: 385.87 | J118: 402.83 | K118: 368.9 | L118: 342.1 | M118: 76.86633
A119: 110 | B119: JSWSTEEL | C119: 782.65 | D119: 781.37 | E119: 776.83 | F119: 771.02 | G119: 766.48 | H119: 787.18 | I119: 791.72 | J119: 797.53 | K119: 785.9 | L119: 775.55 | M119: 18.07893
A120: 111 | B120: JUBLFOOD | C120: 485.25 | D120: 486.73 | E120: 483.07 | F120: 480.88 | G120: 477.22 | H120: 488.92 | I120: 492.58 | J120: 494.77 | K120: 490.4 | L120: 484.55 | M120: 21.21039
A121: 112 | B121: KOTAKBANK | C121: 1783.1 | D121: 1786.55 | E121: 1775.55 | F121: 1768.00 | G121: 1757.00 | H121: 1794.10 | I121: 1805.10 | J121: 1812.65 | K121: 1797.55 | L121: 1779 | M121: 27.08692
A122: 113 | B122: L&TFH | C122: 123.55 | D122: 124.32 | E122: 122.48 | F122: 121.42 | G122: 119.58 | H122: 125.38 | I122: 127.22 | J122: 128.28 | K122: 126.15 | L122: 123.25 | M122: 40.48568
A123: 114 | B123: LALPATHLAB | C123: 2171.45 | D123: 2179.40 | E123: 2158.85 | F123: 2146.25 | G123: 2125.70 | H123: 2192.00 | I123: 2212.55 | J123: 2225.15 | K123: 2199.95 | L123: 2166.8 | M123: 0.68805
A124: 115 | B124: LAURUSLABS | C124: 391.05 | D124: 390.83 | E124: 388.72 | F124: 386.38 | G124: 384.27 | H124: 393.17 | I124: 395.28 | J124: 397.62 | K124: 392.95 | L124: 388.5 | M124: 10.89965
A125: 116 | B125: LICHSGFIN | C125: 423.3 | D125: 422.93 | E125: 419.37 | F125: 415.43 | G125: 411.87 | H125: 426.87 | I125: 430.43 | J125: 434.37 | K125: 426.5 | L125: 419 | M125: 25.75915
A126: 117 | B126: LICI | C126: 651.9 | D126: 654.30 | E126: 648.10 | F126: 644.30 | G126: 638.10 | H126: 658.10 | I126: 664.30 | J126: 668.10 | K126: 660.5 | L126: 650.5 | M126: 4.89634
A127: 118 | B127: LT | C127: 2718.95 | D127: 2712.45 | E127: 2702.80 | F127: 2686.65 | G127: 2677.00 | H127: 2728.60 | I127: 2738.25 | J127: 2754.40 | K127: 2722.1 | L127: 2696.3 | M127: 11.0183
A128: 119 | B128: LTIM | C128: 5136.75 | D128: 5148.93 | E128: 5109.92 | F128: 5083.08 | G128: 5044.07 | H128: 5175.77 | I128: 5214.78 | J128: 5241.62 | K128: 5187.95 | L128: 5122.1 | M128: 1.96122
A129: 120 | B129: LTTS | C129: 4349.35 | D129: 4366.47 | E129: 4322.93 | F129: 4296.52 | G129: 4252.98 | H129: 4392.88 | I129: 4436.42 | J129: 4462.83 | K129: 4410 | L129: 4340.05 | M129: 1.2977
A130: 121 | B130: LUPIN | C130: 1097.7 | D130: 1101.67 | E130: 1086.38 | F130: 1075.07 | G130: 1059.78 | H130: 1112.98 | I130: 1128.27 | J130: 1139.58 | K130: 1116.95 | L130: 1090.35 | M130: 10.74379
A131: 122 | B131: M&M | C131: 1560.85 | D131: 1555.07 | E131: 1545.78 | F131: 1530.72 | G131: 1521.43 | H131: 1570.13 | I131: 1579.42 | J131: 1594.48 | K131: 1564.35 | L131: 1540 | M131: 13.25882
A132: 123 | B132: M&MFIN | C132: 293.15 | D132: 293.30 | E132: 291.25 | F132: 289.35 | G132: 287.30 | H132: 295.20 | I132: 297.25 | J132: 299.15 | K132: 295.35 | L132: 291.4 | M132: 19.01965
A133: 124 | B133: MANKIND | C133: 1782.7 | D133: 1784.13 | E133: 1774.57 | F133: 1766.43 | G133: 1756.87 | H133: 1792.27 | I133: 1801.83 | J133: 1809.97 | K133: 1793.7 | L133: 1776 | M133: 1.32419
A134: 125 | B134: MARICO | C134: 562.5 | D134: 559.43 | E134: 555.27 | F134: 548.03 | G134: 543.87 | H134: 566.67 | I134: 570.83 | J134: 578.07 | K134: 563.6 | L134: 552.2 | M134: 12.75303
A135: 126 | B135: MARUTI | C135: 9621.25 | D135: 9604.00 | E135: 9523.25 | F135: 9425.25 | G135: 9344.50 | H135: 9702.00 | I135: 9782.75 | J135: 9880.75 | K135: 9684.75 | L135: 9506 | M135: 3.17224
A136: 127 | B136: MAXHEALTH | C136: 562.1 | D136: 563.97 | E136: 558.08 | F136: 554.07 | G136: 548.18 | H136: 567.98 | I136: 573.87 | J136: 577.88 | K136: 569.85 | L136: 559.95 | M136: 20.57981
A137: 128 | B137: MCDOWELL-N | C137: 1003.45 | D137: 1006.62 | E137: 996.83 | F137: 990.22 | G137: 980.43 | H137: 1013.23 | I137: 1023.02 | J137: 1029.63 | K137: 1016.4 | L137: 1000 | M137: 7.99395
A138: 129 | B138: MFSL | C138: 929.95 | D138: 929.92 | E138: 922.93 | F138: 915.92 | G138: 908.93 | H138: 936.93 | I138: 943.92 | J138: 950.93 | K138: 936.9 | L138: 922.9 | M138: 9.30921
A139: 130 | B139: MOTHERSON | C139: 96.45 | D139: 96.17 | E139: 95.68 | F139: 94.92 | G139: 94.43 | H139: 96.93 | I139: 97.42 | J139: 98.18 | K139: 96.65 | L139: 95.4 | M139: 78.55857
A140: 131 | B140: MPHASIS | C140: 2311 | D140: 2318.15 | E140: 2294.10 | F140: 2277.20 | G140: 2253.15 | H140: 2335.05 | I140: 2359.10 | J140: 2376.00 | K140: 2342.2 | L140: 2301.25 | M140: 5.69342
A141: 132 | B141: MRF | C141: 108812.5 | D141: 108687.78 | E141: 108375.57 | F141: 107938.63 | G141: 107626.42 | H141: 109124.72 | I141: 109436.93 | J141: 109873.87 | K141: 109000 | L141: 108250.85 | M141: 0.02244
A142: 133 | B142: MSUMI | C142: 59.15 | D142: 59.48 | E142: 58.77 | F142: 58.38 | G142: 57.67 | H142: 59.87 | I142: 60.58 | J142: 60.97 | K142: 60.2 | L142: 59.1 | M142: 58.97771
A143: 134 | B143: MUTHOOTFIN | C143: 1298.95 | D143: 1297.98 | E143: 1285.97 | F143: 1272.98 | G143: 1260.97 | H143: 1310.97 | I143: 1322.98 | J143: 1335.97 | K143: 1310 | L143: 1285 | M143: 7.86931
A144: 135 | B144: NAUKRI | C144: 4261.35 | D144: 4245.45 | E144: 4205.90 | F144: 4150.45 | G144: 4110.90 | H144: 4300.90 | I144: 4340.45 | J144: 4395.90 | K144: 4285 | L144: 4190 | M144: 2.51351
A145: 136 | B145: NAVINFLUOR | C145: 4624.9 | D145: 4597.63 | E145: 4547.27 | F145: 4469.63 | G145: 4419.27 | H145: 4675.27 | I145: 4725.63 | J145: 4803.27 | K145: 4648 | L145: 4520 | M145: 4.52419
A146: 137 | B146: NESTLEIND | C146: 22063 | D146: 22064.27 | E146: 21948.73 | F146: 21834.47 | G146: 21718.93 | H146: 22178.53 | I146: 22294.07 | J146: 22408.33 | K146: 22179.8 | L146: 21950 | M146: 0.52428
A147: 138 | B147: NHPC | C147: 51.05 | D147: 50.98 | E147: 50.67 | F147: 50.28 | G147: 49.97 | H147: 51.37 | I147: 51.68 | J147: 52.07 | K147: 51.3 | L147: 50.6 | M147: 151.20359
A148: 139 | B148: NMDC | C148: 122.8 | D148: 123.18 | E148: 122.17 | F148: 121.53 | G148: 120.52 | H148: 123.82 | I148: 124.83 | J148: 125.47 | K148: 124.2 | L148: 122.55 | M148: 124.96387
A149: 140 | B149: NTPC | C149: 221.1 | D149: 220.37 | E149: 218.98 | F149: 216.87 | G149: 215.48 | H149: 222.48 | I149: 223.87 | J149: 225.98 | K149: 221.75 | L149: 218.25 | M149: 87.99235
A150: 141 | B150: NYKAA | C150: 133.4 | D150: 133.80 | E150: 132.10 | F150: 130.80 | G150: 129.10 | H150: 135.10 | I150: 136.80 | J150: 138.10 | K150: 135.5 | L150: 132.5 | M150: 40.5145
A151: 142 | B151: OBEROIRLTY | C151: 1099.85 | D151: 1095.45 | E151: 1085.90 | F151: 1071.95 | G151: 1062.40 | H151: 1109.40 | I151: 1118.95 | J151: 1132.90 | K151: 1105 | L151: 1081.5 | M151: 5.52972
A152: 143 | B152: OFSS | C152: 4004.5 | D152: 4008.57 | E152: 3987.18 | F152: 3969.87 | G152: 3948.48 | H152: 4025.88 | I152: 4047.27 | J152: 4064.58 | K152: 4029.95 | L152: 3991.25 | M152: 0.35715
A153: 144 | B153: OIL | C153: 277.4 | D153: 278.27 | E153: 275.13 | F153: 272.87 | G153: 269.73 | H153: 280.53 | I153: 283.67 | J153: 285.93 | K153: 281.4 | L153: 276 | M153: 13.32736
A154: 145 | B154: ONGC | C154: 175.7 | D154: 175.58 | E154: 175.07 | F154: 174.43 | G154: 173.92 | H154: 176.22 | I154: 176.73 | J154: 177.37 | K154: 176.1 | L154: 174.95 | M154: 45.96468
A155: 146 | B155: PAGEIND | C155: 39530.6 | D155: 39617.85 | E155: 39315.70 | F155: 39100.80 | G155: 38798.65 | H155: 39832.75 | I155: 40134.90 | J155: 40349.80 | K155: 39920 | L155: 39402.95 | M155: 0.07652
A156: 147 | B156: PATANJALI | C156: 1219.2 | D156: 1229.70 | E156: 1204.40 | F156: 1189.60 | G156: 1164.30 | H156: 1244.50 | I156: 1269.80 | J156: 1284.60 | K156: 1255 | L156: 1214.9 | M156: 1.70194
A157: 148 | B157: PAYTM | C157: 852.9 | D157: 861.30 | E157: 841.60 | F157: 830.30 | G157: 810.60 | H157: 872.60 | I157: 892.30 | J157: 903.60 | K157: 881 | L157: 850 | M157: 47.31257
A158: 149 | B158: PEL | C158: 1060.1 | D158: 1068.87 | E158: 1044.73 | F158: 1029.37 | G158: 1005.23 | H158: 1084.23 | I158: 1108.37 | J158: 1123.73 | K158: 1093 | L158: 1053.5 | M158: 43.21121
A159: 150 | B159: PERSISTENT | C159: 5106.35 | D159: 5088.82 | E159: 5058.83 | F159: 5011.32 | G159: 4981.33 | H159: 5136.33 | I159: 5166.32 | J159: 5213.83 | K159: 5118.8 | L159: 5041.3 | M159: 2.32983
A160: 151 | B160: PETRONET | C160: 219.95 | D160: 219.58 | E160: 218.57 | F160: 217.18 | G160: 216.17 | H160: 220.97 | I160: 221.98 | J160: 223.37 | K160: 220.6 | L160: 218.2 | M160: 6.62137
A161: 152 | B161: PFC | C161: 270 | D161: 270.77 | E161: 267.73 | F161: 265.47 | G161: 262.43 | H161: 273.03 | I161: 276.07 | J161: 278.33 | K161: 273.8 | L161: 268.5 | M161: 172.89883
A162: 153 | B162: PGHH | C162: 15890.7 | D162: 16064.10 | E162: 15528.20 | F162: 15165.70 | G162: 14629.80 | H162: 16426.60 | I162: 16962.50 | J162: 17325.00 | K162: 16600 | L162: 15701.6 | M162: 0.18999
A163: 154 | B163: PIDILITIND | C163: 2581.95 | D163: 2562.37 | E163: 2536.03 | F163: 2490.12 | G163: 2463.78 | H163: 2608.28 | I163: 2634.62 | J163: 2680.53 | K163: 2588.7 | L163: 2516.45 | M163: 5.66393
A164: 155 | B164: PIIND | C164: 3703.1 | D164: 3695.65 | E164: 3626.30 | F164: 3549.50 | G164: 3480.15 | H164: 3772.45 | I164: 3841.80 | J164: 3918.60 | K164: 3765 | L164: 3618.85 | M164: 3.71015
A165: 156 | B165: PNB | C165: 62.95 | D165: 62.85 | E165: 62.60 | F165: 62.25 | G165: 62.00 | H165: 63.20 | I165: 63.45 | J165: 63.80 | K165: 63.1 | L165: 62.5 | M165: 227.24327
A166: 157 | B166: POLICYBZR | C166: 761.95 | D166: 762.68 | E166: 757.77 | F166: 753.58 | G166: 748.67 | H166: 766.87 | I166: 771.78 | J166: 775.97 | K166: 767.6 | L166: 758.5 | M166: 3.0394
A167: 158 | B167: POLYCAB | C167: 5020.55 | D167: 5051.72 | E167: 4976.83 | F167: 4933.12 | G167: 4858.23 | H167: 5095.43 | I167: 5170.32 | J167: 5214.03 | K167: 5126.6 | L167: 5008 | M167: 4.25772
A168: 159 | B168: POONAWALLA | C168: 410.6 | D168: 414.73 | E168: 405.02 | F168: 399.43 | G168: 389.72 | H168: 420.32 | I168: 430.03 | J168: 435.62 | K168: 424.45 | L168: 409.15 | M168: 20.0909
A169: 160 | B169: POWERGRID | C169: 251.15 | D169: 250.92 | E169: 248.83 | F169: 246.52 | G169: 244.43 | H169: 253.23 | I169: 255.32 | J169: 257.63 | K169: 253 | L169: 248.6 | M169: 92.72491
A170: 161 | B170: PRESTIGE | C170: 572.9 | D170: 572.42 | E170: 567.78 | F170: 562.67 | G170: 558.03 | H170: 577.53 | I170: 582.17 | J170: 587.28 | K170: 577.05 | L170: 567.3 | M170: 2.09182
A171: 162 | B171: RAMCOCEM | C171: 869.65 | D171: 873.87 | E171: 862.73 | F171: 855.82 | G171: 844.68 | H171: 880.78 | I171: 891.92 | J171: 898.83 | K171: 885 | L171: 866.95 | M171: 4.11142
A172: 163 | B172: RECLTD | C172: 244.35 | D172: 244.30 | E172: 241.60 | F172: 238.85 | G172: 236.15 | H172: 247.05 | I172: 249.75 | J172: 252.50 | K172: 247 | L172: 241.55 | M172: 186.58395
A173: 164 | B173: RELIANCE | C173: 2420.35 | D173: 2427.32 | E173: 2401.18 | F173: 2382.02 | G173: 2355.88 | H173: 2446.48 | I173: 2472.62 | J173: 2491.78 | K173: 2453.45 | L173: 2408.15 | M173: 84.38322
A174: 165 | B174: SAIL | C174: 88.45 | D174: 88.10 | E174: 87.60 | F174: 86.75 | G174: 86.25 | H174: 88.95 | I174: 89.45 | J174: 90.30 | K174: 88.6 | L174: 87.25 | M174: 119.95479
A175: 166 | B175: SBICARD | C175: 824.55 | D175: 825.85 | E175: 820.70 | F175: 816.85 | G175: 811.70 | H175: 829.70 | I175: 834.85 | J175: 838.70 | K175: 831 | L175: 822 | M175: 11.87456
A176: 167 | B176: SBILIFE | C176: 1297.2 | D176: 1296.28 | E176: 1290.92 | F176: 1284.63 | G176: 1279.27 | H176: 1302.57 | I176: 1307.93 | J176: 1314.22 | K176: 1301.65 | L176: 1290 | M176: 10.11094
A177: 168 | B177: SBIN | C177: 574.85 | D177: 574.33 | E177: 572.37 | F177: 569.88 | G177: 567.92 | H177: 576.82 | I177: 578.78 | J177: 581.27 | K177: 576.3 | L177: 571.85 | M177: 131.44855
A178: 169 | B178: SHREECEM | C178: 24130.2 | D178: 24102.05 | E178: 24036.15 | F178: 23942.10 | G178: 23876.20 | H178: 24196.10 | I178: 24262.00 | J178: 24356.05 | K178: 24167.95 | L178: 24008 | M178: 0.15323
A179: 170 | B179: SHRIRAMFIN | C179: 1872.25 | D179: 1865.68 | E179: 1853.37 | F179: 1834.48 | G179: 1822.17 | H179: 1884.57 | I179: 1896.88 | J179: 1915.77 | K179: 1878 | L179: 1846.8 | M179: 5.83981
A180: 171 | B180: SIEMENS | C180: 3865.35 | D180: 3867.28 | E180: 3849.57 | F180: 3833.78 | G180: 3816.07 | H180: 3883.07 | I180: 3900.78 | J180: 3916.57 | K180: 3885 | L180: 3851.5 | M180: 3.13378
A181: 172 | B181: SONACOMS | C181: 579.95 | D181: 583.92 | E181: 574.13 | F181: 568.32 | G181: 558.53 | H181: 589.73 | I181: 599.52 | J181: 605.33 | K181: 593.7 | L181: 578.1 | M181: 11.90928
A182: 173 | B182: SRF | C182: 2374.35 | D182: 2357.53 | E182: 2328.07 | F182: 2281.78 | G182: 2252.32 | H182: 2403.82 | I182: 2433.28 | J182: 2479.57 | K182: 2387 | L182: 2311.25 | M182: 11.62898
A183: 174 | B183: SUNPHARMA | C183: 1111.6 | D183: 1114.37 | E183: 1103.68 | F183: 1095.77 | G183: 1085.08 | H183: 1122.28 | I183: 1132.97 | J183: 1140.88 | K183: 1125.05 | L183: 1106.45 | M183: 17.49707
A184: 175 | B184: SUNTV | C184: 604.2 | D184: 602.30 | E184: 597.20 | F184: 590.20 | G184: 585.10 | H184: 609.30 | I184: 614.40 | J184: 621.40 | K184: 607.4 | L184: 595.3 | M184: 10.50849
A185: 176 | B185: SYNGENE | C185: 768.5 | D185: 772.63 | E185: 762.37 | F185: 756.23 | G185: 745.97 | H185: 778.77 | I185: 789.03 | J185: 795.17 | K185: 782.9 | L185: 766.5 | M185: 5.58831
A186: 177 | B186: TATACHEM | C186: 1066.9 | D186: 1061.30 | E186: 1045.60 | F186: 1024.30 | G186: 1008.60 | H186: 1082.60 | I186: 1098.30 | J186: 1119.60 | K186: 1077 | L186: 1040 | M186: 35.55138
A187: 178 | B187: TATACOMM | C187: 1788.1 | D187: 1791.58 | E187: 1778.17 | F187: 1768.23 | G187: 1754.82 | H187: 1801.52 | I187: 1814.93 | J187: 1824.87 | K187: 1805 | L187: 1781.65 | M187: 5.22338
A188: 179 | B188: TATACONSUM | C188: 838.25 | D188: 839.40 | E188: 834.85 | F188: 831.45 | G188: 826.90 | H188: 842.80 | I188: 847.35 | J188: 850.75 | K188: 843.95 | L188: 836 | M188: 6.06053
A189: 180 | B189: TATAELXSI | C189: 7383.35 | D189: 7353.45 | E189: 7309.90 | F189: 7236.45 | G189: 7192.90 | H189: 7426.90 | I189: 7470.45 | J189: 7543.90 | K189: 7397 | L189: 7280 | M189: 1.10039
A190: 181 | B190: TATAMOTORS | C190: 607.15 | D190: 607.08 | E190: 603.67 | F190: 600.18 | G190: 596.77 | H190: 610.57 | I190: 613.98 | J190: 617.47 | K190: 610.5 | L190: 603.6 | M190: 69.56667
A191: 182 | B191: TATAPOWER | C191: 246.9 | D191: 246.78 | E191: 245.07 | F191: 243.23 | G191: 241.52 | H191: 248.62 | I191: 250.33 | J191: 252.17 | K191: 248.5 | L191: 244.95 | M191: 72.67365
A192: 183 | B192: TATASTEEL | C192: 119.55 | D192: 119.15 | E192: 118.15 | F192: 116.75 | G192: 115.75 | H192: 120.55 | I192: 121.55 | J192: 122.95 | K192: 120.15 | L192: 117.75 | M192: 360.38317
A193: 184 | B193: TCS | C193: 3376.15 | D193: 3376.90 | E193: 3364.25 | F193: 3352.35 | G193: 3339.70 | H193: 3388.80 | I193: 3401.45 | J193: 3413.35 | K193: 3389.55 | L193: 3365 | M193: 9.44517
A194: 185 | B194: TECHM | C194: 1198 | D194: 1198.05 | E194: 1188.20 | F194: 1178.40 | G194: 1168.55 | H194: 1207.85 | I194: 1217.70 | J194: 1227.50 | K194: 1207.9 | L194: 1188.25 | M194: 14.19344
A195: 186 | B195: TIINDIA | C195: 2864.75 | D195: 2877.07 | E195: 2845.68 | F195: 2826.62 | G195: 2795.23 | H195: 2896.13 | I195: 2927.52 | J195: 2946.58 | K195: 2908.45 | L195: 2858 | M195: 0.77633
A196: 187 | B196: TITAN | C196: 3079.4 | D196: 3071.13 | E196: 3052.27 | F196: 3025.13 | G196: 3006.27 | H196: 3098.27 | I196: 3117.13 | J196: 3144.27 | K196: 3090 | L196: 3044 | M196: 4.82639
A197: 188 | B197: TORNTPHARM | C197: 1958.8 | D197: 1959.60 | E197: 1945.20 | F197: 1931.60 | G197: 1917.20 | H197: 1973.20 | I197: 1987.60 | J197: 2001.20 | K197: 1974 | L197: 1946 | M197: 3.42802
A198: 189 | B198: TORNTPOWER | C198: 665.75 | D198: 665.25 | E198: 655.50 | F198: 645.25 | G198: 635.50 | H198: 675.50 | I198: 685.25 | J198: 695.50 | K198: 675 | L198: 655 | M198: 1.67642
A199: 190 | B199: TRENT | C199: 2049.3 | D199: 2034.33 | E199: 2015.97 | F199: 1982.63 | G199: 1964.27 | H199: 2067.67 | I199: 2086.03 | J199: 2119.37 | K199: 2052.7 | L199: 2001 | M199: 3.52814
A200: 191 | B200: TRIDENT | C200: 36.95 | D200: 37.12 | E200: 36.73 | F200: 36.52 | G200: 36.13 | H200: 37.33 | I200: 37.72 | J200: 37.93 | K200: 37.5 | L200: 36.9 | M200: 180.22866
A201: 192 | B201: TTML | C201: 88.3 | D201: 89.62 | E201: 86.43 | F201: 84.57 | G201: 81.38 | H201: 91.48 | I201: 94.67 | J201: 96.53 | K201: 92.8 | L201: 87.75 | M201: 132.67512
A202: 193 | B202: TVSMOTOR | C202: 1380.6 | D202: 1370.80 | E202: 1352.85 | F202: 1325.10 | G202: 1307.15 | H202: 1398.55 | I202: 1416.50 | J202: 1444.25 | K202: 1388.75 | L202: 1343.05 | M202: 12.31116
A203: 194 | B203: UBL | C203: 1526.65 | D203: 1524.93 | E203: 1517.72 | F203: 1508.78 | G203: 1501.57 | H203: 1533.87 | I203: 1541.08 | J203: 1550.02 | K203: 1532.15 | L203: 1516 | M203: 1.19631
A204: 195 | B204: ULTRACEMCO | C204: 8199.7 | D204: 8180.95 | E204: 8143.90 | F204: 8088.10 | G204: 8051.05 | H204: 8236.75 | I204: 8273.80 | J204: 8329.60 | K204: 8218 | L204: 8125.15 | M204: 2.30713
A205: 196 | B205: UNIONBANK | C205: 86.25 | D205: 87.58 | E205: 83.67 | F205: 81.08 | G205: 77.17 | H205: 90.17 | I205: 94.08 | J205: 96.67 | K205: 91.5 | L205: 85 | M205: 733.44683
... 28 more rows

Sheet MidCap Intra
L5: Back To Main Page
A6: FOR INTRA DAY TRADING | K6: =Main!B10 -> 2023-08-30
A9: Sr.no | B9: Scrip | C9: CLOSE RATE | D9: Pivot Point | E9: Supports | H9: Resistances
E10: S1 | F10: S2 | G10: S3 | H10: R1 | I10: R2 | J10: R3 | K10: HIGH | L10: LOW | M10: Total Trade Quanity in Lakhs
A11: 1 | B11: 360ONE | C11: 507.05 | D11: 506.35 | E11: 500.70 | F11: 494.35 | G11: 488.70 | H11: 512.70 | I11: 518.35 | J11: 524.70 | K11: 512 | L11: 500 | M11: 1.19137
A12: 2 | B12: 3MINDIA | C12: 31581.15 | D12: 31319.07 | E12: 30649.13 | F12: 29717.12 | G12: 29047.18 | H12: 32251.08 | I12: 32921.02 | J12: 33853.03 | K12: 31989 | L12: 30387.05 | M12: 0.06072
A13: 3 | B13: AARTIDRUGS | C13: 553.4 | D13: 547.35 | E13: 536.05 | F13: 518.70 | G13: 507.40 | H13: 564.70 | I13: 576.00 | J13: 593.35 | K13: 558.65 | L13: 530 | M13: 4.81599
A14: 4 | B14: AARTIIND | C14: 481.3 | D14: 475.42 | E14: 466.83 | F14: 452.37 | G14: 443.78 | H14: 489.88 | I14: 498.47 | J14: 512.93 | K14: 484 | L14: 460.95 | M14: 39.14344
A15: 5 | B15: AAVAS | C15: 1601.1 | D15: 1600.72 | E15: 1591.43 | F15: 1581.77 | G15: 1572.48 | H15: 1610.38 | I15: 1619.67 | J15: 1629.33 | K15: 1610 | L15: 1591.05 | M15: 2.68971
A16: 6 | B16: ABB | C16: 4318.85 | D16: 4297.63 | E16: 4265.32 | F16: 4211.78 | G16: 4179.47 | H16: 4351.17 | I16: 4383.48 | J16: 4437.02 | K16: 4329.95 | L16: 4244.1 | M16: 1.87724
A17: 7 | B17: ABBOTINDIA | C17: 23414.95 | D17: 23368.57 | E17: 23262.23 | F17: 23109.52 | G17: 23003.18 | H17: 23521.28 | I17: 23627.62 | J17: 23780.33 | K17: 23474.9 | L17: 23215.85 | M17: 0.11307
A18: 8 | B18: ACC | C18: 1981.8 | D18: 1985.07 | E18: 1972.78 | F18: 1963.77 | G18: 1951.48 | H18: 1994.08 | I18: 2006.37 | J18: 2015.38 | K18: 1997.35 | L18: 1976.05 | M18: 3.52542
A19: 9 | B19: ADANIENT | C19: 2506.45 | D19: 2496.03 | E19: 2455.42 | F19: 2404.38 | G19: 2363.77 | H19: 2547.07 | I19: 2587.68 | J19: 2638.72 | K19: 2536.65 | L19: 2445 | M19: 48.0215
A20: 10 | B20: ADANIGREEN | C20: 974.5 | D20: 974.18 | E20: 963.37 | F20: 952.23 | G20: 941.42 | H20: 985.32 | I20: 996.13 | J20: 1007.27 | K20: 985 | L20: 963.05 | M20: 14.69569
A21: 11 | B21: ADANIPORTS | C21: 823.55 | D21: 818.13 | E21: 805.47 | F21: 787.38 | G21: 774.72 | H21: 836.22 | I21: 848.88 | J21: 866.97 | K21: 830.8 | L21: 800.05 | M21: 59.35085
A22: 12 | B22: ADANIPOWER | C22: 332.7 | D22: 329.15 | E22: 319.45 | F22: 306.20 | G22: 296.50 | H22: 342.40 | I22: 352.10 | J22: 365.35 | K22: 338.85 | L22: 315.9 | M22: 252.17118
A23: 13 | B23: ATGL | C23: 656.8 | D23: 657.20 | E23: 650.95 | F23: 645.10 | G23: 638.85 | H23: 663.05 | I23: 669.30 | J23: 675.15 | K23: 663.45 | L23: 651.35 | M23: 5.33823
A24: 14 | B24: AWL | C24: 370.4 | D24: 371.18 | E24: 367.52 | F24: 364.63 | G24: 360.97 | H24: 374.07 | I24: 377.73 | J24: 380.62 | K24: 374.85 | L24: 368.3 | M24: 13.94066
A25: 15 | B25: ABCAPITAL | C25: 180.4 | D25: 180.25 | E25: 179.05 | F25: 177.70 | G25: 176.50 | H25: 181.60 | I25: 182.80 | J25: 184.15 | K25: 181.45 | L25: 178.9 | M25: 15.04934
A26: 16 | B26: ABFRL | C26: 215.2 | D26: 215.93 | E26: 213.77 | F26: 212.33 | G26: 210.17 | H26: 217.37 | I26: 219.53 | J26: 220.97 | K26: 218.1 | L26: 214.5 | M26: 11.02667
A27: 17 | B27: AEGISCHEM | C27: 369.85 | D27: 370.62 | E27: 365.23 | F27: 360.62 | G27: 355.23 | H27: 375.23 | I27: 380.62 | J27: 385.23 | K27: 376 | L27: 366 | M27: 1.97978
A28: 18 | B28: AETHER | C28: 1044.7 | D28: 1046.60 | E28: 1039.25 | F28: 1033.80 | G28: 1026.45 | H28: 1052.05 | I28: 1059.40 | J28: 1064.85 | K28: 1053.95 | L28: 1041.15 | M28: 0.87917
A29: 19 | B29: AFFLE | C29: 1087.9 | D29: 1089.02 | E29: 1081.08 | F29: 1074.27 | G29: 1066.33 | H29: 1095.83 | I29: 1103.77 | J29: 1110.58 | K29: 1096.95 | L29: 1082.2 | M29: 1.3662
A30: 20 | B30: AIAENG | C30: 3675.15 | D30: 3671.95 | E30: 3643.40 | F30: 3611.65 | G30: 3583.10 | H30: 3703.70 | I30: 3732.25 | J30: 3764.00 | K30: 3700.5 | L30: 3640.2 | M30: 1.28437
A31: 21 | B31: AJANTPHARM | C31: 1724.65 | D31: 1718.40 | E31: 1703.65 | F31: 1682.65 | G31: 1667.90 | H31: 1739.40 | I31: 1754.15 | J31: 1775.15 | K31: 1733.15 | L31: 1697.4 | M31: 0.90717
A32: 22 | B32: APLLTD | C32: 767.1 | D32: 763.65 | E32: 755.30 | F32: 743.50 | G32: 735.15 | H32: 775.45 | I32: 783.80 | J32: 795.60 | K32: 772 | L32: 751.85 | M32: 0.92373
A33: 23 | B33: ALKEM | C33: 3702.2 | D33: 3710.92 | E33: 3682.83 | F33: 3663.47 | G33: 3635.38 | H33: 3730.28 | I33: 3758.37 | J33: 3777.73 | K33: 3739 | L33: 3691.55 | M33: 2.3505
A34: 24 | B34: ALKYLAMINE | C34: 2515.6 | D34: 2464.42 | E34: 2369.83 | F34: 2224.07 | G34: 2129.48 | H34: 2610.18 | I34: 2704.77 | J34: 2850.53 | K34: 2559 | L34: 2318.65 | M34: 3.33826
A35: 25 | B35: AMARAJABAT | C35: 626.4 | D35: 626.05 | E35: 623.10 | F35: 619.80 | G35: 616.85 | H35: 629.35 | I35: 632.30 | J35: 635.60 | K35: 629 | L35: 622.75 | M35: 4.25412
A36: 26 | B36: AMBER | C36: 2909.35 | D36: 2914.18 | E36: 2879.37 | F36: 2849.38 | G36: 2814.57 | H36: 2944.17 | I36: 2978.98 | J36: 3008.97 | K36: 2949 | L36: 2884.2 | M36: 1.77673
A37: 27 | B37: AMBUJACEM | C37: 441.2 | D37: 441.72 | E37: 435.93 | F37: 430.67 | G37: 424.88 | H37: 446.98 | I37: 452.77 | J37: 458.03 | K37: 447.5 | L37: 436.45 | M37: 40.51913
A38: 28 | B38: ANGELONE | C38: 1775.3 | D38: 1780.07 | E38: 1752.23 | F38: 1729.17 | G38: 1701.33 | H38: 1803.13 | I38: 1830.97 | J38: 1854.03 | K38: 1807.9 | L38: 1757 | M38: 3.43822
A39: 29 | B39: ANURAS | C39: 1004.6 | D39: 1005.87 | E39: 996.73 | F39: 988.87 | G39: 979.73 | H39: 1013.73 | I39: 1022.87 | J39: 1030.73 | K39: 1015 | L39: 998 | M39: 3.00963
A40: 30 | B40: APARINDS | C40: 5030.4 | D40: 5043.12 | E40: 4997.28 | F40: 4964.17 | G40: 4918.33 | H40: 5076.23 | I40: 5122.07 | J40: 5155.18 | K40: 5088.95 | L40: 5010 | M40: 0.62638
A41: 31 | B41: APLAPOLLO | C41: 1625.1 | D41: 1634.97 | E41: 1601.28 | F41: 1577.47 | G41: 1543.78 | H41: 1658.78 | I41: 1692.47 | J41: 1716.28 | K41: 1668.65 | L41: 1611.15 | M41: 43.99865
A42: 32 | B42: APOLLOHOSP | C42: 4878.4 | D42: 4894.10 | E42: 4843.20 | F42: 4808.00 | G42: 4757.10 | H42: 4929.30 | I42: 4980.20 | J42: 5015.40 | K42: 4945 | L42: 4858.9 | M42: 5.91619
A43: 33 | B43: APOLLOTYRE | C43: 389.65 | D43: 391.97 | E43: 386.18 | F43: 382.72 | G43: 376.93 | H43: 395.43 | I43: 401.22 | J43: 404.68 | K43: 397.75 | L43: 388.5 | M43: 23.58611
A44: 34 | B44: APTUS | C44: 264.95 | D44: 267.10 | E44: 262.40 | F44: 259.85 | G44: 255.15 | H44: 269.65 | I44: 274.35 | J44: 276.90 | K44: 271.8 | L44: 264.55 | M44: 7.19019
A45: 35 | B45: ACI | C45: 648.75 | D45: 654.98 | E45: 629.17 | F45: 609.58 | G45: 583.77 | H45: 674.57 | I45: 700.38 | J45: 719.97 | K45: 680.8 | L45: 635.4 | M45: 9.12181
A46: 36 | B46: ASAHIINDIA | C46: 594.75 | D46: 592.45 | E46: 580.10 | F46: 565.45 | G46: 553.10 | H46: 607.10 | I46: 619.45 | J46: 634.10 | K46: 604.8 | L46: 577.8 | M46: 5.47018
A47: 37 | B47: ASHOKLEY | C47: 188.1 | D47: 188.53 | E47: 187.17 | F47: 186.23 | G47: 184.87 | H47: 189.47 | I47: 190.83 | J47: 191.77 | K47: 189.9 | L47: 187.6 | M47: 167.70194
A48: 38 | B48: ASIANPAINT | C48: 3285.7 | D48: 3276.58 | E48: 3264.17 | F48: 3242.63 | G48: 3230.22 | H48: 3298.12 | I48: 3310.53 | J48: 3332.07 | K48: 3289 | L48: 3255.05 | M48: 5.33163
A49: 39 | B49: ASTERDM | C49: 325.2 | D49: 327.42 | E49: 322.03 | F49: 318.87 | G49: 313.48 | H49: 330.58 | I49: 335.97 | J49: 339.13 | K49: 332.8 | L49: 324.25 | M49: 4.85874
A50: 40 | B50: ASTRAL | C50: 1962.4 | D50: 1976.13 | E50: 1942.27 | F50: 1922.13 | G50: 1888.27 | H50: 1996.27 | I50: 2030.13 | J50: 2050.27 | K50: 2010 | L50: 1956 | M50: 12.60238
A51: 41 | B51: ATUL | C51: 7198.85 | D51: 7111.15 | E51: 7002.30 | F51: 6805.75 | G51: 6696.90 | H51: 7307.70 | I51: 7416.55 | J51: 7613.10 | K51: 7220 | L51: 6914.6 | M51: 1.17895
A52: 42 | B52: AUBANK | C52: 731.45 | D52: 733.82 | E52: 727.63 | F52: 723.82 | G52: 717.63 | H52: 737.63 | I52: 743.82 | J52: 747.63 | K52: 740 | L52: 730 | M52: 4.53151
A53: 43 | B53: AUROPHARMA | C53: 828.8 | D53: 832.48 | E53: 822.47 | F53: 816.13 | G53: 806.12 | H53: 838.82 | I53: 848.83 | J53: 855.17 | K53: 842.5 | L53: 826.15 | M53: 14.90604
A54: 44 | B54: AVANTIFEED | C54: 428.65 | D54: 426.03 | E54: 418.12 | F54: 407.58 | G54: 399.67 | H54: 436.57 | I54: 444.48 | J54: 455.02 | K54: 433.95 | L54: 415.5 | M54: 4.68986
A55: 45 | B55: DMART | C55: 3664.35 | D55: 3651.45 | E55: 3627.90 | F55: 3591.45 | G55: 3567.90 | H55: 3687.90 | I55: 3711.45 | J55: 3747.90 | K55: 3675 | L55: 3615 | M55: 6.15528
A56: 46 | B56: AXISBANK | C56: 980.7 | D56: 983.07 | E56: 975.13 | F56: 969.57 | G56: 961.63 | H56: 988.63 | I56: 996.57 | J56: 1002.13 | K56: 991 | L56: 977.5 | M56: 81.14141
A57: 47 | B57: BAJAJ-AUTO | C57: 4664.55 | D57: 4646.87 | E57: 4622.73 | F57: 4580.92 | G57: 4556.78 | H57: 4688.68 | I57: 4712.82 | J57: 4754.63 | K57: 4671 | L57: 4605.05 | M57: 3.20941
A58: 48 | B58: BAJFINANCE | C58: 7293.35 | D58: 7280.10 | E58: 7249.25 | F58: 7205.15 | G58: 7174.30 | H58: 7324.20 | I58: 7355.05 | J58: 7399.15 | K58: 7310.95 | L58: 7236 | M58: 14.18305
A59: 49 | B59: BAJAJFINSV | C59: 1503.45 | D59: 1504.90 | E59: 1495.80 | F59: 1488.15 | G59: 1479.05 | H59: 1512.55 | I59: 1521.65 | J59: 1529.30 | K59: 1514 | L59: 1497.25 | M59: 13.77001
A60: 50 | B60: BAJAJHLDNG | C60: 7369.95 | D60: 7355.33 | E60: 7310.67 | F60: 7251.38 | G60: 7206.72 | H60: 7414.62 | I60: 7459.28 | J60: 7518.57 | K60: 7400 | L60: 7296.05 | M60: 0.12812
A61: 51 | B61: BALAMINES | C61: 2291.4 | D61: 2253.73 | E61: 2183.72 | F61: 2076.03 | G61: 2006.02 | H61: 2361.42 | I61: 2431.43 | J61: 2539.12 | K61: 2323.75 | L61: 2146.05 | M61: 4.07377
A62: 52 | B62: BALKRISIND | C62: 2363.3 | D62: 2367.50 | E62: 2351.40 | F62: 2339.50 | G62: 2323.40 | H62: 2379.40 | I62: 2395.50 | J62: 2407.40 | K62: 2383.6 | L62: 2355.6 | M62: 0.52529
A63: 53 | B63: BALRAMCHIN | C63: 388.4 | D63: 390.58 | E63: 384.72 | F63: 381.03 | G63: 375.17 | H63: 394.27 | I63: 400.13 | J63: 403.82 | K63: 396.45 | L63: 386.9 | M63: 13.67603
A64: 54 | B64: BANDHANBNK | C64: 235.8 | D64: 235.57 | E64: 234.43 | F64: 233.07 | G64: 231.93 | H64: 236.93 | I64: 238.07 | J64: 239.43 | K64: 236.7 | L64: 234.2 | M64: 40.01719
A65: 55 | B65: BANKBARODA | C65: 191.15 | D65: 190.65 | E65: 189.70 | F65: 188.25 | G65: 187.30 | H65: 192.10 | I65: 193.05 | J65: 194.50 | K65: 191.6 | L65: 189.2 | M65: 75.38838
A66: 56 | B66: BANKINDIA | C66: 86.35 | D66: 86.67 | E66: 85.73 | F66: 85.12 | G66: 84.18 | H66: 87.28 | I66: 88.22 | J66: 88.83 | K66: 87.6 | L66: 86.05 | M66: 72.58228
A67: 57 | B67: MAHABANK | C67: 39.1 | D67: 39.23 | E67: 38.77 | F67: 38.43 | G67: 37.97 | H67: 39.57 | I67: 40.03 | J67: 40.37 | K67: 39.7 | L67: 38.9 | M67: 177.58767
A68: 58 | B68: BASF | C68: 2570.35 | D68: 2559.77 | E68: 2521.53 | F68: 2472.72 | G68: 2434.48 | H68: 2608.58 | I68: 2646.82 | J68: 2695.63 | K68: 2598 | L68: 2510.95 | M68: 0.16713
A69: 59 | B69: BATAINDIA | C69: 1690.45 | D69: 1695.87 | E69: 1679.73 | F69: 1669.02 | G69: 1652.88 | H69: 1706.58 | I69: 1722.72 | J69: 1733.43 | K69: 1712 | L69: 1685.15 | M69: 2.49717
A70: 60 | B70: BAYERCROP | C70: 4744.7 | D70: 4726.92 | E70: 4688.83 | F70: 4632.97 | G70: 4594.88 | H70: 4782.78 | I70: 4820.87 | J70: 4876.73 | K70: 4765 | L70: 4671.05 | M70: 0.29249
A71: 61 | B71: BEML | C71: 2461.4 | D71: 2366.80 | E71: 2241.60 | F71: 2021.80 | G71: 1896.60 | H71: 2586.60 | I71: 2711.80 | J71: 2931.60 | K71: 2492 | L71: 2147 | M71: 38.87438
A72: 62 | B72: BERGEPAINT | C72: 720.45 | D72: 717.78 | E72: 710.67 | F72: 700.88 | G72: 693.77 | H72: 727.57 | I72: 734.68 | J72: 744.47 | K72: 724.9 | L72: 708 | M72: 9.671
A73: 63 | B73: BDL | C73: 1121.4 | D73: 1121.17 | E73: 1113.33 | F73: 1105.27 | G73: 1097.43 | H73: 1129.23 | I73: 1137.07 | J73: 1145.13 | K73: 1129 | L73: 1113.1 | M73: 2.46622
A74: 64 | B74: BEL | C74: 134.55 | D74: 134.83 | E74: 133.82 | F74: 133.08 | G74: 132.07 | H74: 135.57 | I74: 136.58 | J74: 137.32 | K74: 135.85 | L74: 134.1 | M74: 111.184
A75: 65 | B75: BHARATFORG | C75: 1070.1 | D75: 1066.03 | E75: 1056.07 | F75: 1042.03 | G75: 1032.07 | H75: 1080.07 | I75: 1090.03 | J75: 1104.07 | K75: 1076 | L75: 1052 | M75: 17.515
A76: 66 | B76: BHEL | C76: 114.65 | D76: 113.10 | E76: 110.60 | F76: 106.55 | G76: 104.05 | H76: 117.15 | I76: 119.65 | J76: 123.70 | K76: 115.6 | L76: 109.05 | M76: 659.79986
A77: 67 | B77: BPCL | C77: 356.8 | D77: 356.73 | E77: 354.87 | F77: 352.93 | G77: 351.07 | H77: 358.67 | I77: 360.53 | J77: 362.47 | K77: 358.6 | L77: 354.8 | M77: 31.26869
A78: 68 | B78: BHARTIARTL | C78: 855.2 | D78: 857.90 | E78: 845.80 | F78: 836.40 | G78: 824.30 | H78: 867.30 | I78: 879.40 | J78: 888.80 | K78: 870 | L78: 848.5 | M78: 140.64286
A79: 69 | B79: BIKAJI | C79: 480.55 | D79: 482.42 | E79: 476.43 | F79: 472.32 | G79: 466.33 | H79: 486.53 | I79: 492.52 | J79: 496.63 | K79: 488.4 | L79: 478.3 | M79: 1.23136
A80: 70 | B80: BIOCON | C80: 259.15 | D80: 259.28 | E80: 257.42 | F80: 255.68 | G80: 253.82 | H80: 261.02 | I80: 262.88 | J80: 264.62 | K80: 261.15 | L80: 257.55 | M80: 15.35249
A81: 71 | B81: BIRLACORPN | C81: 1128.25 | D81: 1127.48 | E81: 1117.97 | F81: 1107.68 | G81: 1098.17 | H81: 1137.77 | I81: 1147.28 | J81: 1157.57 | K81: 1137 | L81: 1117.2 | M81: 0.48091
A82: 72 | B82: BSOFT | C82: 493.7 | D82: 492.75 | E82: 487.20 | F82: 480.70 | G82: 475.15 | H82: 499.25 | I82: 504.80 | J82: 511.30 | K82: 498.3 | L82: 486.25 | M82: 28.48502
A83: 73 | B83: BLS | C83: 282.3 | D83: 286.07 | E83: 277.13 | F83: 271.97 | G83: 263.03 | H83: 291.23 | I83: 300.17 | J83: 305.33 | K83: 295 | L83: 280.9 | M83: 41.4392
A84: 74 | B84: BLUEDART | C84: 6267.35 | D84: 6289.35 | E84: 6233.00 | F84: 6198.65 | G84: 6142.30 | H84: 6323.70 | I84: 6380.05 | J84: 6414.40 | K84: 6345.7 | L84: 6255 | M84: 0.19074
A85: 75 | B85: BLUESTARCO | C85: 735.25 | D85: 733.18 | E85: 729.07 | F85: 722.88 | G85: 718.77 | H85: 739.37 | I85: 743.48 | J85: 749.67 | K85: 737.3 | L85: 727 | M85: 0.72095
A86: 76 | B86: BBTC | C86: 978.25 | D86: 984.15 | E86: 970.30 | F86: 962.35 | G86: 948.50 | H86: 992.10 | I86: 1005.95 | J86: 1013.90 | K86: 998 | L86: 976.2 | M86: 0.35955
A87: 77 | B87: BORORENEW | C87: 429.8 | D87: 430.53 | E87: 426.07 | F87: 422.33 | G87: 417.87 | H87: 434.27 | I87: 438.73 | J87: 442.47 | K87: 435 | L87: 426.8 | M87: 3.0061
A88: 78 | B88: BOSCHLTD | C88: 18628.75 | D88: 18590.42 | E88: 18510.38 | F88: 18392.02 | G88: 18311.98 | H88: 18708.78 | I88: 18788.82 | J88: 18907.18 | K88: 18670.45 | L88: 18472.05 | M88: 0.26259
A89: 79 | B89: BRIGADE | C89: 596.5 | D89: 591.50 | E89: 585.00 | F89: 573.50 | G89: 567.00 | H89: 603.00 | I89: 609.50 | J89: 621.00 | K89: 598 | L89: 580 | M89: 4.96002
A90: 80 | B90: BCG | C90: 18.85 | D90: 18.85 | E90: 18.85 | F90: 18.85 | G90: 18.85 | H90: 18.85 | I90: 18.85 | J90: 18.85 | K90: 18.85 | L90: 18.85 | M90: 17.20856
A91: 81 | B91: BRITANNIA | C91: 4530.75 | D91: 4518.95 | E91: 4497.90 | F91: 4465.05 | G91: 4444.00 | H91: 4551.80 | I91: 4572.85 | J91: 4605.70 | K91: 4540 | L91: 4486.1 | M91: 3.40257
A92: 82 | B92: BSE | C92: 909.95 | D92: 908.18 | E92: 903.87 | F92: 897.78 | G92: 893.47 | H92: 914.27 | I92: 918.58 | J92: 924.67 | K92: 912.5 | L92: 902.1 | M92: 6.82487
A93: 83 | B93: MAPMYINDIA | C93: 1742.4 | D93: 1752.80 | E93: 1715.75 | F93: 1689.10 | G93: 1652.05 | H93: 1779.45 | I93: 1816.50 | J93: 1843.15 | K93: 1789.85 | L93: 1726.15 | M93: 1.29892
A94: 84 | B94: CAMPUS | C94: 302.25 | D94: 302.80 | E94: 300.50 | F94: 298.75 | G94: 296.45 | H94: 304.55 | I94: 306.85 | J94: 308.60 | K94: 305.1 | L94: 301.05 | M94: 5.3059
A95: 85 | B95: CANFINHOME | C95: 749.2 | D95: 747.18 | E95: 743.72 | F95: 738.23 | G95: 734.77 | H95: 752.67 | I95: 756.13 | J95: 761.62 | K95: 750.65 | L95: 741.7 | M95: 4.9461
A96: 86 | B96: CANBK | C96: 326.6 | D96: 327.15 | E96: 324.95 | F96: 323.30 | G96: 321.10 | H96: 328.80 | I96: 331.00 | J96: 332.65 | K96: 329.35 | L96: 325.5 | M96: 31.52872
A97: 87 | B97: CGCL | C97: 802.2 | D97: 800.93 | E97: 792.47 | F97: 782.73 | G97: 774.27 | H97: 810.67 | I97: 819.13 | J97: 828.87 | K97: 809.4 | L97: 791.2 | M97: 1.65813
A98: 88 | B98: CARBORUNIV | C98: 1136.15 | D98: 1136.82 | E98: 1130.33 | F98: 1124.52 | G98: 1118.03 | H98: 1142.63 | I98: 1149.12 | J98: 1154.93 | K98: 1143.3 | L98: 1131 | M98: 0.59505
A99: 89 | B99: CASTROLIND | C99: 143.15 | D99: 143.53 | E99: 142.07 | F99: 140.98 | G99: 139.52 | H99: 144.62 | I99: 146.08 | J99: 147.17 | K99: 145 | L99: 142.45 | M99: 10.08873
A100: 90 | B100: CCL | C100: 611.3 | D100: 607.03 | E100: 598.17 | F100: 585.03 | G100: 576.17 | H100: 620.17 | I100: 629.03 | J100: 642.17 | K100: 615.9 | L100: 593.9 | M100: 1.41749
A101: 91 | B101: CEATLTD | C101: 2246.05 | D101: 2257.52 | E101: 2227.53 | F101: 2209.02 | G101: 2179.03 | H101: 2276.03 | I101: 2306.02 | J101: 2324.53 | K101: 2287.5 | L101: 2239 | M101: 2.72297
A102: 92 | B102: CENTRALBK | C102: 35.1 | D102: 35.38 | E102: 34.72 | F102: 34.33 | G102: 33.67 | H102: 35.77 | I102: 36.43 | J102: 36.82 | K102: 36.05 | L102: 35 | M102: 83.64051
A103: 93 | B103: CDSL | C103: 1129.6 | D103: 1132.17 | E103: 1124.43 | F103: 1119.27 | G103: 1111.53 | H103: 1137.33 | I103: 1145.07 | J103: 1150.23 | K103: 1139.9 | L103: 1127 | M103: 2.99405
A104: 94 | B104: CENTURYPLY | C104: 685 | D104: 684.23 | E104: 679.47 | F104: 673.93 | G104: 669.17 | H104: 689.77 | I104: 694.53 | J104: 700.07 | K104: 689 | L104: 678.7 | M104: 2.11339
A105: 95 | B105: CENTURYTEX | C105: 1029.9 | D105: 1023.98 | E105: 1016.97 | F105: 1004.03 | G105: 997.02 | H105: 1036.92 | I105: 1043.93 | J105: 1056.87 | K105: 1031 | L105: 1011.05 | M105: 1.56803
A106: 96 | B106: CERA | C106: 9242.9 | D106: 9269.57 | E106: 9179.33 | F106: 9115.77 | G106: 9025.53 | H106: 9333.13 | I106: 9423.37 | J106: 9486.93 | K106: 9359.8 | L106: 9206 | M106: 0.21632
A107: 97 | B107: CESC | C107: 83.1 | D107: 82.82 | E107: 82.18 | F107: 81.27 | G107: 80.63 | H107: 83.73 | I107: 84.37 | J107: 85.28 | K107: 83.45 | L107: 81.9 | M107: 44.90372
A108: 98 | B108: CGPOWER | C108: 406.8 | D108: 408.18 | E108: 403.72 | F108: 400.63 | G108: 396.17 | H108: 411.27 | I108: 415.73 | J108: 418.82 | K108: 412.65 | L108: 405.1 | M108: 10.68508
A109: 99 | B109: CHALET | C109: 523.65 | D109: 524.52 | E109: 520.73 | F109: 517.82 | G109: 514.03 | H109: 527.43 | I109: 531.22 | J109: 534.13 | K109: 528.3 | L109: 521.6 | M109: 0.51855
A110: 100 | B110: CHAMBLFERT | C110: 278.95 | D110: 277.92 | E110: 275.38 | F110: 271.82 | G110: 269.28 | H110: 281.48 | I110: 284.02 | J110: 287.58 | K110: 280.45 | L110: 274.35 | M110: 23.90462
A111: 101 | B111: CHEMPLASTS | C111: 526.4 | D111: 526.70 | E111: 514.40 | F111: 502.40 | G111: 490.10 | H111: 538.70 | I111: 551.00 | J111: 563.00 | K111: 539 | L111: 514.7 | M111: 5.7345
A112: 102 | B112: CHOLAHLDNG | C112: 963.25 | D112: 956.07 | E112: 939.68 | F112: 916.12 | G112: 899.73 | H112: 979.63 | I112: 996.02 | J112: 1019.58 | K112: 972.45 | L112: 932.5 | M112: 3.57933
A113: 103 | B113: CHOLAFIN | C113: 1099.05 | D113: 1093.22 | E113: 1083.43 | F113: 1067.82 | G113: 1058.03 | H113: 1108.83 | I113: 1118.62 | J113: 1134.23 | K113: 1103 | L113: 1077.6 | M113: 20.51824
A114: 104 | B114: CIEINDIA | C114: 506.75 | D114: 506.93 | E114: 501.87 | F114: 496.98 | G114: 491.92 | H114: 511.82 | I114: 516.88 | J114: 521.77 | K114: 512 | L114: 502.05 | M114: 2.4389
A115: 105 | B115: CIPLA | C115: 1229.75 | D115: 1234.23 | E115: 1222.82 | F115: 1215.88 | G115: 1204.47 | H115: 1241.17 | I115: 1252.58 | J115: 1259.52 | K115: 1245.65 | L115: 1227.3 | M115: 12.09087
A116: 106 | B116: CUB | C116: 124.85 | D116: 124.93 | E116: 124.42 | F116: 123.98 | G116: 123.47 | H116: 125.37 | I116: 125.88 | J116: 126.32 | K116: 125.45 | L116: 124.5 | M116: 19.65729
A117: 107 | B117: CLEAN | C117: 1402.45 | D117: 1412.93 | E117: 1386.92 | F117: 1371.38 | G117: 1345.37 | H117: 1428.47 | I117: 1454.48 | J117: 1470.02 | K117: 1438.95 | L117: 1397.4 | M117: 2.22914
A118: 108 | B118: COALINDIA | C118: 229.95 | D118: 229.70 | E118: 229.00 | F118: 228.05 | G118: 227.35 | H118: 230.65 | I118: 231.35 | J118: 232.30 | K118: 230.4 | L118: 228.75 | M118: 31.1256
A119: 109 | B119: COCHINSHIP | C119: 845.3 | D119: 847.50 | E119: 839.30 | F119: 833.30 | G119: 825.10 | H119: 853.50 | I119: 861.70 | J119: 867.70 | K119: 855.7 | L119: 841.5 | M119: 8.04156
A120: 110 | B120: COFORGE | C120: 5225.6 | D120: 5195.70 | E120: 5118.05 | F120: 5010.50 | G120: 4932.85 | H120: 5303.25 | I120: 5380.90 | J120: 5488.45 | K120: 5273.35 | L120: 5088.15 | M120: 10.18566
A121: 111 | B121: COLPAL | C121: 1958.75 | D121: 1956.92 | E121: 1943.83 | F121: 1928.92 | G121: 1915.83 | H121: 1971.83 | I121: 1984.92 | J121: 1999.83 | K121: 1970 | L121: 1942 | M121: 6.44187
A122: 112 | B122: CAMS | C122: 2368.05 | D122: 2383.13 | E122: 2346.27 | F122: 2324.48 | G122: 2287.62 | H122: 2404.92 | I122: 2441.78 | J122: 2463.57 | K122: 2420 | L122: 2361.35 | M122: 0.71292
A123: 113 | B123: CONCOR | C123: 669.95 | D123: 666.65 | E123: 661.85 | F123: 653.75 | G123: 648.95 | H123: 674.75 | I123: 679.55 | J123: 687.65 | K123: 671.45 | L123: 658.55 | M123: 4.33534
A124: 114 | B124: COROMANDEL | C124: 1083.7 | D124: 1086.52 | E124: 1075.98 | F124: 1068.27 | G124: 1057.73 | H124: 1094.23 | I124: 1104.77 | J124: 1112.48 | K124: 1097.05 | L124: 1078.8 | M124: 2.46925
A125: 115 | B125: CRAFTSMAN | C125: 4844.2 | D125: 4850.73 | E125: 4814.97 | F125: 4785.73 | G125: 4749.97 | H125: 4879.97 | I125: 4915.73 | J125: 4944.97 | K125: 4886.5 | L125: 4821.5 | M125: 0.15821
A126: 116 | B126: CREDITACC | C126: 1393.1 | D126: 1401.52 | E126: 1380.03 | F126: 1366.97 | G126: 1345.48 | H126: 1414.58 | I126: 1436.07 | J126: 1449.13 | K126: 1423 | L126: 1388.45 | M126: 0.50968
A127: 117 | B127: CRISIL | C127: 3876.2 | D127: 3874.73 | E127: 3845.47 | F127: 3814.73 | G127: 3785.47 | H127: 3905.47 | I127: 3934.73 | J127: 3965.47 | K127: 3904 | L127: 3844 | M127: 0.11199
A128: 118 | B128: CROMPTON | C128: 302.35 | D128: 302.33 | E128: 299.57 | F128: 296.78 | G128: 294.02 | H128: 305.12 | I128: 307.88 | J128: 310.67 | K128: 305.1 | L128: 299.55 | M128: 21.26
A129: 119 | B129: CSBBANK | C129: 328.2 | D129: 329.40 | E129: 322.80 | F129: 317.40 | G129: 310.80 | H129: 334.80 | I129: 341.40 | J129: 346.80 | K129: 336 | L129: 324 | M129: 3.86173
A130: 120 | B130: CUMMINSIND | C130: 1730.05 | D130: 1727.75 | E130: 1717.50 | F130: 1704.95 | G130: 1694.70 | H130: 1740.30 | I130: 1750.55 | J130: 1763.10 | K130: 1738 | L130: 1715.2 | M130: 11.44087
A131: 121 | B131: CYIENT | C131: 1603.15 | D131: 1594.80 | E131: 1579.65 | F131: 1556.15 | G131: 1541.00 | H131: 1618.30 | I131: 1633.45 | J131: 1656.95 | K131: 1609.95 | L131: 1571.3 | M131: 1.96352
A132: 122 | B132: DABUR | C132: 550.15 | D132: 550.05 | E132: 546.20 | F132: 542.25 | G132: 538.40 | H132: 554.00 | I132: 557.85 | J132: 561.80 | K132: 553.9 | L132: 546.1 | M132: 26.42866
A133: 123 | B133: DALBHARAT | C133: 2055.15 | D133: 2048.38 | E133: 2037.22 | F133: 2019.28 | G133: 2008.12 | H133: 2066.32 | I133: 2077.48 | J133: 2095.42 | K133: 2059.55 | L133: 2030.45 | M133: 1.92646
A134: 124 | B134: DATAPATTNS | C134: 2318.6 | D134: 2323.42 | E134: 2285.18 | F134: 2251.77 | G134: 2213.53 | H134: 2356.83 | I134: 2395.07 | J134: 2428.48 | K134: 2361.65 | L134: 2290 | M134: 1.11989
A135: 125 | B135: DCMSHRIRAM | C135: 915.7 | D135: 914.80 | E135: 899.60 | F135: 883.50 | G135: 868.30 | H135: 930.90 | I135: 946.10 | J135: 962.20 | K135: 930 | L135: 898.7 | M135: 1.29306
A136: 126 | B136: DEEPAKFERT | C136: 584.25 | D136: 576.02 | E136: 563.23 | F136: 542.22 | G136: 529.43 | H136: 597.03 | I136: 609.82 | J136: 630.83 | K136: 588.8 | L136: 555 | M136: 13.58745
A137: 127 | B137: DEEPAKNTR | C137: 2170.2 | D137: 2132.07 | E137: 2079.73 | F137: 1989.27 | G137: 1936.93 | H137: 2222.53 | I137: 2274.87 | J137: 2365.33 | K137: 2184.4 | L137: 2041.6 | M137: 29.95207
A138: 128 | B138: DELHIVERY | C138: 419.85 | D138: 420.02 | E138: 414.08 | F138: 408.32 | G138: 402.38 | H138: 425.78 | I138: 431.72 | J138: 437.48 | K138: 425.95 | L138: 414.25 | M138: 5.87519
A139: 129 | B139: DELTACORP | C139: 180.4 | D139: 180.63 | E139: 177.27 | F139: 174.13 | G139: 170.77 | H139: 183.77 | I139: 187.13 | J139: 190.27 | K139: 184 | L139: 177.5 | M139: 46.98702
A140: 130 | B140: DEVYANI | C140: 191.2 | D140: 192.05 | E140: 189.30 | F140: 187.40 | G140: 184.65 | H140: 193.95 | I140: 196.70 | J140: 198.60 | K140: 194.8 | L140: 190.15 | M140: 4.49145
A141: 131 | B141: DIVISLAB | C141: 3657.1 | D141: 3651.98 | E141: 3630.17 | F141: 3603.23 | G141: 3581.42 | H141: 3678.92 | I141: 3700.73 | J141: 3727.67 | K141: 3673.8 | L141: 3625.05 | M141: 2.39552
A142: 132 | B142: DIXON | C142: 4917.05 | D142: 4926.57 | E142: 4881.53 | F142: 4846.02 | G142: 4800.98 | H142: 4962.08 | I142: 5007.12 | J142: 5042.63 | K142: 4971.6 | L142: 4891.05 | M142: 2.76227
A143: 133 | B143: DLF | C143: 494 | D143: 491.60 | E143: 485.40 | F143: 476.80 | G143: 470.60 | H143: 500.20 | I143: 506.40 | J143: 515.00 | K143: 497.8 | L143: 483 | M143: 59.17819
A144: 134 | B144: LALPATHLAB | C144: 2171.45 | D144: 2179.40 | E144: 2158.85 | F144: 2146.25 | G144: 2125.70 | H144: 2192.00 | I144: 2212.55 | J144: 2225.15 | K144: 2199.95 | L144: 2166.8 | M144: 0.68805
A145: 135 | B145: DRREDDY | C145: 5723.8 | D145: 5741.77 | E145: 5697.03 | F145: 5670.27 | G145: 5625.53 | H145: 5768.53 | I145: 5813.27 | J145: 5840.03 | K145: 5786.5 | L145: 5715 | M145: 6.51617
A146: 136 | B146: EIDPARRY | C146: 473.8 | D146: 475.60 | E146: 471.40 | F146: 469.00 | G146: 464.80 | H146: 478.00 | I146: 482.20 | J146: 484.60 | K146: 479.8 | L146: 473.2 | M146: 2.02148
A147: 137 | B147: EASEMYTRIP | C147: 40.3 | D147: 40.23 | E147: 40.07 | F147: 39.83 | G147: 39.67 | H147: 40.47 | I147: 40.63 | J147: 40.87 | K147: 40.4 | L147: 40 | M147: 108.7364
A148: 138 | B148: ECLERX | C148: 1631.45 | D148: 1624.30 | E148: 1613.25 | F148: 1595.05 | G148: 1584.00 | H148: 1642.50 | I148: 1653.55 | J148: 1671.75 | K148: 1635.35 | L148: 1606.1 | M148: 0.72786
A149: 139 | B149: EICHERMOT | C149: 3355.35 | D149: 3357.93 | E149: 3345.87 | F149: 3336.38 | G149: 3324.32 | H149: 3367.42 | I149: 3379.48 | J149: 3388.97 | K149: 3370 | L149: 3348.45 | M149: 2.71577
A150: 140 | B150: EIHOTEL | C150: 232.5 | D150: 232.57 | E150: 230.23 | F150: 227.97 | G150: 225.63 | H150: 234.83 | I150: 237.17 | J150: 239.43 | K150: 234.9 | L150: 230.3 | M150: 6.36477
A151: 141 | B151: ELGIEQUIP | C151: 469.95 | D151: 468.60 | E151: 465.70 | F151: 461.45 | G151: 458.55 | H151: 472.85 | I151: 475.75 | J151: 480.00 | K151: 471.5 | L151: 464.35 | M151: 1.6949
A152: 142 | B152: EMAMILTD | C152: 518.9 | D152: 523.65 | E152: 507.75 | F152: 496.60 | G152: 480.70 | H152: 534.80 | I152: 550.70 | J152: 561.85 | K152: 539.55 | L152: 512.5 | M152: 5.82013
A153: 143 | B153: ENDURANCE | C153: 1624.9 | D153: 1624.32 | E153: 1613.68 | F153: 1602.47 | G153: 1591.83 | H153: 1635.53 | I153: 1646.17 | J153: 1657.38 | K153: 1634.95 | L153: 1613.1 | M153: 0.2066
A154: 144 | B154: ENGINERSIN | C154: 156.2 | D154: 156.97 | E154: 153.93 | F154: 151.67 | G154: 148.63 | H154: 159.23 | I154: 162.27 | J154: 164.53 | K154: 160 | L154: 154.7 | M154: 28.87917
A155: 145 | B155: EPL | C155: 197.5 | D155: 199.13 | E155: 194.27 | F155: 191.03 | G155: 186.17 | H155: 202.37 | I155: 207.23 | J155: 210.47 | K155: 204 | L155: 195.9 | M155: 7.95235
A156: 146 | B156: EQUITASBNK | C156: 86.85 | D156: 85.70 | E156: 84.15 | F156: 81.45 | G156: 79.90 | H156: 88.40 | I156: 89.95 | J156: 92.65 | K156: 87.25 | L156: 83 | M156: 94.77076
A157: 147 | B157: ERIS | C157: 806.35 | D157: 810.60 | E157: 791.20 | F157: 776.05 | G157: 756.65 | H157: 825.75 | I157: 845.15 | J157: 860.30 | K157: 830 | L157: 795.45 | M157: 0.31597
A158: 148 | B158: ESCORTS | C158: 3045.4 | D158: 3036.30 | E158: 3016.60 | F158: 2987.80 | G158: 2968.10 | H158: 3065.10 | I158: 3084.80 | J158: 3113.60 | K158: 3056 | L158: 3007.5 | M158: 2.48348
A159: 149 | B159: EXIDEIND | C159: 260.4 | D159: 260.78 | E159: 259.07 | F159: 257.73 | G159: 256.02 | H159: 262.12 | I159: 263.83 | J159: 265.17 | K159: 262.5 | L159: 259.45 | M159: 17.64061
A160: 150 | B160: FDC | C160: 377.5 | D160: 377.85 | E160: 373.80 | F160: 370.10 | G160: 366.05 | H160: 381.55 | I160: 385.60 | J160: 389.30 | K160: 381.9 | L160: 374.15 | M160: 2.02998
A161: 151 | B161: FEDERALBNK | C161: 144.45 | D161: 144.97 | E161: 143.48 | F161: 142.52 | G161: 141.03 | H161: 145.93 | I161: 147.42 | J161: 148.38 | K161: 146.45 | L161: 144 | M161: 172.76351
A162: 152 | B162: FACT | C162: 463 | D162: 461.82 | E162: 453.48 | F162: 443.97 | G162: 435.63 | H162: 471.33 | I162: 479.67 | J162: 489.18 | K162: 470.15 | L162: 452.3 | M162: 8.17421
A163: 153 | B163: FINEORG | C163: 4811.95 | D163: 4794.17 | E163: 4760.33 | F163: 4708.72 | G163: 4674.88 | H163: 4845.78 | I163: 4879.62 | J163: 4931.23 | K163: 4828 | L163: 4742.55 | M163: 0.67869
A164: 154 | B164: FINCABLES | C164: 1067.15 | D164: 1068.22 | E164: 1059.48 | F164: 1051.82 | G164: 1043.08 | H164: 1075.88 | I164: 1084.62 | J164: 1092.28 | K164: 1076.95 | L164: 1060.55 | M164: 1.46163
A165: 155 | B165: FINPIPE | C165: 235.95 | D165: 233.00 | E165: 224.80 | F165: 213.65 | G165: 205.45 | H165: 244.15 | I165: 252.35 | J165: 263.50 | K165: 241.2 | L165: 221.85 | M165: 107.96894
A166: 156 | B166: FSL | C166: 161.3 | D166: 162.62 | E166: 159.28 | F166: 157.27 | G166: 153.93 | H166: 164.63 | I166: 167.97 | J166: 169.98 | K166: 165.95 | L166: 160.6 | M166: 19.78353
A167: 157 | B167: FIVESTAR | C167: 754.15 | D167: 753.05 | E167: 744.10 | F167: 734.05 | G167: 725.10 | H167: 763.10 | I167: 772.05 | J167: 782.10 | K167: 762 | L167: 743 | M167: 1.96962
A168: 158 | B168: FORTIS | C168: 334.5 | D168: 333.57 | E168: 331.43 | F168: 328.37 | G168: 326.23 | H168: 336.63 | I168: 338.77 | J168: 341.83 | K168: 335.7 | L168: 330.5 | M168: 21.16853
A169: 159 | B169: NYKAA | C169: 133.4 | D169: 133.80 | E169: 132.10 | F169: 130.80 | G169: 129.10 | H169: 135.10 | I169: 136.80 | J169: 138.10 | K169: 135.5 | L169: 132.5 | M169: 40.5145
A170: 160 | B170: GRINFRA | C170: 1286.15 | D170: 1281.35 | E170: 1266.80 | F170: 1247.45 | G170: 1232.90 | H170: 1300.70 | I170: 1315.25 | J170: 1334.60 | K170: 1295.9 | L170: 1262 | M170: 0.226
A171: 161 | B171: GAIL | C171: 117.2 | D171: 117.25 | E171: 116.60 | F171: 116.00 | G171: 115.35 | H171: 117.85 | I171: 118.50 | J171: 119.10 | K171: 117.9 | L171: 116.65 | M171: 82.5723
A172: 162 | B172: GALAXYSURF | C172: 2662.05 | D172: 2666.33 | E172: 2643.72 | F172: 2625.38 | G172: 2602.77 | H172: 2684.67 | I172: 2707.28 | J172: 2725.62 | K172: 2688.95 | L172: 2648 | M172: 0.30657
A173: 163 | B173: GARFIBRES | C173: 3224.5 | D173: 3222.40 | E173: 3179.00 | F173: 3133.50 | G173: 3090.10 | H173: 3267.90 | I173: 3311.30 | J173: 3356.80 | K173: 3265.8 | L173: 3176.9 | M173: 0.07638
A174: 164 | B174: GICRE | C174: 219.65 | D174: 220.22 | E174: 218.03 | F174: 216.42 | G174: 214.23 | H174: 221.83 | I174: 224.02 | J174: 225.63 | K174: 222.4 | L174: 218.6 | M174: 6.21269
A175: 165 | B175: GLAND | C175: 1574.15 | D175: 1586.42 | E175: 1554.83 | F175: 1535.52 | G175: 1503.93 | H175: 1605.73 | I175: 1637.32 | J175: 1656.63 | K175: 1618 | L175: 1567.1 | M175: 3.79168
A176: 166 | B176: GLAXO | C176: 1413.5 | D176: 1418.73 | E176: 1405.77 | F176: 1398.03 | G176: 1385.07 | H176: 1426.47 | I176: 1439.43 | J176: 1447.17 | K176: 1431.7 | L176: 1411 | M176: 0.27644
A177: 167 | B177: GLENMARK | C177: 756.55 | D177: 761.65 | E177: 746.30 | F177: 736.05 | G177: 720.70 | H177: 771.90 | I177: 787.25 | J177: 797.50 | K177: 777 | L177: 751.4 | M177: 8.78253
A178: 168 | B178: MEDANTA | C178: 698.75 | D178: 701.58 | E178: 691.17 | F178: 683.58 | G178: 673.17 | H178: 709.17 | I178: 719.58 | J178: 727.17 | K178: 712 | L178: 694 | M178: 4.01527
A179: 169 | B179: GMMPFAUDLR | C179: 1544.5 | D179: 1544.55 | E179: 1532.95 | F179: 1521.40 | G179: 1509.80 | H179: 1556.10 | I179: 1567.70 | J179: 1579.25 | K179: 1556.15 | L179: 1533 | M179: 3.18508
A180: 170 | B180: GMRINFRA | C180: 61.05 | D180: 61.55 | E180: 60.10 | F180: 59.15 | G180: 57.70 | H180: 62.50 | I180: 63.95 | J180: 64.90 | K180: 63 | L180: 60.6 | M180: 283.18471
A181: 171 | B181: GOCOLORS | C181: 1276.2 | D181: 1274.58 | E181: 1266.82 | F181: 1257.43 | G181: 1249.67 | H181: 1283.97 | I181: 1291.73 | J181: 1301.12 | K181: 1282.35 | L181: 1265.2 | M181: 0.13136
A182: 172 | B182: GODFRYPHLP | C182: 2166.15 | D182: 2152.30 | E182: 2132.65 | F182: 2099.15 | G182: 2079.50 | H182: 2185.80 | I182: 2205.45 | J182: 2238.95 | K182: 2171.95 | L182: 2118.8 | M182: 0.5934
A183: 173 | B183: GODREJAGRO | C183: 481 | D183: 479.18 | E183: 475.57 | F183: 470.13 | G183: 466.52 | H183: 484.62 | I183: 488.23 | J183: 493.67 | K183: 482.8 | L183: 473.75 | M183: 0.95254
A184: 174 | B184: GODREJCP | C184: 1013.35 | D184: 1017.67 | E184: 1002.33 | F184: 991.32 | G184: 975.98 | H184: 1028.68 | I184: 1044.02 | J184: 1055.03 | K184: 1033 | L184: 1006.65 | M184: 6.35507
A185: 175 | B185: GODREJIND | C185: 523.7 | D185: 526.13 | E185: 517.62 | F185: 511.53 | G185: 503.02 | H185: 532.22 | I185: 540.73 | J185: 546.82 | K185: 534.65 | L185: 520.05 | M185: 1.3614
A186: 176 | B186: GODREJPROP | C186: 1644.5 | D186: 1641.43 | E186: 1635.22 | F186: 1625.93 | G186: 1619.72 | H186: 1650.72 | I186: 1656.93 | J186: 1666.22 | K186: 1647.65 | L186: 1632.15 | M186: 6.17075
A187: 177 | B187: GRANULES | C187: 301.65 | D187: 300.95 | E187: 299.00 | F187: 296.35 | G187: 294.40 | H187: 303.60 | I187: 305.55 | J187: 308.20 | K187: 302.9 | L187: 298.3 | M187: 12.38077
A188: 178 | B188: GRAPHITE | C188: 475.2 | D188: 478.17 | E188: 469.03 | F188: 462.87 | G188: 453.73 | H188: 484.33 | I188: 493.47 | J188: 499.63 | K188: 487.3 | L188: 472 | M188: 13.64896
A189: 179 | B189: GRASIM | C189: 1801.8 | D189: 1795.95 | E189: 1784.95 | F189: 1768.10 | G189: 1757.10 | H189: 1812.80 | I189: 1823.80 | J189: 1840.65 | K189: 1806.95 | L189: 1779.1 | M189: 6.40851
A190: 180 | B190: GESHIP | C190: 752.15 | D190: 755.68 | E190: 744.47 | F190: 736.78 | G190: 725.57 | H190: 763.37 | I190: 774.58 | J190: 782.27 | K190: 766.9 | L190: 748 | M190: 2.6937
A191: 181 | B191: GREENPANEL | C191: 364.45 | D191: 368.27 | E191: 358.58 | F191: 352.72 | G191: 343.03 | H191: 374.13 | I191: 383.82 | J191: 389.68 | K191: 377.95 | L191: 362.4 | M191: 4.31995
A192: 182 | B192: GRINDWELL | C192: 2238.45 | D192: 2232.13 | E192: 2206.32 | F192: 2174.18 | G192: 2148.37 | H192: 2264.27 | I192: 2290.08 | J192: 2322.22 | K192: 2257.95 | L192: 2200 | M192: 0.67239
A193: 183 | B193: GUJALKALI | C193: 691.3 | D193: 687.12 | E193: 679.28 | F193: 667.27 | G193: 659.43 | H193: 699.13 | I193: 706.97 | J193: 718.98 | K193: 694.95 | L193: 675.1 | M193: 5.02264
A194: 184 | B194: GAEL | C194: 267.15 | D194: 264.78 | E194: 258.77 | F194: 250.38 | G194: 244.37 | H194: 273.17 | I194: 279.18 | J194: 287.57 | K194: 270.8 | L194: 256.4 | M194: 14.37461
A195: 185 | B195: FLUOROCHEM | C195: 3021.55 | D195: 2999.50 | E195: 2934.20 | F195: 2846.85 | G195: 2781.55 | H195: 3086.85 | I195: 3152.15 | J195: 3239.50 | K195: 3064.8 | L195: 2912.15 | M195: 2.97869
A196: 186 | B196: GUJGASLTD | C196: 458.85 | D196: 457.88 | E196: 455.57 | F196: 452.28 | G196: 449.97 | H196: 461.17 | I196: 463.48 | J196: 466.77 | K196: 460.2 | L196: 454.6 | M196: 13.4827
A197: 187 | B197: GNFC | C197: 603.15 | D197: 600.60 | E197: 591.80 | F197: 580.45 | G197: 571.65 | H197: 611.95 | I197: 620.75 | J197: 632.10 | K197: 609.4 | L197: 589.25 | M197: 23.30095
A198: 188 | B198: GPPL | C198: 127.95 | D198: 126.48 | E198: 122.07 | F198: 116.18 | G198: 111.77 | H198: 132.37 | I198: 136.78 | J198: 142.67 | K198: 130.9 | L198: 120.6 | M198: 140.89193
A199: 189 | B199: GSFC | C199: 173.4 | D199: 173.88 | E199: 171.87 | F199: 170.33 | G199: 168.32 | H199: 175.42 | I199: 177.43 | J199: 178.97 | K199: 175.9 | L199: 172.35 | M199: 48.97144
A200: 190 | B200: GSPL | C200: 273.95 | D200: 275.25 | E200: 270.35 | F200: 266.75 | G200: 261.85 | H200: 278.85 | I200: 283.75 | J200: 287.35 | K200: 280.15 | L200: 271.65 | M200: 8.44419
A201: 191 | B201: HEG | C201: 1759.55 | D201: 1760.30 | E201: 1743.35 | F201: 1727.15 | G201: 1710.20 | H201: 1776.50 | I201: 1793.45 | J201: 1809.65 | K201: 1777.25 | L201: 1744.1 | M201: 1.43157
A202: 192 | B202: HAPPSTMNDS | C202: 902.35 | D202: 903.98 | E202: 899.37 | F202: 896.38 | G202: 891.77 | H202: 906.97 | I202: 911.58 | J202: 914.57 | K202: 908.6 | L202: 901 | M202: 1.53542
A203: 193 | B203: HAVELLS | C203: 1338.9 | D203: 1331.00 | E203: 1319.20 | F203: 1299.50 | G203: 1287.70 | H203: 1350.70 | I203: 1362.50 | J203: 1382.20 | K203: 1342.8 | L203: 1311.3 | M203: 7.18024
A204: 194 | B204: HCLTECH | C204: 1157.55 | D204: 1156.38 | E204: 1149.47 | F204: 1141.38 | G204: 1134.47 | H204: 1164.47 | I204: 1171.38 | J204: 1179.47 | K204: 1163.3 | L204: 1148.3 | M204: 17.94652
A205: 195 | B205: HDFCAMC | C205: 2476.55 | D205: 2499.42 | E205: 2447.33 | F205: 2418.12 | G205: 2366.03 | H205: 2528.63 | I205: 2580.72 | J205: 2609.93 | K205: 2551.5 | L205: 2470.2 | M205: 7.01712
A206: 196 | B206: HDFCBANK | C206: 1590.3 | D206: 1588.13 | E206: 1583.62 | F206: 1576.93 | G206: 1572.42 | H206: 1594.82 | I206: 1599.33 | J206: 1606.02 | K206: 1592.65 | L206: 1581.45 | M206: 177.69466
... 319 more rows

Sheet Bulk Deals
E6: Back To Main Page
A7: Subject : | B7: BULK DEAL | D7: =Main!B10 -> 2023-08-30
A9: Date | B9: Scrip code | C9: Scrip Name | D9: Client Name | E9: Buy / Sell | F9: Quantity Traded | G9: Trade Price / Wt.Avg.trade price | H9: Exchange
A10: 2023-08-29 | B10: 540615 | C10: 7NR | D10: VAX FASHION PRIVATE LIMITED | E10: BUY | F10: 108 | G10: 0.63 | H10: BSE
A11: 2023-08-29 | B11: 540615 | C11: 7NR | D11: VAX FASHION PRIVATE LIMITED | E11: SELL | F11: 2,100,000 | G11: 0.64 | H11: BSE
A12: 2023-08-29 | B12: 543349 | C12: AMIORG | D12: GIRISHKUMAR LIMBABHAI CHOVATIA | E12: SELL | F12: 625,000 | G12: 1250.39 | H12: BSE
A13: 2023-08-29 | B13: 543349 | C13: AMIORG | D13: MORGAN STANLEY ASIA SINGAPORE PTE NON ODI | E13: BUY | F13: 621,898 | G13: 1250 | H13: BSE
A14: 2023-08-29 | B14: 533758 | C14: APLAPOLLO | D14: RAHUL GUPTA | E14: SELL | F14: 1,501,000 | G14: 1621.46 | H14: BSE
A15: 2023-08-29 | B15: 537069 | C15: ARNOLD | D15: KEEMTEE FINANCIAL SERVICES LTD | E15: BUY | F15: 838,261 | G15: 17.55 | H15: BSE
A16: 2023-08-29 | B16: 537069 | C16: ARNOLD | D16: RAUDRAMUKHI COMMERCE PVT LTD | E16: BUY | F16: 684,350 | G16: 17.86 | H16: BSE
A17: 2023-08-29 | B17: 537069 | C17: ARNOLD | D17: ACQUITOR FINANCIAL SERVICES PVT.LTD. | E17: SELL | F17: 1,700,000 | G17: 17.76 | H17: BSE
A18: 2023-08-29 | B18: 537069 | C18: ARNOLD | D18: SETU SECURITIES PVT. LTD. | E18: SELL | F18: 199,386 | G18: 17.65 | H18: BSE
A19: 2023-08-29 | B19: 537069 | C19: ARNOLD | D19: SETU SECURITIES PVT. LTD. | E19: BUY | F19: 207,501 | G19: 18.02 | H19: BSE
A20: 2023-08-29 | B20: 543443 | C20: ASCENSIVE | D20: BEELINE BROKING LIMITED | E20: SELL | F20: 24,000 | G20: 40.06 | H20: BSE
A21: 2023-08-29 | B21: 541865 | C21: ASRL | D21: VEDANKIT TRADERS PRIVATE LIMITED | E21: BUY | F21: 785,000 | G21: 38.13 | H21: BSE
A22: 2023-08-29 | B22: 541865 | C22: ASRL | D22: INVESTINO VENTURE LLP . | E22: BUY | F22: 535,000 | G22: 38.22 | H22: BSE
A23: 2023-08-29 | B23: 541865 | C23: ASRL | D23: DINESHKUMAR BHANUSHANKAR PANDYA | E23: SELL | F23: 1,412,000 | G23: 38.17 | H23: BSE
A24: 2023-08-29 | B24: 543543 | C24: BRRL | D24: VINCENT COMMERCIAL COMPANY LIMITED | E24: BUY | F24: 66,400 | G24: 149.98 | H24: BSE
A25: 2023-08-29 | B25: 539405 | C25: DITCO | D25: JIGAR MUKESHBHAI SHAH | E25: BUY | F25: 35,945 | G25: 11.11 | H25: BSE
A26: 2023-08-29 | B26: 539405 | C26: DITCO | D26: SITA RAM | E26: BUY | F26: 25,000 | G26: 11.04 | H26: BSE
A27: 2023-08-29 | B27: 539405 | C27: DITCO | D27: SUKUMAR GHOSH | E27: SELL | F27: 31,000 | G27: 11.05 | H27: BSE
A28: 2023-08-29 | B28: 539405 | C28: DITCO | D28: SURESH KUMAR MUNDHRA HUF | E28: SELL | F28: 21,000 | G28: 11.04 | H28: BSE
A29: 2023-08-29 | B29: 535431 | C29: GCMSECU | D29: DULCET ADVISORY PRIVATE LIMITED | E29: SELL | F29: 1,473,077 | G29: 1.65 | H29: BSE
A30: 2023-08-29 | B30: 535431 | C30: GCMSECU | D30: MONOHAR TATWA | E30: SELL | F30: 1,400,000 | G30: 1.66 | H30: BSE
A31: 2023-08-29 | B31: 541703 | C31: GFIL | D31: GAURAV KUMAR | E31: SELL | F31: 49,600 | G31: 19.73 | H31: BSE
A32: 2023-08-29 | B32: 501848 | C32: GLOBOFFS | D32: HARSHIL KOTHARI | E32: SELL | F32: 146,131 | G32: 41.95 | H32: BSE
A33: 2023-08-29 | B33: 509567 | C33: GOACARBON | D33: RS SECURITIES | E33: SELL | F33: 56,623 | G33: 534.32 | H33: BSE
A34: 2023-08-29 | B34: 509567 | C34: GOACARBON | D34: RS SECURITIES | E34: BUY | F34: 54,766 | G34: 532.67 | H34: BSE
A35: 2023-08-29 | B35: 531913 | C35: GOPAIST | D35: MISTERKAPOORKESHRI | E35: BUY | F35: 5,079 | G35: 10.31 | H35: BSE
A36: 2023-08-29 | B36: 531913 | C36: GOPAIST | D36: MISTERKAPOORKESHRI | E36: SELL | F36: 27,301 | G36: 10.35 | H36: BSE
A37: 2023-08-29 | B37: 543951 | C37: INNOVATUS | D37: SANJAY POPATLAL JAIN | E37: SELL | F37: 21,000 | G37: 39.48 | H37: BSE
A38: 2023-08-29 | B38: 522183 | C38: ITL | D38: HIRAL PARAS SHAH | E38: BUY | F38: 16,111 | G38: 266.8 | H38: BSE
A39: 2023-08-29 | B39: 512600 | C39: MACINTR | D39: ALPA KAMLESH SHAH | E39: SELL | F39: 46,000 | G39: 30.53 | H39: BSE
A40: 2023-08-29 | B40: 512600 | C40: MACINTR | D40: JAINAM UDAY SHAH | E40: BUY | F40: 27,001 | G40: 30.53 | H40: BSE
A41: 2023-08-29 | B41: 539767 | C41: MNIL | D41: SPEXTRA MULTIBIZ PRIVATE LIMITED | E41: BUY | F41: 207 | G41: 14.21 | H41: BSE
A42: 2023-08-29 | B42: 539767 | C42: MNIL | D42: SPEXTRA MULTIBIZ PRIVATE LIMITED | E42: SELL | F42: 17,000 | G42: 14.21 | H42: BSE
A43: 2023-08-29 | B43: 532140 | C43: MOHITE | D43: ARNOLD HOLDINGS LIMITED | E43: BUY | F43: 199,611 | G43: 23.71 | H43: BSE
A44: 2023-08-29 | B44: 532140 | C44: MOHITE | D44: PREMLATA RAMESH SARAOGI | E44: SELL | F44: 201,150 | G44: 23.71 | H44: BSE
A45: 2023-08-29 | B45: 540809 | C45: MRCAGRO | D45: MULTIPLIER SHARE & STOCK ADVISORS PRIVATE LIMITED | E45: SELL | F45: 100,553 | G45: 18.2 | H45: BSE
A46: 2023-08-29 | B46: 517554 | C46: NHCFOODS | D46: SATYAM SHIRISHCHANDRA JOSHI | E46: SELL | F46: 83,818 | G46: 45.34 | H46: BSE
A47: 2023-08-29 | B47: 540386 | C47: ONTIC | D47: MALTI SALVI | E47: BUY | F47: 696,344 | G47: 0.6 | H47: BSE
A48: 2023-08-29 | B48: 512217 | C48: PRISMMEDI | D48: VINITAJAIN | E48: SELL | F48: 37,293 | G48: 26 | H48: BSE
A49: 2023-08-29 | B49: 536659 | C49: PVVINFRA | D49: VARSHA CHUGH | E49: BUY | F49: 60,000 | G49: 14.53 | H49: BSE
A50: 2023-08-29 | B50: 521131 | C50: SBFL | D50: DHANALAKSHMI SRIDHAR | E50: SELL | F50: 49,020 | G50: 18.09 | H50: BSE
A51: 2023-08-29 | B51: 543366 | C51: SBLI | D51: PANCHAL JAYESHKUMAR | E51: BUY | F51: 6,000 | G51: 77.56 | H51: BSE
A52: 2023-08-29 | B52: 543366 | C52: SBLI | D52: PRAGNYABEN MAHENDRASINH CHAUHAN | E52: SELL | F52: 6,000 | G52: 77.6 | H52: BSE
A53: 2023-08-29 | B53: 540147 | C53: SHASHIJIT | D53: SEJAL AMRISH SHAH | E53: SELL | F53: 89,467 | G53: 39.1 | H53: BSE
A54: 2023-08-29 | B54: 543970 | C54: SHOORA | D54: BP EQUITIES PVT. LTD. | E54: BUY | F54: 9,000 | G54: 95.76 | H54: BSE
A55: 2023-08-29 | B55: 543970 | C55: SHOORA | D55: YUGA STOCKS AND COMMODITIES PRIVATE LIMITED . | E55: BUY | F55: 90,000 | G55: 95.76 | H55: BSE
A56: 2023-08-29 | B56: 543970 | C56: SHOORA | D56: LATIN MANHARLAL SECURITIES PVT LTD | E56: BUY | F56: 15,000 | G56: 95.76 | H56: BSE
A57: 2023-08-29 | B57: 543970 | C57: SHOORA | D57: MOUNTAIN VENTURES | E57: BUY | F57: 15,000 | G57: 95.76 | H57: BSE
A58: 2023-08-29 | B58: 543970 | C58: SHOORA | D58: RIKHAV SECURITIES LIMITED | E58: SELL | F58: 18,000 | G58: 94.24 | H58: BSE
A59: 2023-08-29 | B59: 530611 | C59: STURDY | D59: RAMESH BITTU | E59: SELL | F59: 819,023 | G59: 0.39 | H59: BSE
A60: 2023-08-29 | B60: 530611 | C60: STURDY | D60: RAMESH BITTU | E60: BUY | F60: 318 | G60: 0.41 | H60: BSE
A61: 2023-08-29 | B61: 539041 | C61: SVPHOUSING | D61: SANGEETASHARMA | E61: SELL | F61: 65,000 | G61: 63.5 | H61: BSE
A62: 2023-08-29 | B62: 539310 | C62: THINKINK | D62: RAJIV KUMAR | E62: SELL | F62: 186,900 | G62: 94.93 | H62: BSE
A63: 2023-08-29 | B63: 539310 | C63: THINKINK | D63: RAJIV KUMAR | E63: SELL | F63: 199,900 | G63: 94.9 | H63: BSE
A64: 2023-08-29 | B64: 539310 | C64: THINKINK | D64: RASHI AGRAWAL | E64: SELL | F64: 200,000 | G64: 94.9 | H64: BSE
A65: 2023-08-29 | B65: 539310 | C65: THINKINK | D65: MOHIT SHARMA | E65: SELL | F65: 239,900 | G65: 94.88 | H65: BSE
A66: 2023-08-29 | B66: 519367 | C66: TRANSFD | D66: ANUPKUMAR | E66: SELL | F66: 763 | G66: 61.2 | H66: BSE
A67: 2023-08-29 | B67: 531716 | C67: TRICOMFRU | D67: THRILOKSAXENA | E67: SELL | F67: 100,000 | G67: 1.2 | H67: BSE
A68: 2023-08-29 | B68: 531716 | C68: TRICOMFRU | D68: KAMLESH VIJAYKUMAR GANERIWALA | E68: SELL | F68: 100,000 | G68: 1.2 | H68: BSE
A69: 2023-08-29 | B69: 531716 | C69: TRICOMFRU | D69: SATYABHAMA VIJAYKUMAR GANERIWALA | E69: SELL | F69: 96,249 | G69: 1.2 | H69: BSE
A70: 2023-08-29 | B70: 531025 | C70: VISAGAR | D70: MULTIPLIER SHARE & STOCK ADVISORS PRIVATE LIMITED | E70: SELL | F70: 20 | G70: 0.93 | H70: BSE
A71: 2023-08-29 | B71: 531025 | C71: VISAGAR | D71: MULTIPLIER SHARE & STOCK ADVISORS PRIVATE LIMITED | E71: SELL | F71: 17,174,762 | G71: 0.93 | H71: BSE
A72: 2023-08-29 | B72: 531025 | C72: VISAGAR | D72: MAHADEV MANUBHAI MAKVANA | E72: SELL | F72: 3,835,600 | G72: 0.93 | H72: BSE
A73: 2023-08-29 | B73: 531025 | C73: VISAGAR | D73: AJAY SALVI | E73: SELL | F73: 8,228,333 | G73: 0.92 | H73: BSE
A74: 2023-08-29 | B74: 531025 | C74: VISAGAR | D74: MAHADEV MANUBHAI MAKVANA | E74: SELL | F74: 3,835,600 | G74: 0.93 | H74: BSE
A75: 2023-08-29 | B75: 531025 | C75: VISAGAR | D75: AJAY SALVI | E75: SELL | F75: 5,066,860 | G75: 0.93 | H75: BSE
A76: 2023-08-29 | B76: 543436 | C76: WITS | D76: NARENDRASINH MANUBHA ZALA | E76: SELL | F76: 7,200 | G76: 143.39 | H76: BSE
A77: 2023-08-29 | B77: 543436 | C77: WITS | D77: RAJWINDERKAUR | E77: SELL | F77: 6,400 | G77: 142.94 | H77: BSE
A78: 2023-08-29 | B78: AGUL | C78: A G Universal Limited | D78: AJIAM CAPITAL PRIVATE LIMITED . | E78: BUY | F78: 42,000 | G78: 77.75 | H78: NSE
A79: 2023-08-29 | B79: ANTGRAPHIC | C79: Antarctica Graphics Ltd | D79: MULTIPLIER SHARE & STOCK ADVISORS PRIVATE LIMITED | E79: BUY | F79: 1 | G79: 1 | H79: NSE
A80: 2023-08-29 | B80: BEML | C80: BEML Limited | D80: GRAVITON RESEARCH CAPITAL LLP | E80: BUY | F80: 341,361 | G80: 2383.76 | H80: NSE
A81: 2023-08-29 | B81: BEML | C81: BEML Limited | D81: NK SECURITIES RESEARCH PRIVATE LIMITED | E81: BUY | F81: 236,876 | G81: 2413.43 | H81: NSE
A82: 2023-08-29 | B82: BHANDARI | C82: Bhandari Hosiery Exp Ltd | D82: PRITHVI FINMART PRIVATE LIMITED | E82: BUY | F82: 941,287 | G82: 7.65 | H82: NSE
A83: 2023-08-29 | B83: CONFIPET | C83: Confidence Petro Ind Ltd. | D83: GRAVITON RESEARCH CAPITAL LLP | E83: BUY | F83: 1,447,910 | G83: 96.23 | H83: NSE
A84: 2023-08-29 | B84: DCXINDIA | C84: DCX Systems Limited | D84: GRAVITON RESEARCH CAPITAL LLP | E84: BUY | F84: 751,377 | G84: 329.8 | H84: NSE
A85: 2023-08-29 | B85: DIL | C85: Debock Industries Limited | D85: JAINAM BROKING LIMITED | E85: BUY | F85: 552,339 | G85: 10.89 | H85: NSE
A86: 2023-08-29 | B86: DIL | C86: Debock Industries Limited | D86: A S CONFIN PRIVATE LIMITED | E86: BUY | F86: 618,224 | G86: 10.91 | H86: NSE
A87: 2023-08-29 | B87: DIL | C87: Debock Industries Limited | D87: ESAAR (INDIA) LIMITED | E87: BUY | F87: 623,378 | G87: 11.14 | H87: NSE
A88: 2023-08-29 | B88: DIL | C88: Debock Industries Limited | D88: MOHIT SHARMA | E88: BUY | F88: 750,000 | G88: 10.8 | H88: NSE
A89: 2023-08-29 | B89: DIL | C89: Debock Industries Limited | D89: ELAN VENTURES PRIVATE LIMITED | E89: BUY | F89: 918,124 | G89: 10.87 | H89: NSE
A90: 2023-08-29 | B90: GANESHBE | C90: Ganesh Benzoplast Limited | D90: GRAVITON RESEARCH CAPITAL LLP | E90: BUY | F90: 341,712 | G90: 179.29 | H90: NSE
A91: 2023-08-29 | B91: GODHA | C91: Godha Cabcon Insulat Ltd | D91: MALTI SALVI | E91: BUY | F91: 1,704,000 | G91: 1.1 | H91: NSE
A92: 2023-08-29 | B92: HCC | C92: Hindustan Construc Co. | D92: HRTI PRIVATE LIMITED | E92: BUY | F92: 8,361,192 | G92: 27.97 | H92: NSE
A93: 2023-08-29 | B93: HSCL | C93: Himadri Speciality Chem L | D93: GRAVITON RESEARCH CAPITAL LLP | E93: BUY | F93: 2,711,284 | G93: 219.08 | H93: NSE
A94: 2023-08-29 | B94: IBREALEST | C94: Indiabulls Real Estate Li | D94: HRTI PRIVATE LIMITED | E94: BUY | F94: 2,835,553 | G94: 77.34 | H94: NSE
A95: 2023-08-29 | B95: IBULHSGFIN | C95: Indiabulls Hsg Fin Ltd | D95: HRTI PRIVATE LIMITED | E95: BUY | F95: 3,201,474 | G95: 189.82 | H95: NSE
A96: 2023-08-29 | B96: IPL | C96: India Pesticides Limited | D96: MSB E TRADE SECURITIES LIMITED | E96: BUY | F96: 1,099,315 | G96: 255.04 | H96: NSE
A97: 2023-08-29 | B97: KSHITIJPOL | C97: Kshitij Polyline Limited | D97: ZENAB AIYUB YACOOBALI | E97: BUY | F97: 499,999 | G97: 5.5 | H97: NSE
A98: 2023-08-29 | B98: KSHITIJPOL | C98: Kshitij Polyline Limited | D98: MULTIPLIER SHARE & STOCK ADVISORS PRIVATE LIMITED | E98: BUY | F98: 500,000 | G98: 5.5 | H98: NSE
A99: 2023-08-29 | B99: MADHAV | C99: Madhav Marbles and Granit | D99: MITTAL RIMPY | E99: BUY | F99: 67,147 | G99: 50.31 | H99: NSE
A100: 2023-08-29 | B100: MOS | C100: Mos Utility Limited | D100: MARWADI SHARES AND FINANCE LTD. | E100: BUY | F100: 131,200 | G100: 108.68 | H100: NSE
A101: 2023-08-29 | B101: MOXSH | C101: Moxsh Overseas Educon Ltd | D101: VIGHNESH ARUN PALKAR | E101: BUY | F101: 13,600 | G101: 136.29 | H101: NSE
A102: 2023-08-29 | B102: MTNL | C102: Maha Tel Nigam Ltd. | D102: BONANZA COMMODITY BROKERS PRIVATE LIMITED | E102: BUY | F102: 1,471,916 | G102: 23.74 | H102: NSE
A103: 2023-08-29 | B103: NIDAN | C103: Nidan Labs and Health Ltd | D103: AJAY SALVI | E103: BUY | F103: 86,000 | G103: 37 | H103: NSE
A104: 2023-08-29 | B104: ORIENTLTD | C104: Orient Press Limited | D104: PRIYANKA THAKUR | E104: BUY | F104: 77,037 | G104: 84.18 | H104: NSE
A105: 2023-08-29 | B105: ORIENTLTD | C105: Orient Press Limited | D105: GRAVITON RESEARCH CAPITAL LLP | E105: BUY | F105: 59,729 | G105: 89.14 | H105: NSE
A106: 2023-08-29 | B106: RAILTEL | C106: Railtel Corp of Ind Ltd | D106: GRAVITON RESEARCH CAPITAL LLP | E106: BUY | F106: 2,655,324 | G106: 195.54 | H106: NSE
A107: 2023-08-29 | B107: RKEC | C107: RKEC Projects Limited | D107: EARNEST SHIPPING AND SHIP BUILDERS LIMITED | E107: BUY | F107: 300,000 | G107: 73.68 | H107: NSE
A108: 2023-08-29 | B108: RPOWER | C108: Reliance Power Limited | D108: HRTI PRIVATE LIMITED | E108: BUY | F108: 24,105,980 | G108: 18.24 | H108: NSE
A109: 2023-08-29 | B109: RPOWER | C109: Reliance Power Limited | D109: CITADEL SECURITIES INDIA MARKETS PRIVATE LIMITED | E109: BUY | F109: 22,180,795 | G109: 18.22 | H109: NSE
A110: 2023-08-29 | B110: SAHANA | C110: Sahana System Limited | D110: YUGA STOCKS AND COMMODITIES PRIVATE LIMITED . | E110: BUY | F110: 51,000 | G110: 269.14 | H110: NSE
A111: 2023-08-29 | B111: SAHANA | C111: Sahana System Limited | D111: AJIAM CAPITAL PRIVATE LIMITED . | E111: BUY | F111: 42,000 | G111: 270.1 | H111: NSE
A112: 2023-08-29 | B112: SHRIRAMPPS | C112: Shriram Properties Ltd | D112: JAINAM BROKING LIMITED | E112: BUY | F112: 976,411 | G112: 88.85 | H112: NSE
A113: 2023-08-29 | B113: SHRIRAMPPS | C113: Shriram Properties Ltd | D113: GRAVITON RESEARCH CAPITAL LLP | E113: BUY | F113: 1,065,445 | G113: 88.69 | H113: NSE
A114: 2023-08-29 | B114: VIKASECO | C114: Vikas EcoTech Limited | D114: VISHWAS FINCAP SERVICES PRIVATE LIMITED | E114: BUY | F114: 9,729,197 | G114: 3 | H114: NSE
A115: 2023-08-29 | B115: VIKASLIFE | C115: Vikas Lifecare Limited | D115: HI GROWTH CORPORATE SERVICES PVT LTD | E115: BUY | F115: 8,487,000 | G115: 3.98 | H115: NSE
A116: 2023-08-29 | B116: VINYLINDIA | C116: Vinyl Chemicals (India) L | D116: YUGA STOCKS AND COMMODITIES PRIVATE LIMITED . | E116: BUY | F116: 177,257 | G116: 508.84 | H116: NSE
A117: 2023-08-29 | B117: VINYLINDIA | C117: Vinyl Chemicals (India) L | D117: GRAVITON RESEARCH CAPITAL LLP | E117: BUY | F117: 106,044 | G117: 485.28 | H117: NSE
A118: 2023-08-29 | B118: AGUL | C118: A G Universal Limited | D118: R K MIDCAP FINSEC PVT LTD | E118: SELL | F118: 34,000 | G118: 77.59 | H118: NSE
A119: 2023-08-29 | B119: AGUL | C119: A G Universal Limited | D119: AJIAM CAPITAL PRIVATE LIMITED . | E119: SELL | F119: 38,000 | G119: 77.5 | H119: NSE
A120: 2023-08-29 | B120: ALLETEC | C120: All E Technologies Ltd | D120: DREAM ACHIEVER CONSULTANCY SERVICES PRIVATE LIMITED | E120: SELL | F120: 251,200 | G120: 149.45 | H120: NSE
A121: 2023-08-29 | B121: AMBICAAGAR | C121: Ambica Agar & AromaIndLtd | D121: MITHUN SECURITIES PVT. LTD. | E121: SELL | F121: 100,000 | G121: 43.05 | H121: NSE
A122: 2023-08-29 | B122: ANTGRAPHIC | C122: Antarctica Graphics Ltd | D122: MULTIPLIER SHARE & STOCK ADVISORS PRIVATE LIMITED | E122: SELL | F122: 941,001 | G122: 1 | H122: NSE
A123: 2023-08-29 | B123: BEML | C123: BEML Limited | D123: GRAVITON RESEARCH CAPITAL LLP | E123: SELL | F123: 341,361 | G123: 2383.31 | H123: NSE
A124: 2023-08-29 | B124: BEML | C124: BEML Limited | D124: NK SECURITIES RESEARCH PRIVATE LIMITED | E124: SELL | F124: 236,876 | G124: 2414.76 | H124: NSE
A125: 2023-08-29 | B125: BHANDARI | C125: Bhandari Hosiery Exp Ltd | D125: PRITHVI FINMART PRIVATE LIMITED | E125: SELL | F125: 958,799 | G125: 7.69 | H125: NSE
A126: 2023-08-29 | B126: CAPACITE | C126: Capacite Infraproject Ltd | D126: GOLDMAN SACHS INVESTMENTS (MAURITIUS) I LIMITED | E126: SELL | F126: 375,000 | G126: 203.19 | H126: NSE
A127: 2023-08-29 | B127: CONFIPET | C127: Confidence Petro Ind Ltd. | D127: GRAVITON RESEARCH CAPITAL LLP | E127: SELL | F127: 1,447,910 | G127: 96.39 | H127: NSE
A128: 2023-08-29 | B128: DCXINDIA | C128: DCX Systems Limited | D128: GRAVITON RESEARCH CAPITAL LLP | E128: SELL | F128: 751,377 | G128: 329.71 | H128: NSE
A129: 2023-08-29 | B129: DIL | C129: Debock Industries Limited | D129: JAINAM BROKING LIMITED | E129: SELL | F129: 352,339 | G129: 10.91 | H129: NSE
A130: 2023-08-29 | B130: DIL | C130: Debock Industries Limited | D130: ELAN VENTURES PRIVATE LIMITED | E130: SELL | F130: 473,792 | G130: 10.8 | H130: NSE
A131: 2023-08-29 | B131: DIL | C131: Debock Industries Limited | D131: UPPINANGADY SUDHINDRA NAYAK | E131: SELL | F131: 1,112,584 | G131: 10.84 | H131: NSE
A132: 2023-08-29 | B132: DIL | C132: Debock Industries Limited | D132: A S CONFIN PRIVATE LIMITED | E132: SELL | F132: 618,224 | G132: 10.89 | H132: NSE
A133: 2023-08-29 | B133: DIL | C133: Debock Industries Limited | D133: ESAAR (INDIA) LIMITED | E133: SELL | F133: 623,378 | G133: 10.8 | H133: NSE
A134: 2023-08-29 | B134: GANESHBE | C134: Ganesh Benzoplast Limited | D134: GRAVITON RESEARCH CAPITAL LLP | E134: SELL | F134: 341,712 | G134: 179.5 | H134: NSE
A135: 2023-08-29 | B135: GODHA | C135: Godha Cabcon Insulat Ltd | D135: MALTI SALVI | E135: SELL | F135: 29,204,000 | G135: 1.1 | H135: NSE
A136: 2023-08-29 | B136: HCC | C136: Hindustan Construc Co. | D136: HRTI PRIVATE LIMITED | E136: SELL | F136: 8,665,883 | G136: 27.98 | H136: NSE
A137: 2023-08-29 | B137: HEADSUP | C137: Heads UP Ventures Limited | D137: MANIMEGALAI GANESAN | E137: SELL | F137: 227,959 | G137: 11.14 | H137: NSE
A138: 2023-08-29 | B138: HSCL | C138: Himadri Speciality Chem L | D138: GRAVITON RESEARCH CAPITAL LLP | E138: SELL | F138: 2,711,284 | G138: 219.28 | H138: NSE
A139: 2023-08-29 | B139: IBREALEST | C139: Indiabulls Real Estate Li | D139: HRTI PRIVATE LIMITED | E139: SELL | F139: 2,725,227 | G139: 77.45 | H139: NSE
A140: 2023-08-29 | B140: IBULHSGFIN | C140: Indiabulls Hsg Fin Ltd | D140: HRTI PRIVATE LIMITED | E140: SELL | F140: 3,336,160 | G140: 190.19 | H140: NSE
A141: 2023-08-29 | B141: IPL | C141: India Pesticides Limited | D141: MSB E TRADE SECURITIES LIMITED | E141: SELL | F141: 1,099,315 | G141: 255.17 | H141: NSE
A142: 2023-08-29 | B142: KSHITIJPOL | C142: Kshitij Polyline Limited | D142: BHARAT HEMRAJ GALA | E142: SELL | F142: 1,701,419 | G142: 5.5 | H142: NSE
A143: 2023-08-29 | B143: MADHAV | C143: Madhav Marbles and Granit | D143: MITTAL RIMPY | E143: SELL | F143: 67,147 | G143: 50.38 | H143: NSE
A144: 2023-08-29 | B144: MOS | C144: Mos Utility Limited | D144: MARWADI SHARES AND FINANCE LTD. | E144: SELL | F144: 131,200 | G144: 109.31 | H144: NSE
A145: 2023-08-29 | B145: MTNL | C145: Maha Tel Nigam Ltd. | D145: BONANZA COMMODITY BROKERS PRIVATE LIMITED | E145: SELL | F145: 1,451,916 | G145: 23.53 | H145: NSE
A146: 2023-08-29 | B146: NIDAN | C146: Nidan Labs and Health Ltd | D146: NITIN VITTHALRAO THORAVE | E146: SELL | F146: 100,000 | G146: 37.01 | H146: NSE
A147: 2023-08-29 | B147: NIDAN | C147: Nidan Labs and Health Ltd | D147: AJAY SALVI | E147: SELL | F147: 86,000 | G147: 37.19 | H147: NSE
A148: 2023-08-29 | B148: ORIENTLTD | C148: Orient Press Limited | D148: PRIYANKA THAKUR | E148: SELL | F148: 77,037 | G148: 88.58 | H148: NSE
A149: 2023-08-29 | B149: ORIENTLTD | C149: Orient Press Limited | D149: GRAVITON RESEARCH CAPITAL LLP | E149: SELL | F149: 59,729 | G149: 89.27 | H149: NSE
A150: 2023-08-29 | B150: RAILTEL | C150: Railtel Corp of Ind Ltd | D150: GRAVITON RESEARCH CAPITAL LLP | E150: SELL | F150: 2,655,324 | G150: 195.62 | H150: NSE
A151: 2023-08-29 | B151: REMSONSIND | C151: Remsons Industries Ltd | D151: SAGAR VINAYCHANDRA SHAH | E151: SELL | F151: 50,000 | G151: 398.18 | H151: NSE
A152: 2023-08-29 | B152: RPOWER | C152: Reliance Power Limited | D152: CITADEL SECURITIES INDIA MARKETS PRIVATE LIMITED | E152: SELL | F152: 8,473,973 | G152: 18.3 | H152: NSE
A153: 2023-08-29 | B153: RPOWER | C153: Reliance Power Limited | D153: HRTI PRIVATE LIMITED | E153: SELL | F153: 23,589,605 | G153: 18.19 | H153: NSE
A154: 2023-08-29 | B154: RTNPOWER | C154: RattanIndia Power Limited | D154: ABARC-AST-002-TRUST | E154: SELL | F154: 53,849,965 | G154: 5.84 | H154: NSE
A155: 2023-08-29 | B155: SAHANA | C155: Sahana System Limited | D155: YUGA STOCKS AND COMMODITIES PRIVATE LIMITED . | E155: SELL | F155: 51,000 | G155: 268.62 | H155: NSE
A156: 2023-08-29 | B156: SAHANA | C156: Sahana System Limited | D156: AJIAM CAPITAL PRIVATE LIMITED . | E156: SELL | F156: 36,000 | G156: 268.06 | H156: NSE
A157: 2023-08-29 | B157: SHRIRAMPPS | C157: Shriram Properties Ltd | D157: JAINAM BROKING LIMITED | E157: SELL | F157: 182,055 | G157: 87.2 | H157: NSE
A158: 2023-08-29 | B158: SHRIRAMPPS | C158: Shriram Properties Ltd | D158: GRAVITON RESEARCH CAPITAL LLP | E158: SELL | F158: 1,065,445 | G158: 88.77 | H158: NSE
A159: 2023-08-29 | B159: SSFL | C159: Srivari Spices N Foods L | D159: SPRING VENTURES | E159: SELL | F159: 45,000 | G159: 135.5 | H159: NSE
A160: 2023-08-29 | B160: VIKASECO | C160: Vikas EcoTech Limited | D160: VISHWAS FINCAP SERVICES PRIVATE LIMITED | E160: SELL | F160: 8,739,327 | G160: 3.02 | H160: NSE
A161: 2023-08-29 | B161: VIKASECO | C161: Vikas EcoTech Limited | D161: VIKASA GLOBAL FUND PCC-EUBILIA CAPITAL PARTNERS FUND I | E161: SELL | F161: 30,562,489 | G161: 2.91 | H161: NSE
A162: 2023-08-29 | B162: VIKASLIFE | C162: Vikas Lifecare Limited | D162: HI GROWTH CORPORATE SERVICES PVT LTD | E162: SELL | F162: 6,951,264 | G162: 4 | H162: NSE
A163: 2023-08-29 | B163: VINYLINDIA | C163: Vinyl Chemicals (India) L | D163: YUGA STOCKS AND COMMODITIES PRIVATE LIMITED . | E163: SELL | F163: 177,257 | G163: 509.82 | H163: NSE
A164: 2023-08-29 | B164: VINYLINDIA | C164: Vinyl Chemicals (India) L | D164: GRAVITON RESEARCH CAPITAL LLP | E164: SELL | F164: 106,044 | G164: 484.78 | H164: NSE

Sheet Call Tracker (Equity & F&O)
M5: Back To Main Page
A6: Retail Research Technical Calls & Fundamental Performance Report for the month of August-2023
M7: =Main!B10 -> 2023-08-30
B8: Positional Call
A9: Sr.no | B9: Date | D9: Company | E9: Rec | F9: Rec Price | G9: Stop Loss*** | H9: Call Closed At | I9: Target | J9: Remark | K9: Profit / Loss per Share | L9: All charges | M9: Net Gain / Loss % | N9: Status | O9: Closed Date | P9: Market Closing Price
A10: 1 | B10: 2023-06-15 | D10: ATUL | E10: Accu | F10: 6800 | G10: 6400 | H10: 7150 | I10: 7400-7600 | J10: Profit of Rs.350/- | K10: =H10-F10 -> 350 | L10: =(F10*-0.3)/100 -> -20.40 | M10: =(K10+L10)/F10 -> 4.85% | N10: Successful | O10: 2023-08-01 | R10: H
A11: 2 | B11: 2023-07-04 | D11: BIOCON | E11: Accu<> | F11: 253.5 | G11: 234 | H11: 272 | I11: 300-320 | J11: Profit of Rs.18.5/- | K11: =H11-F11 -> 18.5 | L11: =(F11*-0.3)/100 -> -0.76 | M11: =(K11+L11)/F11 -> 7.00% | N11: Successful | O11: 2023-08-08 | R11: H
A12: 3 | B12: 2023-07-05 | D12: GMMPFAUDLR | E12: Accu | F12: 1465 | G12: 1395 | H12: 1545 | I12: 1580-1640 | J12: Profit of Rs.80/- | K12: =H12-F12 -> 80 | L12: =(F12*-0.3)/100 -> -4.40 | M12: =(K12+L12)/F12 -> 5.16% | N12: Successful | O12: 2023-08-11 | R12: N
A13: 4 | B13: 2023-07-12 | D13: HDFCBANK | E13: Accu | F13: 1595-1655 | G13: 1540 | I13: 1800-1900 | J13: Open | P13: =VLOOKUP(D13,'MidCap Intra'!$B$11:$C$568,2,0) -> 1590.30 | R13: H
A14: 5 | B14: 2023-07-13 | D14: JAMNAAUTO | E14: Accu<> | F14: 106.4 | G14: 102 | H14: 113.5 | I14: 118-122 | J14: Profit of Rs.7.1/- | K14: =H14-F14 -> 7.1 | L14: =(F14*-0.3)/100 -> -0.32 | M14: =(K14+L14)/F14 -> 6.37% | N14: Successful | O14: 2023-08-14 | R14: H
A15: 6 | B15: 2023-07-18 | D15: SBIN | E15: Accu | F15: 579 | G15: 548 | H15: 581 | I15: 640-660 | J15: Profit of Rs.2/- | K15: =H15-F15 -> 2 | L15: =(F15*-0.3)/100 -> -1.74 | M15: =(K15+L15)/F15 -> 0.05% | N15: Neutral | O15: 2023-08-24 | R15: H
A16: 7 | B16: 2023-07-18 | D16: REDINGTON | E16: Accu | F16: 178 | G16: 168 | H16: 170 | I16: 195-205 | J16: Loss of Rs.8/- | K16: =H16-F16 -> -8 | L16: =(F16*-0.3)/100 -> -0.53 | M16: =(K16+L16)/F16 -> -4.79% | N16: Unsuccessful | O16: 2023-08-02 | R16: H
A17: 8 | B17: 2023-07-26 | D17: JKPAPER | E17: Accu | F17: 326 | G17: 299 | H17: 345.5 | I17: 350-370 | J17: Profit of Rs.19.5/- | K17: =H17-F17 -> 19.5 | L17: =(F17*-0.3)/100 -> -0.98 | M17: =(K17+L17)/F17 -> 5.68% | N17: Successful | O17: 2023-08-02 | R17: H
A18: 9 | B18: 2023-07-26 | D18: BANKBARODA | E18: Accu | F18: 191-197 | G18: 185 | I18: 215-225 | J18: Open | P18: =VLOOKUP(D18,'MidCap Intra'!$B$11:$C$568,2,0) -> 191.15 | R18: H
A19: 10 | B19: 2023-07-26 | D19: RVNL | E19: Accu | F19: 121-134 | G19: 118 | I19: 145-150 | J19: Open | P19: =VLOOKUP(D19,'MidCap Intra'!$B$11:$C$568,2,0) -> 127.75 | R19: H
A20: 11 | B20: 2023-07-27 | D20: INDUSTOWER | E20: Accu | F20: 173.5 | G20: 164 | H20: 164 | I20: 190-200 | J20: Loss of Rs.9.5/- | K20: =H20-F20 -> -9.5 | L20: =(F20*-0.3)/100 -> -0.52 | M20: =(K20+L20)/F20 -> -5.78% | N20: Unsuccessful | O20: 2023-08-16 | R20: H
A21: 12 | B21: 2023-07-28 | D21: MASTEK | E21: Accu | F21: 2045 | G21: 1840 | H21: 2154 | I21: 2400-2500 | J21: Profit of Rs.109/- | K21: =H21-F21 -> 109 | L21: =(F21*-0.3)/100 -> -6.14 | M21: =(K21+L21)/F21 -> 5.03% | N21: Successful | O21: 2023-08-14 | R21: H
A22: 13 | B22: 2023-08-01 | D22: TIINDIA | E22: Accu | F22: 3035 | G22: 2880 | H22: 2865 | I22: 3400-3500 | J22: Loss of Rs.170/- | K22: =H22-F22 -> -170 | L22: =(F22*-0.3)/100 -> -9.11 | M22: =(K22+L22)/F22 -> -5.90% | N22: Unsuccessful | O22: 2023-08-11
A23: 14 | B23: 2023-08-04 | D23: VINATIORGA | E23: Accu | F23: 1805-1855 | G23: 1745 | I23: 2000-2050 | J23: Open | P23: =VLOOKUP(D23,'MidCap Intra'!$B$11:$C$568,2,0) -> 1818.50
A24: 15 | B24: 2023-08-07 | D24: TATAMTRDVR | E24: Accu | F24: 381-399 | G24: 365 | I24: 440-460 | J24: Open | P24: =VLOOKUP(D24,'MidCap Intra'!$B$11:$C$568,2,0) -> 403.60
A25: 16 | B25: 2023-08-08 | D25: TATACHEM | E25: Accu | F25: 1012.5 | G25: 965 | H25: 1062.5 | I25: 1100-1150 | J25: Profit of Rs.50/- | K25: =H25-F25 -> 50 | L25: =(F25*-0.3)/100 -> -3.04 | M25: =(K25+L25)/F25 -> 4.64% | N25: Successful | O25: 2023-08-29
A26: 17 | B26: 2023-08-09 | D26: VBL | E26: Accu<> | F26: 816.25 | G26: 750 | H26: 865 | I26: 900-950 | J26: Profit of Rs.48.75/- | K26: =H26-F26 -> 48.75 | L26: =(F26*-0.3)/100 -> -2.45 | M26: =(K26+L26)/F26 -> 5.67% | N26: Successful | O26: 2023-08-14
A27: 18 | B27: 2023-08-11 | D27: IBULHSGFIN | E27: Accu | F27: 160 | G27: 150 | H27: 150 | I27: 180-190 | J27: Loss of Rs.10/- | K27: -10 | L27: =(F27*-0.3)/100 -> -0.48 | M27: -6.55% | N27: Unsuccessful | O27: 2023-08-16
A28: 19 | B28: 2023-08-14 | D28: FEDERALBNK | E28: Accu | F28: 132 | G28: 120 | H28: 139 | I28: 145-150 | J28: Profit of Rs.7/- | K28: =H28-F28 -> 7 | L28: =(F28*-0.3)/100 -> -0.40 | M28: =(K28+L28)/F28 -> 5.00% | N28: Successful | O28: 2023-08-23
A29: 20 | B29: 2023-08-16 | D29: CARBORUNIV | E29: Accu | F29: 1030 | G29: 930 | H29: 1082 | I29: 1150-1200 | J29: Profit of Rs.52/- | K29: =H29-F29 -> 52 | L29: =(F29*-0.02)/100 -> -0.21 | M29: =(K29+L29)/F29 -> 5.03% | N29: Successful | O29: 2023-08-16
A30: 21 | B30: 2023-08-17 | D30: CARBORUNIV | E30: Accu | F30: 1085 | G30: 995 | H30: 1142.5 | I30: 1180-1220 | J30: Profit of Rs.57.5/- | K30: 57.5 | L30: =(F30*-0.3)/100 -> -3.26 | M30: 5.00% | N30: Successful | O30: 2023-08-21
A31: 22 | B31: 2023-08-22 | D31: ATUL | E31: Accu | F31: 6790 | G31: 6400 | H31: 7200 | I31: 7200-7400 | J31: Profit of Rs.410/- | K31: =H31-F31 -> 410 | L31: =(F31*-0.3)/100 -> -20.37 | M31: =(K31+L31)/F31 -> 5.74% | N31: Successful | O31: 2023-08-29
A32: 23 | B32: 2023-08-22 | D32: PCBL | E32: Accu | F32: 153.5 | G32: 142 | H32: 164.5 | I32: 170-175 | J32: Profit of Rs.11/- | K32: =H32-F32 -> 11 | L32: =(F32*-0.3)/100 -> -0.46 | M32: =(K32+L32)/F32 -> 6.87% | N32: Successful | O32: 2023-08-29
A33: 24 | B33: 2023-08-25 | D33: MANAPPURAM | E33: Accu | F33: 137.5-141.5 | G33: 133 | I33: 149-155 | J33: Open | P33: =VLOOKUP(D33,'MidCap Intra'!$B$11:$C$568,2,0) -> 145.90
A34: 25 | B34: 2023-08-29 | D34: FLUOROCHEM | E34: Accu | F34: 2815-2935 | G34: 2700 | I34: 3180-3380 | J34: Open | P34: =VLOOKUP(D34,'MidCap Intra'!$B$11:$C$568,2,0) -> 3021.55
A35: 26 | B35: 2023-08-29 | D35: JAMNAAUTO | E35: Accu | F35: 109.5-114.5 | G35: 105 | I35: 124-130 | J35: Open | P35: =VLOOKUP(D35,'MidCap Intra'!$B$11:$C$568,2,0) -> 115.40
A43: CLBS = Closing Basis ***
A44: Dividend adjusted <> | F44: Reinitiated $
A45: Part book {} | D45: s | F45: Revised stoploss #
B47: Momentum Call
A48: Sr.no | B48: Date | D48: Company | E48: Rec | F48: Rec Price | G48: Stop Loss | H48: Call Closed At | I48: Target | J48: Remark | K48: Profit / Loss per Share/Lot | L48: All charges | M48: Net Gain / Loss % | N48: Status | O48: Closed Date
A49: 1 | B49: 2023-07-21 | D49: FEDERALBNK | E49: Buy | F49: 134 | G49: 129.9 | H49: 134.75 | I49: 140-142 | J49: Profit of Rs.0.75/- | K49: =H49-F49 -> 0.75 | L49: =(F49*-0.3)/100 -> -0.40 | M49: =(K49+L49)/F49 -> 0.26% | N49: Neutral | O49: 2023-08-04 | R49: H
A50: 2 | B50: 2023-07-28 | D50: MARUTI | E50: Buy<> | F50: 9585 | G50: 9390 | H50: 9390 | I50: 10100-10300 | J50: Loss of Rs.195/- | K50: -195 | L50: =(F50*-0.3)/100 -> -28.76 | M50: -2.33% | N50: Unsuccessful | O50: 2023-08-10 | R50: H
A51: 3 | B51: 2023-07-28 | D51: VINATIORGA | E51: Buy | F51: 1807.5 | G51: 1750 | H51: 1882.5 | I51: 1880-1920 | J51: Profit of Rs.75/- | K51: =H51-F51 -> 75 | L51: =(F51*-0.3)/100 -> -5.42 | M51: =(K51+L51)/F51 -> 3.85% | N51: Successful | O51: 2023-08-01 | R51: H
A52: 4 | B52: 2023-08-01 | D52: AMBUJACEM | E52: Buy | F52: 453 | G52: 440 | H52: 462.5 | I52: 475-485 | J52: Profit of Rs.9.5/- | K52: =H52-F52 -> 9.5 | L52: =(F52*-0.02)/100 -> -0.09 | M52: =(K52+L52)/F52 -> 2.08% | N52: Successful | O52: 2023-08-01
A53: 5 | B53: 2023-08-01 | D53: UPL | E53: Buy<> | F53: 615 | G53: 594 | H53: 601 | I53: 640-650 | J53: Loss of Rs.14/- | K53: =H53-F53 -> -14 | L53: =(F53*-0.3)/100 -> -1.85 | M53: =(K53+L53)/F53 -> -2.58% | N53: Unsuccessful | O53: 2023-08-03
A54: 6 | B54: 2023-08-10 | D54: MANAPPURAM | E54: Buy | F54: 145 | G54: 140 | H54: 147.5 | I54: 152-158 | J54: Profit of Rs.2.5/- | K54: 2.5 | L54: =(F54*-0.02)/100 -> -0.03 | M54: 1.70% | N54: Successful | O54: 2023-08-10
A55: 7 | B55: 2023-08-11 | D55: MANAPPURAM | E55: Buy | F55: 144.5 | G55: 140 | H55: 149.5 | I55: 150-155 | J55: Profit of Rs.5/- | K55: =H55-F55 -> 5 | L55: =(F55*-0.02)/100 -> -0.03 | M55: =(K55+L55)/F55 -> 3.44% | N55: Successful | O55: 2023-08-11
A56: 8 | B56: 2023-08-14 | D56: SIEMENS | E56: Buy | F56: 3630 | G56: 3540 | H56: 3681 | I56: 3750-3800 | J56: Profit of Rs.51/- | K56: =H56-F56 -> 51 | L56: =(F56*-0.3)/100 -> -10.89 | M56: =(K56+L56)/F56 -> 1.10% | N56: Successful | O56: 2023-08-22
A57: 9 | B57: 2023-08-14 | D57: MANAPPURAM | E57: Buy | F57: 143.75 | G57: 139.5 | H57: 147.5 | I57: 150-155 | J57: Profit of Rs.3.75/- | K57: =H57-F57 -> 3.75 | L57: =(F57*-0.02)/100 -> -0.03 | M57: =(K57+L57)/F57 -> 2.59% | N57: Successful | O57: 2023-08-14
A58: 10 | B58: 2023-08-18 | D58: MANAPPURAM | E58: Buy | F58: 146 | G58: 141 | H58: 147.5 | I58: 152-155 | J58: Profit of Rs.1.5/- | K58: =H58-F58 -> 1.5 | L58: =(F58*-0.02)/100 -> -0.03 | M58: =(K58+L58)/F58 -> 1.01% | N58: Successful | O58: 2023-08-18
A59: 11 | B59: 2023-08-24 | D59: MANAPPURAM | E59: Buy | F59: 141.5 | G59: 138 | H59: 144.5 | I59: 148-150 | J59: Profit of Rs.3/- | K59: =H59-F59 -> 3 | L59: =(F59*-0.02)/100 -> -0.03 | M59: =(K59+L59)/F59 -> 2.10% | N59: Successful | O59: 2023-08-24
A61: CLBS = Closing Basis *** | H61: *
A62: Dividend adjusted <> | F62: Reinitiated $
F63: Revised stoploss #
A65: Master Trade High Risk
A66: Sr.no | B66: Date | D66: Company | E66: Rec | F66: Rec Price | G66: Stop Loss | H66: Call Closed At | I66: Target | J66: Remark | K66: Profit / Loss per share | L66: All charges | M66: Gain / Loss per Lot | N66: Lot | O66: Status | P66: Closed Date
A67: 1 | B67: 2023-07-31 | D67: TORNTPHARM AUG FUT | E67: Buy | F67: 2015.5 | G67: 1990 | H67: 1990 | I67: 2050-2070 | J67: Loss of Rs.25.5/- | K67: =H67-F67 -> -25.5 | L67: =(H67*N67)*0.03% -> 298.50 | M67: =(K67*N67)-L67 -> -13048.5 | N67: 500 | O67: Unsuccessful | P67: 2023-08-02 | R67: N
A68: 2 | B68: 2023-07-31 | D68: INDUSTOWER AUG FUT | E68: Buy | F68: 174.5 | G68: 171 | H68: 175.25 | I68: 180-182 | J68: Profit of Rs.0.75/- | K68: =H68-F68 -> 0.75 | L68: 178.76 | M68: =(K68*N68)-L68 -> 2371.2 | N68: 3400 | O68: Successful | P68: 2023-08-01 | R68: H
A69: 3 | B69: 2023-07-31 | D69: RELIANCE AUG FUT | E69: Buy | F69: 2545 | G69: 2495 | H69: 2495 | I69: 2600-2640 | J69: Loss of Rs.50/- | K69: -50 | L69: 187.13 | M69: -12687.1 | N69: 250 | O69: Unsuccessful | P69: 2023-08-02 | R69: N
A70: 4 | B70: 2023-08-03 | D70: GRANULES AUG FUT | E70: Buy | F70: 319 | G70: 313 | H70: 320.5 | I70: 327-329 | J70: Profit of Rs.1.5/- | K70: =H70-F70 -> 1.5 | L70: 192.30 | M70: =(K70*N70)-L70 -> 2807.7 | N70: 2000 | O70: Successful | P70: 2023-08-03
A71: 5 | B71: 2023-08-04 | D71: COLPAL AUG FUT | E71: Buy | F71: 2027.5 | G71: 1990 | H71: 1990 | I71: 2095-2105 | J71: Loss of Rs.37.5/- | K71: -37.5 | L71: 208.95 | M71: -13334.0 | N71: 350 | O71: Unsuccessful | P71: 2023-08-08
A72: 6 | B72: 2023-08-04 | D72: AMBUJACEM AUG FUT | E72: Buy | F72: 474 | G72: 468 | H72: 478.5 | I72: 480-485 | J72: Profit of Rs.4.5/- | K72: =H72-F72 -> 4.5 | L72: 258.39 | M72: =(K72*N72)-L72 -> 7841.6 | N72: 1800 | O72: Successful | P72: 2023-08-04
A73: 7 | B73: 2023-08-04 | D73: GRANULES AUG FUT | E73: Buy | F73: 320.5 | G73: 313 | H73: 324.25 | I73: 327-330 | J73: Profit of Rs.3.75/- | K73: 3.75 | L73: 194.55 | M73: 7305.5 | N73: 2000 | O73: Successful | P73: 2023-08-07
A74: 8 | B74: 2023-08-07 | D74: AMBUJACEM AUG FUT | E74: Buy | F74: 472.5 | G74: 467 | H74: 478 | I74: 480-485 | J74: Profit of Rs.5.5/- | K74: =H74-F74 -> 5.5 | L74: 258.12 | M74: =(K74*N74)-L74 -> 9641.9 | N74: 1800 | O74: Successful | P74: 2023-08-07
A75: 9 | B75: 2023-08-07 | D75: CONCOR AUG FUT | E75: Buy | F75: 689 | G75: 677 | H75: 697 | I75: 700-710 | J75: Profit of Rs.8/- | K75: =H75-F75 -> 8 | L75: 209.10 | M75: =(K75*N75)-L75 -> 7790.9 | N75: 1000 | O75: Successful | P75: 2023-08-07
A76: 10 | B76: 2023-08-08 | D76: JUBLFOOD AUG FUT | E76: Buy | F76: 507 | G76: 497 | H76: 497 | I76: 520-525 | J76: Loss of Rs.10/- | K76: -10 | L76: =(H76*N76)*0.03% -> 186.38 | M76: -12686.4 | N76: 1250 | O76: Unsuccessful | P76: 2023-08-09
A77: 11 | B77: 2023-08-08 | D77: LTTS AUG FUT | E77: Buy | F77: 4287 | G77: 4225 | H77: 4327.5 | I77: 4350-4400 | J77: Profit of Rs.40.5/- | K77: 40.5 | L77: 259.65 | M77: 7840.4 | N77: 200 | O77: Successful | P77: 2023-08-10
A78: 12 | B78: 2023-08-09 | D78: ABB AUG FUT | E78: Buy | F78: 4530 | G78: 4480 | H78: 4567.5 | I78: 4600-4640 | J78: Profit of Rs.37.5/- | K78: =H78-F78 -> 37.5 | L78: =(H78*N78)*0.03% -> 342.56 | M78: =(K78*N78)-L78 -> 9032.4 | N78: 250 | O78: Successful | P78: 2023-08-10
A79: 13 | B79: 2023-08-10 | D79: ABBOTINDIA AUG FUT | E79: Buy | F79: 24015 | G79: 23700 | H79: 24220 | I79: 24500-24700 | J79: Profit of Rs.205/- | K79: =H79-F79 -> 205 | L79: =(H79*N79)*0.03% -> 290.64 | M79: =(K79*N79)-L79 -> 7909.4 | N79: 40 | O79: Successful | P79: 2023-08-11
A80: 14 | B80: 2023-08-10 | D80: LTTS AUG FUT | E80: Buy | F80: 4255 | G80: 4195 | H80: 4295 | I80: 4320-4350 | J80: Profit of Rs.40/- | K80: =H80-F80 -> 40 | L80: =(H80*N80)*0.03% -> 257.70 | M80: =(K80*N80)-L80 -> 7742.3 | N80: 200 | O80: Successful | P80: 2023-08-11
A81: 15 | B81: 2023-08-14 | D81: LTTS AUG FUT | E81: Buy | F81: 4175 | G81: 4105 | H81: 4222.5 | I81: 4250-4300 | J81: Profit of Rs.47.5/- | K81: =H81-F81 -> 47.5 | L81: =(H81*N81)*0.03% -> 253.35 | M81: =(K81*N81)-L81 -> 9246.7 | N81: 200 | O81: Successful | P81: 2023-08-14
A82: 16 | B82: 2023-08-14 | D82: GUJGASLTD AUG FUT | E82: Buy | F82: 451.5 | G82: 440 | H82: 459 | I82: 465-475 | J82: Profit of Rs.7.5/- | K82: =H82-F82 -> 7.5 | L82: =(H82*N82)*0.03% -> 172.13 | M82: =(K82*N82)-L82 -> 9202.9 | N82: 1250 | O82: Successful | P82: 2023-08-21
A83: 17 | B83: 2023-08-22 | D83: UBL AUG FUT | E83: Buy | F83: 1526 | G83: 1495 | H83: 1545 | I83: 1570-1600 | J83: Profit of Rs.19/- | K83: =H83-F83 -> 19 | L83: =(H83*N83)*0.03% -> 185.40 | M83: =(K83*N83)-L83 -> 7414.6 | N83: 400 | O83: Successful | P83: 2023-08-23
A84: 18 | B84: 2023-08-22 | D84: GRASIM AUG FUT | E84: Buy | F84: 1805.5 | G84: 1782 | H84: 1782 | I84: 1840-1860 | J84: Loss of Rs.23.5/- | K84: -23.5 | L84: 253.94 | M84: -11416.4 | N84: 475 | O84: Unsuccessful | P84: 2023-08-24
A85: 19 | B85: 2023-08-23 | D85: EXIDEIND AUG FUT | E85: Buy | F85: 268.5 | G85: 265 | H85: 265 | I85: 275-278 | J85: Loss of Rs.3.5/- | K85: =H85-F85 -> -3.5 | L85: =(H85*N85)*0.03% -> 286.20 | M85: =(K85*N85)-L85 -> -12886.2 | N85: 3600 | O85: Unsuccessful | P85: 2023-08-24
A86: 20 | B86: 2023-08-24 | D86: OFSS AUG FUT | E86: Buy | F86: 3990 | G86: 3925 | H86: 3995 | I86: 4060-4110 | J86: Profit of Rs.5/- | K86: 5 | L86: 239.70 | M86: 760.3 | N86: 200 | O86: Neutral | P86: 2023-08-25
A87: 21 | B87: 2023-08-28 | D87: METROPOLIS SEPT FUT | E87: Buy | F87: 1327 | G87: 1298 | H87: 1349.5 | I87: 1370-1400 | J87: Profit of Rs.22.5/- | K87: 22.5 | L87: 161.94 | M87: 8838.1 | N87: 400 | O87: Successful | P87: 2023-08-28
A88: 22 | B88: 2023-08-28 | D88: BAJAJFINSV SEPT FUT | E88: Buy | F88: 1498.5 | G88: 1475 | H88: 1519 | I88: 1525-1545 | J88: Profit of Rs.20.5/- | K88: =H88-F88 -> 20.5 | L88: =(H88*N88)*0.03% -> 227.85 | M88: =(K88*N88)-L88 -> 10022.2 | N88: 500 | O88: Successful | P88: 2023-08-29
A89: 23 | B89: 2023-08-28 | D89: NTPC SEPT FUT | E89: Buy | F89: 220 | G89: 216 | H89: 222.15 | I89: 225-228 | J89: Profit of Rs.2.15/- | K89: =H89-F89 -> 2.15 | L89: =(H89*N89)*0.03% -> 199.94 | M89: =(K89*N89)-L89 -> 6250.1 | N89: 3000 | O89: Successful | P89: 2023-08-29
A90: 24 | B90: 2023-08-29 | D90: CONCOR SEPT FUT | E90: Buy | F90: 668-669 | G90: 656 | I90: 685-695 | J90: Open
A91: 25 | B91: 2023-08-29 | D91: HCLTECH SEPT FUT | E91: Buy | F91: 1159.5 | G91: 1145 | H91: 1170.5 | I91: 1185-1195 | J91: Profit of Rs.11/- | K91: =H91-F91 -> 11 | L91: =(H91*N91)*0.03% -> 245.81 | M91: =(K91*N91)-L91 -> 7454.2 | N91: 700 | O91: Successful | P91: 2023-08-29
A96: Master Trade Medium Risk
A97: Sr.no | B97: Date | D97: Company | E97: Rec | F97: Rec Price | G97: Stop Loss | H97: Call Closed At | I97: Target | J97: Remark | K97: Profit/ Loss per lot | L97: All charges | M97: Gain / Loss per Lot | N97: Lot | O97: Status | P97: Closed Date
A98: 1 | B98: 2023-08-01 | D98: HDFCBANK 1700 CE 31-AUG | E98: Buy | F98: 17 | G98: 8 | H98: 10 | I98: 30-35 | J98: Loss of Rs.7/- | K98: =H98-F98 -> -7 | L98: 50.00 | M98: =(K98*N98)-50 -> -3900.0 | N98: 550 | O98: Unsuccessful | P98: 2023-08-03
A99: 2 | B99: 2023-08-01 | D99: FINNIFTY 20400 CE 01-AUG | E99: Buy | F99: 29 | G99: 0 | H99: 6 | I99: 60-80 | J99: Loss of Rs.23/- | K99: =H99-F99 -> -23 | L99: 50.00 | M99: =(K99*N99)-50 -> -970.0 | N99: 40 | O99: Unsuccessful | P99: 2023-08-01
A100: 3 | B100: 2023-08-01 | D100: SBIN 660 CE 31-AUG | E100: Buy | F100: 4.85 | G100: 2.8 | H100: 2.8 | I100: 10-12 | J100: Loss of Rs.2.05/- | K100: =H100-F100 -> -2.05 | L100: 50.00 | M100: -3125.0 | N100: 1500 | O100: Unsuccessful | P100: 2023-08-02
A101: 4 | B101: 2023-08-01 | D101: RELIANCE 2540 CE 31-AUG | E101: Buy | F101: 48 | G101: 27 | H101: 29 | I101: 80-100 | J101: Loss of Rs.19/- | K101: -19 | L101: 50.00 | M101: -4800.0 | N101: 250 | O101: Unsuccessful | P101: 2023-08-03
A102: 5 | B102: 2023-08-02 | D102: NIFTY 19500 CE 3-AUG | E102: Buy | F102: 50 | G102: 18 | H102: 59 | I102: 90-110 | J102: Profit of Rs.9/- | K102: =H102-F102 -> 9 | L102: 50 | M102: =(K102*N102)-50 -> 400.0 | N102: 50 | O102: Successful | P102: 2023-08-02
A103: 6 | B103: 2023-08-03 | D103: FINNIFTY 20050 CE 08-AUG | E103: Buy | F103: 117.5 | G103: 70 | H103: 137.5 | I103: 170-200 | J103: Profit of Rs.20/- | K103: =H103-F103 -> 20 | L103: 50 | M103: 750.0 | N103: 40 | O103: Successful | P103: 2023-08-03
A104: 7 | B104: 2023-08-03 | D104: FINNIFTY 20050 CE 08-AUG | E104: Buy | F104: 102.5 | G104: 55 | H104: 55 | I104: 150-180 | J104: Loss of Rs.47.5/- | K104: -47.5 | L104: 50.00 | M104: -1950.0 | N104: 40 | O104: Unsuccessful | P104: 2023-08-03
A105: 8 | B105: 2023-08-03 | D105: NIFTY 19450 CE 3-AUG | E105: Buy | F105: 31 | G105: 0 | H105: 0 | I105: 70-100 | J105: Loss of Rs.31/- | K105: =H105-F105 -> -31 | L105: 50.00 | M105: -1600.0 | N105: 50 | O105: Unsuccessful | P105: 2023-08-03
A106: 10 | B106: 2023-08-08 | D106: DRREDDY 5750 CE AUG | E106: Buy | F106: 106.5 | G106: 65 | H106: 130 | I106: 160-180 | J106: Profit of Rs.23.5/- | K106: 23.5 | L106: 50 | M106: 2887.5 | N106: 125 | O106: Successful | P106: 2023-08-09
A107: 11 | B107: 2023-08-08 | D107: FINNIFTY 20100 PE 08-AUG | E107: Buy | F107: 12 | G107: 0 | H107: 22.5 | I107: 30-45 | J107: Profit of Rs.10.5/- | K107: =H107-F107 -> 10.5 | L107: 50 | M107: 370.0 | N107: 40 | O107: Successful | P107: 2023-08-08
A108: 12 | B108: 2023-08-09 | D108: MARUTI 9600 CE AUG | E108: Buy | F108: 146 | G108: 99 | H108: 118 | I108: 200-240 | J108: Loss of Rs.28/- | K108: -28 | L108: 50.00 | M108: =(K108*N108)-50 -> -2850.0 | N108: 100 | O108: Unsuccessful | P108: 2023-08-10
A109: 13 | B109: 2023-08-09 | D109: RELIANCE 2520 CE AUG | E109: Buy | F109: 44 | G109: 25 | H109: 51 | I109: 65-75 | J109: Profit of Rs.7/- | K109: =H109-F109 -> 7 | L109: 50 | M109: 1700.0 | N109: 250 | O109: Successful | P109: 2023-08-10
A110: 14 | B110: 2023-08-11 | D110: PERSISTENT 5000 CE AUG | E110: Buy | F110: 106 | G110: 78 | H110: 125 | I110: 140-160 | J110: Profit of Rs.19/- | K110: =H110-F110 -> 19 | L110: 50 | M110: =(K110*N110)-50 -> 3275.0 | N110: 175 | O110: Successful | P110: 2023-08-11
A111: 15 | B111: 2023-08-11 | D111: FINNIFTY 19850 CE 14-AUG | E111: Buy | F111: 59 | G111: 19 | H111: 80 | I111: 120-150 | J111: Profit of Rs.21/- | K111: =H111-F111 -> 21 | L111: 50 | M111: =(K111*N111)-50 -> 790.0 | N111: 40 | O111: Successful | P111: 2023-08-11
A112: 16 | B112: 2023-08-14 | D112: COFORGE 5350 CE 31-AUG | E112: Buy | F112: 96.5 | G112: 65 | H112: 114 | I112: 140-160 | J112: Profit of Rs.17.5/- | K112: =H112-F112 -> 17.5 | L112: 50 | M112: =(K112*N112)-50 -> 2575.0 | N112: 150 | O112: Successful | P112: 2023-08-16
A113: 17 | B113: 2023-08-14 | D113: FINNIFTY 19600 CE 14-AUG | E113: Buy | F113: 22.5 | G113: 0 | H113: 41 | I113: 50-70 | J113: Profit of Rs.18.5/- | K113: =H113-F113 -> 18.5 | L113: 50 | M113: =(K113*N113)-50 -> 690.0 | N113: 40 | O113: Successful | P113: 2023-08-14
A114: 18 | B114: 2023-08-14 | D114: FINNIFTY 19700 CE 14-AUG | E114: Buy | F114: 6 | G114: 0 | H114: 0 | I114: 60-80 | J114: Loss of Rs.19.5/- | K114: -6 | L114: 50.00 | M114: -290.0 | N114: 40 | O114: Unsuccessful | P114: 2023-08-14
D115: FINNIFTY 19650 PE 14-AUG | E115: Buy | F115: 17 | G115: 0 | H115: 3.5 | K115: -13.5 | L115: 50.00 | M115: -590.0 | N115: 40 | O115: Unsuccessful | P115: 2023-08-14
A116: 19 | B116: 2023-08-14 | D116: BPCL 365 CE 31-AUG | E116: Buy | F116: 4.75 | G116: 2.5 | H116: 5.75 | I116: 08-09 | J116: Profit of Rs.1/- | K116: =H116-F116 -> 1 | L116: 50 | M116: =(K116*N116)-50 -> 1750.0 | N116: 1800 | O116: Successful | P116: 2023-08-16
A117: 20 | B117: 2023-08-16 | D117: MPHASIS 2400 CE 31-AUG | E117: Buy | F117: 47 | G117: 30 | H117: 30 | I117: 65-75 | J117: Loss of Rs.17/- | K117: -17 | L117: 50.00 | M117: -4725.0 | N117: 275 | O117: Unsuccessful | P117: 2023-08-17
A118: 21 | B118: 2023-08-16 | D118: DRREDDY 5900 CE 31-AUG | E118: Buy | F118: 95.5 | G118: 49 | H118: 112 | I118: 150-180 | J118: Profit of Rs.16.5/- | K118: =H118-F118 -> 16.5 | L118: 50 | M118: =(K118*N118)-50 -> 2012.5 | N118: 125 | O118: Successful | P118: 2023-08-16
A119: 22 | B119: 2023-08-17 | D119: BRITANNIA 4600 CE 31-AUG | E119: Buy | F119: 44 | G119: 24 | H119: 49.5 | I119: 80-90 | J119: Profit of Rs.5.5/- | K119: =H119-F119 -> 5.5 | L119: 50 | M119: =(K119*N119)-50 -> 1050.0 | N119: 200 | O119: Successful | P119: 2023-08-18
A120: 23 | B120: 2023-08-17 | D120: BPCL 365 CE 31-AUG | E120: Buy | F120: 4.20 | G120: 2 | H120: 2 | I120: 7-9 | J120: Loss of Rs.2.2/- | K120: -2.2 | L120: 50.00 | M120: -4010.0 | N120: 1800 | O120: Unsuccessful | P120: 2023-08-21
A121: 24 | B121: 2023-08-17 | D121: LT 2680 CE 31-AUG | E121: Buy | F121: 35 | G121: 20 | H121: 20 | I121: 55-65 | J121: Loss of Rs.15/- | K121: -15 | L121: 50.00 | M121: -4550.0 | N121: 300 | O121: Unsuccessful | P121: 2023-08-21
A122: 25 | B122: 2023-08-18 | D122: DRREDDY 5900 CE 31-AUG | E122: Buy | F122: 111.5 | G122: 68 | H122: 120 | I122: 160-190 | J122: Profit of Rs.8.5/- | K122: 8.5 | L122: 50 | M122: 1012.5 | N122: 125 | O122: Successful | P122: 2023-08-23
A123: 26 | B123: 2023-08-21 | D123: HINDUNILVR 2560 CE 31-AUG | E123: Buy | F123: 24 | G123: 9 | H123: 30.5 | I123: 45-55 | J123: Profit of Rs.6.5/- | K123: =H123-F123 -> 6.5 | L123: 50 | M123: =(K123*N123)-50 -> 1900.0 | N123: 300 | O123: Successful | P123: 2023-08-21
A124: 27 | B124: 2023-08-21 | D124: BRITANNIA 4600 CE 31-AUG | E124: Buy | F124: 32 | G124: 14 | H124: 42 | I124: 60-70 | J124: Profit of Rs.10/- | K124: =H124-F124 -> 10 | L124: 50 | M124: =(K124*N124)-50 -> 1950.0 | N124: 200 | O124: Successful | P124: 2023-08-21
A125: 28 | B125: 2023-08-21 | D125: BHARATFORG 990 CE 31-AUG | E125: Buy | F125: 14.50 | H125: 20.5 | J125: Profit of Rs.3/- | K125: 6 | L125: 50 | M125: 5950.0 | N125: 1000 | O125: Successful | P125: 2023-08-21
D126: BHARATFORG 1010 CE 31-AUG | E126: Sell | F126: 9 | H126: 12 | K126: =F126-H126 -> -3 | L126: 50 | M126: =(K126*N125)-50 -> -3050.0
A127: 29 | B127: 2023-08-21 | D127: COFORGE 5050 CE 31-AUG | E127: Buy | F127: 76.5 | G127: 45 | H127: 105 | I127: 110-130 | J127: Profit of Rs.28.5/- | K127: =H127-F127 -> 28.5 | L127: 50 | M127: =(K127*N127)-50 -> 4225.0 | N127: 150 | O127: Successful | P127: 2023-08-22
A128: 30 | B128: 2023-08-21 | D128: LT 2660 CE 31-AUG | E128: Buy | F128: 29 | G128: 15 | H128: 36 | I128: 45-55 | J128: Profit of Rs.7/- | K128: =H128-F128 -> 7 | L128: 50 | M128: =(K128*N128)-50 -> 2050.0 | N128: 300 | O128: Successful | P128: 2023-08-22
A129: 31 | B129: 2023-08-22 | D129: BAJAJFINSV 1500 CE 31-AUG | E129: Buy | F129: 16 | G129: 7 | H129: 8 | I129: 25-32 | J129: Loss of Rs.8/- | K129: -8 | L129: 50.00 | M129: -4050.0 | N129: 500 | O129: Unsuccessful | P129: 2023-08-23
A130: 32 | B130: 2023-08-28 | D130: BANKNIFTY 44400 PE 31-AUG | E130: Buy | F130: 145 | G130: 50 | H130: 167.5 | I130: 300-400 | J130: Profit of Rs.22.5/- | K130: =H130-F130 -> 22.5 | L130: 50 | M130: =(K130*N130)-50 -> 287.5 | N130: 15 | O130: Neutral | P130: 2023-08-28
A131: 33 | B131: 2023-08-29 | D131: FINNIFTY 19800 PE 29-AUG | E131: Buy | F131: 27 | G131: 0 | H131: 11 | I131: 60-80 | J131: Loss of Rs.16/- | K131: -16 | L131: 50.00 | M131: -690.0 | N131: 40 | O131: Unsuccessful | P131: 2023-08-29
A132: 34 | B132: 2023-08-29 | D132: NIFTY 19400 CE 31-AUG | E132: Buy | F132: 34-35 | J132: Open
D133: NIFTY 19300 PE 31-AUG | E133: Buy | F133: 34-35
A137: Techno -Funda (positional)
A138: Sr.no | B138: Date | D138: Company | E138: Rec | F138: Rec Price | G138: Stop Loss*** | H138: Call Closed At | I138: Target | J138: Remark | K138: Profit / Loss per Share/Lot | L138: All charges | M138: Net Gain / Loss % | N138: Status | O138: Closed Date | P138: Market Closing Price
A139: 1 | B139: 2022-10-06 | D139: AMBIKCO | E139: Buy | F139: 1420-1620 | G139: 1220 | I139: 2000-2300 | J139: Open | R139: H
A140: 2 | B140: 2023-05-25 | D140: GSPL | E140: Buy | F140: 286 | G140: 267 | H140: 287 | I140: 330-350 | J140: Profit of Rs.1/- | K140: =H140-F140 -> 1 | L140: =(F140*-0.3)/100 -> -0.86 | M140: =(K140+L140)/F140 -> 0.05% | N140: Neutral | O140: 2023-08-08 | R140: H
A141: 3 | B141: 2023-08-14 | D141: TATAPOWER | E141: Buy | F141: 230 | G141: 209 | H141: 251 | I141: 260-280 | J141: Profit of Rs.21/- | K141: =H141-F141 -> 21 | L141: =(F141*-0.3)/100 -> -0.69 | M141: =(K141+L141)/F141 -> 8.83% | N141: Successful | O141: 2023-08-24
A144: CLBS = Closing Basis *** | F144: Reinitiated $
A145: Dividend adjusted <> | F145: Revised stoploss # | H145: .................
B154: Investment Idea
A155: Sr.no | B155: Date | D155: Company | E155: Rec | F155: Rec Price | G155: Point of Review | H155: Close Rate | I155: Target | J155: Remark | K155: Profit / Loss per Share | L155: Gain / Loss % | M155: Status | N155: Closed Date
A156: 1 | B156: 2013-11-01 | D156: L&T Finance Holding | E156: Accu | F156: 82.00 | G156: - | H156: 100 | I156: 100.00 | J156: Target Achieved | K156: =H156-F156 -> 18.00 | L156: =K156/F156 -> 21.95% | M156: Successful | N156: 2016-10-14
A157: 2 | B157: 2014-06-04 | D157: Finolex Inds | E157: Buy | F157: 257.00 | G157: - | H157: 300 | I157: 300.00 | J157: Target Achieved | K157: 43.00 | L157: 16.73% | M157: Successful | N157: 2014-07-02
A158: 3 | B158: 2014-07-08 | D158: JK Cement | E158: Buy | F158: 393.00 | G158: - | H158: 468 | I158: 468.00 | J158: Target Achieved | K158: 75.00 | L158: 19.08% | M158: Successful | N158: 2014-08-12
A159: 4 | B159: 2014-08-06 | D159: Finolex Cables | E159: Buy | F159: 205.00 | G159: - | H159: 275 | I159: 250.00 | J159: Target Achieved | K159: 70.00 | L159: 34.15% | M159: Successful | N159: 2014-11-19
A160: 5 | B160: 2014-09-04 | D160: Exide Inds | E160: Buy | F160: 162.00 | G160: - | H160: 190 | I160: 190.00 | J160: Target Achieved | K160: 28.00 | L160: 17.28% | M160: Successful | N160: 2015-01-02
A161: 6 | B161: 2014-09-04 | D161: Deepak Nitrite | E161: Buy | F161: 75.00 | G161: - | H161: 91.5 | I161: 95-100 | J161: Profit of Rs.16.50/- | K161: 16.50 | L161: 22.00% | M161: Successful | N161: 2014-11-11
A162: 7 | B162: 2014-10-01 | D162: Mercks | E162: Buy | F162: 850.00 | G162: - | H162: 982.5 | I162: 1050.00 | J162: Profit of Rs.132.50/- | K162: 132.50 | L162: 15.59% | M162: Successful | N162: 2015-02-04
A163: 8 | B163: 2014-10-01 | D163: Grindwell Norton | E163: Buy | F163: 475.00 | G163: - | H163: 515 | I163: 600.00 | J163: Profit of Rs.40/- | K163: 40.00 | L163: 8.42% | M163: Successful | N163: 2014-10-27
A164: 9 | B164: 2014-10-01 | D164: Snowman Logistics | E164: Buy | F164: 86.00 | G164: - | H164: 99 | I164: 140.00 | J164: Profit of Rs.13.00/- | K164: 13.00 | L164: 15.12% | M164: Successful | N164: 2014-10-27
A165: 10 | B165: 2014-10-14 | D165: Birla Corp | E165: Buy | F165: 496.60 | G165: - | H165: 621 | I165: 580.00 | J165: Target Achieved | K165: 124.40 | L165: 25.05% | M165: Successful | N165: 2016-08-23
A166: 11 | B166: 2014-10-14 | D166: Ultratech Cem | E166: Buy | F166: 2481.90 | G166: - | H166: 2840 | I166: 2870.00 | J166: Profit of Rs.358.10/- | K166: 358.10 | L166: 14.43% | M166: Successful | N166: 2015-01-13
A167: 12 | B167: 2014-10-16 | D167: Sintex Inds | E167: Buy | F167: 84.50 | G167: - | H167: 93 | I167: 110.00 | J167: Profit of Rs.8.50/- | K167: 8.50 | L167: 10.06% | M167: Successful | N167: 2014-10-27
A168: 13 | B168: 2014-10-16 | D168: HSIL | E168: Buy | F168: 401.00 | G168: - | H168: 428 | I168: 450.00 | J168: Profit of Rs.27.00/- | K168: 27.00 | L168: 6.73% | M168: Successful | N168: 2015-01-16
A169: 14 | B169: 2014-10-16 | D169: Eveready Inds | E169: Buy | F169: 101.00 | G169: - | H169: 112 | I169: 120.00 | J169: Profit of Rs.11.00/- | K169: 11.00 | L169: 10.89% | M169: Successful | N169: 2014-10-27
A170: 15 | B170: 2014-11-11 | D170: Pennar Inds | E170: Buy | F170: 59.00 | G170: - | H170: 76 | I170: 76.00 | J170: Target Achieved | K170: 17.00 | L170: 28.81% | M170: Successful | N170: 2017-10-24
A171: 16 | B171: 2014-11-11 | D171: Snowman Logistics | E171: Buy | F171: 99.00 | G171: - | H171: 120 | I171: 120.00 | J171: Profit of Rs.21/- | K171: 21.00 | L171: 21.21% | M171: Successful | N171: 2014-11-17
A172: 17 | B172: 2014-11-13 | D172: Dharamsi Morarji Chem | E172: Buy | F172: 22.00 | G172: - | H172: 33.55 | I172: 32.00 | J172: Profit of Rs 11.55/- | K172: 11.55 | L172: 52.50% | M172: Successful | N172: 2015-07-03
A173: 18 | B173: 2014-12-03 | D173: Tatachem | E173: Buy | F173: 440.00 | G173: - | H173: 520 | I173: 520.00 | J173: Profit of Rs 80.00/- | K173: 80.00 | L173: 18.18% | M173: Successful | N173: 2015-07-23
A174: 19 | B174: 2014-12-03 | D174: Advanta | E174: Buy | F174: 360.00 | G174: - | H174: 427 | I174: 425.00 | J174: Profit of Rs.67.00/- | K174: 67.00 | L174: 18.61% | M174: Successful | N174: 2015-02-23
A175: 20 | B175: 2015-01-08 | D175: GDL | E175: Buy | F175: 360.00 | G175: - | H175: 455 | I175: 420.00 | J175: Profit of Rs.95.00/- | K175: 95.00 | L175: 26.39% | M175: Successful | N175: 2015-01-20
A176: 21 | B176: 2015-01-08 | D176: NRB Bearing | E176: Buy | F176: 130.00 | H176: 175.5 | I176: 165.00 | J176: Profit of Rs 45.50/- | K176: 45.50 | L176: 35.00% | M176: Successful | N176: 2017-12-19
A177: 22 | B177: 2015-02-05 | D177: GSFC | E177: Accu | F177: 98.00 | H177: 120 | I177: 120.00 | J177: Target Achieved | K177: 22.00 | L177: 22.45% | M177: Successful | N177: 2017-01-18
A178: 23 | B178: 2015-02-05 | D178: Sundrmfast | E178: Accu | F178: 196.00 | H178: 262 | I178: 255.00 | J178: Target Achieved | K178: 66.00 | L178: 33.67% | M178: Successful | N178: 2016-08-17
A179: 24 | B179: 2015-03-04 | D179: GPPL | E179: Accu | F179: 235 | H179: 77.00 | I179: 280-285 | J179: Loss of Rs.158/- | K179: -158.00 | L179: -67.23% | M179: Unsuccessful | N179: 2019-02-26
A180: 25 | B180: 2015-03-04 | D180: ORIENTCEM | E180: Accu | F180: 185.00 | H180: 224 | I180: 220-225 | J180: Target Achieved | K180: 39.00 | L180: 21.08% | M180: Successful | N180: 2016-10-04
A181: 26 | B181: 2015-03-27 | D181: PFS | E181: Accu | F181: 49.5 | H181: 15.85 | I181: 67.00 | J181: Loss of Rs.33.65/- | K181: -33.65 | L181: -68% | M181: Unsuccessful | N181: 2019-06-11
A182: 27 | B182: 2015-03-30 | D182: Walchandnagar Ind Ltd | E182: Accu | F182: 183.50 | H182: 219 | I182: 218.00 | J182: Profit of Rs.35.50/- | K182: 35.50 | L182: 19.35% | M182: Successful | N182: 2015-04-09
A183: 28 | B183: 2015-04-20 | D183: Kalpataru Power Transmission Ltd | E183: Accu | F183: =(227+237)/2 -> 232.00 | H183: 298 | I183: 298.00 | J183: Target Achieved | K183: 66.00 | L183: 28.45% | M183: Successful | N183: 2017-03-29
A184: 29 | B184: 2015-05-04 | D184: Mastek Ltd | E184: Buy | F184: 385.00 | H184: =212.5+331 -> 543.5 | I184: 510.00 | J184: Profit of Rs 158.50/- | K184: 158.50 | L184: 41.17% | M184: Successful | N184: 2015-08-19
A185: 30 | B185: 2015-05-04 | D185: Suprajit Eng | E185: Buy | F185: 115.50 | H185: 146 | I185: 142.00 | J185: Profit of Rs 30.50/- | K185: 30.50 | L185: 26.41% | M185: Successful | N185: 2015-07-17
A186: 31 | B186: 2015-05-27 | D186: TCI | E186: Buy | F186: 237.50 | H186: 279.5 | I186: 278.00 | J186: Target Achieved | K186: 42.00 | L186: 17.68% | M186: Successful | N186: 2015-08-06
A187: 32 | B187: 2015-06-19 | D187: HSIL | E187: Accu | F187: 340.00 | H187: 448 | I187: 448.00 | J187: Target Achieved | K187: 108.00 | L187: 31.76% | M187: Successful | N187: 2017-10-10
A188: 33 | B188: 2015-07-06 | D188: Capital First | E188: Accu | F188: 390.00 | H188: 460 | I188: 460.00 | J188: Target Achieved | K188: 70.00 | L188: 17.95% | M188: Successful | N188: 2016-04-18
A189: 34 | B189: 2015-07-10 | D189: Dolphin OffShore | E189: Accu | F189: 122.5 | H189: 61.00 | I189: 172.00 | J189: Loss of Rs.61.50/- | K189: -61.50 | L189: -50.20% | M189: Unsuccessful | N189: 2018-08-21
A190: 35 | B190: 2015-08-03 | D190: Allcargo logistics | E190: Accu | F190: 297.50 | H190: 350 | I190: 360.00 | J190: Profit of Rs 52.50/- | K190: 52.50 | L190: 17.65% | M190: Successful | N190: 2015-08-16
A191: 36 | B191: 2015-08-03 | D191: Camline Fine | E191: Accu | F191: 115.50 | H191: 149 | I191: 140.00 | J191: Profit of Rs 33.50/- | K191: 33.50 | L191: 29.00% | M191: Successful | N191: 2017-01-05
A192: 37 | B192: 2015-09-04 | D192: TCI | E192: Accu | F192: 226.00 | H192: 292 | I192: 292.00 | J192: Target Achieved | K192: 66.00 | L192: 29.20% | M192: Successful | N192: 2015-10-09
A193: 38 | B193: 2015-09-07 | D193: Kalpataru Power Transmission Ltd | E193: Accu | F193: 232.50 | H193: 312.5 | I193: 310.00 | J193: Target Achieved | K193: 80.00 | L193: 34.41% | M193: Successful | N193: 2017-03-29
A194: 39 | B194: 2015-09-21 | D194: LLOYD ELECTRIC & ENG LTD | E194: Accu | F194: 196.50 | H194: 238 | I194: 238.00 | J194: Target Achieved | K194: 41.50 | L194: 21.12% | M194: Successful | N194: 2015-10-14
A195: 40 | B195: 2015-09-24 | D195: L&T Finance Holding | E195: Accu | F195: 65.00 | H195: 82 | I195: 82.00 | J195: Target Achieved | K195: 17.00 | L195: 26.15% | M195: Successful | N195: 2016-07-27
A196: 41 | B196: 2015-10-14 | D196: KEC International ltd | E196: Accu | F196: 144.00 | H196: 182.5 | I196: 181.00 | J196: Target Achieved | K196: 38.50 | L196: 26.74% | M196: Successful | N196: 2017-03-23
A197: 42 | B197: 2015-10-14 | D197: Gruh Finance | E197: Accu | F197: 264.00 | H197: 311 | I197: 311.00 | J197: Target Achieved | K197: 47.00 | L197: 17.80% | M197: Successful | N197: 2016-08-22
A198: 43 | B198: 2015-11-10 | D198: Pidilitind | E198: Buy | F198: 549.50 | H198: 630 | I198: 630.00 | J198: Target Achieved | K198: 80.50 | L198: 14.65% | M198: Successful | N198: 2016-02-19
A199: 44 | B199: 2015-12-04 | D199: Zensar Technology | E199: Accu | F199: 1027.50 | H199: 1315 | I199: 1250.00 | J199: Target Achieved | K199: 287.50 | L199: 27.98% | M199: Successful | N199: 2018-05-24
A200: 45 | B200: 2015-12-29 | D200: Vinati Organics Ltd | E200: Accu | F200: 465.00 | H200: 540 | I200: 540.00 | J200: Target Achieved | K200: 75.00 | L200: 16.13% | M200: Successful | N200: 2016-06-09
A201: 46 | B201: 2016-01-11 | D201: GSFC | E201: Buy | F201: 81.00 | H201: 110 | I201: 110.00 | J201: Target Achieved | K201: 29.00 | L201: 35.80% | M201: Successful | N201: 2017-01-10
A202: 47 | B202: 2016-01-13 | D202: SSWL | E202: Buy | F202: 417.50 | H202: 547 | I202: 535.00 | J202: Target Achieved | K202: 129.50 | L202: 31.02% | M202: Successful | N202: 2016-07-27
A203: 48 | B203: 2016-02-08 | D203: Persistent System Ltd | E203: Accu | F203: 650.00 | H203: 800 | I203: 800.00 | J203: Target Achieved | K203: 150.00 | L203: 23.08% | M203: Successful | N203: 2018-02-23
A204: 49 | B204: 2016-03-04 | D204: UPL | E204: Accu | F204: 437.50 | H204: 504.5 | I204: 522.00 | J204: Profit of Rs.67/- | K204: 67.00 | L204: 15.31% | M204: Successful | N204: 2016-04-20
A205: 50 | B205: 2016-03-09 | D205: Ashoka Buildcon Ltd | E205: Accu | F205: 189.50 | H205: 218 | I205: 218.00 | J205: Target Achieved | K205: 28.50 | L205: 15.04% | M205: Successful | N205: 2017-10-26
A206: 51 | B206: 2016-04-11 | D206: PTC INDIA FIN SERV LTD | E206: Accu | F206: 36.5 | H206: 15.85 | I206: 60.00 | J206: Loss of Rs.20.65/- | K206: -20.65 | L206: -56.58% | M206: Unsuccessful | N206: 2019-06-11
A207: 52 | B207: 2016-04-12 | D207: CAMLINFINE $ | E207: Accu | F207: 93.00 | H207: 149 | I207: 140.00 | J207: Profit of Rs 56/- | K207: 56.00 | L207: 60.22% | M207: Successful | N207: 2017-01-05
A208: 53 | B208: 2016-04-12 | D208: Greaves Cotton Ltd. | E208: Accu | F208: 130.00 | H208: 150 | I208: 150-155 | J208: Target Achieved | K208: 20.00 | L208: 15.38% | M208: Successful | N208: 2016-07-13
A209: 54 | B209: 2016-04-13 | D209: DHFL | E209: Accu | F209: 196.00 | H209: 299 | I209: 299.00 | J209: Target Achieved | K209: 103.00 | L209: 52.55% | M209: Successful | N209: 2016-09-07
A210: 55 | B210: 2016-04-13 | D210: Magma | E210: Accu | F210: 88.00 | H210: 103 | I210: 103.00 | J210: Target Achieved | K210: 15.00 | L210: 17.05% | M210: Successful | N210: 2016-06-09
A211: 56 | B211: 2016-05-02 | D211: KEC International ltd $ | E211: Accu | F211: 127.50 | H211: 148 | I211: 148-150 | J211: Target Achieved | K211: =H211-F211 -> 20.50 | L211: =K211/F211 -> 16.08% | M211: Successful | N211: 2016-07-13
A212: 57 | B212: 2016-05-03 | D212: Mindtree | E212: Accu | F212: 675.00 | H212: 815 | I212: 790-800 | J212: Target Achieved | K212: 140.00 | L212: 20.74% | M212: Successful | N212: 2018-02-23
A213: 58 | B213: 2016-06-01 | D213: Atulauto | E213: Accu | F213: 500 | H213: 232.50 | I213: 565-570 | J213: Loss of Rs.267.50 /- | K213: -267.50 | L213: -53.50% | M213: Unsuccessful | N213: 2019-09-27
A214: 59 | B214: 2016-06-06 | D214: TRITURBINE | E214: Accu | F214: 110.00 | H214: 126.5 | I214: 125.00 | J214: Profit of Rs.16.50/- | K214: 16.50 | L214: 15.00% | M214: Successful | N214: 2016-07-01
A215: 60 | B215: 2016-06-17 | D215: Pennar Industries Ltd | E215: Accu | F215: 44.00 | H215: 69.5 | I215: 69.50 | J215: Profit of Rs.25.50/- | K215: 25.50 | L215: 57.95% | M215: Successful | N215: 2017-08-30
A216: 61 | B216: 2016-06-28 | D216: EVEREADY | E216: Accu | F216: 262.50 | H216: 340 | I216: 333.00 | J216: Profit of Rs.77.50/- | K216: 77.50 | L216: 29.52% | M216: Successful | N216: 2017-10-09
A217: 62 | B217: 2016-06-28 | D217: FIEMIND | E217: Accu | F217: 840.00 | H217: 1230 | I217: 1230.00 | J217: Target Achieved | K217: 390.00 | L217: 46.43% | M217: Successful | N217: 2016-10-06
A218: 63 | B218: 2016-07-05 | D218: Bajaj Corp Ltd | E218: Accu | F218: 395 | H218: =(468.5+342.5)/2 -> 405.50 | I218: 510.00 | J218: Profit of Rs.10.50/- | K218: =H218-F218 -> 10.50 | L218: =K218/F218 -> 3% | M218: Neutral | N218: 2019-05-21
A219: 64 | B219: 2016-08-02 | D219: GPPL $ | E219: Buy | F219: =169.5-12.8 -> 156.7 | H219: 77.00 | I219: 198-200 | J219: Loss of Rs.79.7/- | K219: -79.70 | L219: -50.86% | M219: Unsuccessful | N219: 2019-02-26
A220: 65 | B220: 2016-08-04 | D220: WONDERLA HOLIDAYS LTD | E220: Accu | F220: 400 | H220: 305.00 | I220: 475.00 | J220: Loss of Rs.95/- | K220: -95.00 | L220: -23.75% | M220: Unsuccessful | N220: 2019-05-21
A221: 66 | B221: 2016-08-11 | D221: CAMLINFINE | E221: Accu | F221: 86.50 | H221: 130 | I221: 130.00 | J221: Profit of Rs.43.50/- | K221: 43.50 | L221: 50.29% | M221: Successful | N221: 2017-12-22
A222: 67 | B222: 2016-08-18 | D222: GRANULES | E222: Accu | F222: 133.5 | H222: 126.50 | I222: 178.00 | J222: Exit | K222: -7.00 | L222: -5.24% | M222: Unsuccessful | N222: 2016-09-02
A223: 68 | B223: 2016-08-31 | D223: VA TECH WABAG | E223: Accu | F223: 560.00 | H223: 725 | I223: 725.00 | J223: Target Achieved | K223: 165.00 | L223: 29.46% | M223: Successful | N223: 2016-03-27
A224: 69 | B224: 2016-09-01 | D224: SKIPPER LIMITED | E224: Accu | F224: 160.50 | H224: 210 | I224: 210.00 | J224: Target Achieved | K224: 49.50 | L224: 30.84% | M224: Successful | N224: 2017-05-16
A225: 70 | B225: 2016-10-03 | D225: IFBIND | E225: Accu | F225: 430.00 | H225: 596 | I225: 575.00 | J225: Profit of Rs.166/- | K225: 166.00 | L225: 38.60% | M225: Successful | N225: 2017-02-03
A226: 71 | B226: 2016-10-14 | D226: ASIANTILES | E226: Accu | F226: 280.00 | H226: 345 | I226: 345.00 | J226: Target Achieved | K226: =H226-F226 -> 65.00 | L226: =K226/F226 -> 23.21% | M226: Successful | N226: 2017-03-20
A227: 72 | B227: 2016-10-14 | D227: DEEPIND | E227: Accu | F227: 245.00 | H227: 325.5 | I227: 330.00 | J227: Profit of Rs.80.5/- | K227: 80.50 | L227: 32.86% | M227: Successful | N227: 2017-02-03
A228: 73 | B228: 2016-10-17 | D228: DCBBANK | E228: Accu | F228: 125.00 | H228: 160 | I228: 160.00 | J228: Target Achieved | K228: 35.00 | L228: 28.00% | M228: Successful | N228: 2017-03-09
A229: 74 | B229: 2016-10-17 | D229: ORIENTREF | E229: Accu | F229: 114.00 | H229: 145 | I229: 145.00 | J229: Target Achieved | K229: 31.00 | L229: =K229/F229 -> 27.19% | M229: Successful | N229: 2017-05-04
A230: 75 | B230: 2016-10-17 | D230: GANECOS | E230: Accu | F230: 212.00 | H230: 280 | I230: 276.00 | J230: Profit of Rs.68/- | K230: 68.00 | L230: 32.08% | M230: Successful | N230: 2017-05-03
A231: 76 | B231: 2016-11-04 | D231: NBCC | E231: Accu | F231: 155.00 | H231: 210 | I231: 210.00 | J231: Profit of Rs.55/- | K231: 55.00 | L231: 35.48% | M231: Successful | N231: 2017-07-28
... 118 more rows
